{"text_format":"1","workbook":"xlsx","n_sheets":10,"sheets":["SolCotizacion","ResumenCotizacion","Cotizacion","Version 1 09-08-2017","CSV","Lote 1","Lote 3","Lote 3 Original","Listas","Listas (2)"],"not_rendered":{"charts":0,"images":0,"macros":1,"external_links":6,"defined_names":419,"comments":0,"pivot_tables":0},"unopened":[],"bounds":{"document_bytes":16777216,"sheet_cells":100000,"rows_first":2000,"rows_last":500,"rows_between":2000,"halvings":0,"cell_chars":16384,"cell_head_chars":4096},"cells_cut":0,"cells_raw":0,"read":"whole","date_system":"1900"}

{"sheet":"SolCotizacion","index":0,"n_rows":34,"n_cols":14,"rows_kept":34,"cut":false,"hidden":false,"merged":[[33,1,33,2],[9,3,9,8],[9,10,9,11],[30,1,30,4],[11,9,11,10],[11,7,11,8],[19,10,19,11],[28,0,28,5],[29,1,29,4],[20,2,20,3],[13,0,13,13],[24,0,24,13],[15,0,15,5],[21,3,21,6],[22,3,22,6],[0,0,1,12],[5,3,5,8],[7,3,7,8],[11,0,11,2],[19,1,19,2],[17,10,17,11],[15,6,15,8],[3,0,3,13],[5,10,5,13],[7,10,7,13],[9,12,9,13],[11,11,11,13],[5,0,5,2],[7,0,7,2],[9,0,9,2]]}
["Solicitud de Cotización - Productos y Servicios Google"]
[]
["Versión: 7","2018-10-25"]
["Información de la Entidad Compradora"]
[]
["Nombre de la Entidad:",null,null,null,null,null,null,null,null,"NIT:"]
[]
["Dirección de la Entidad:",null,null,null,null,null,null,null,null,"Correo de contacto:"]
[]
["Municipio:",null,null,null,null,null,null,null,null,"Teléfono de contacto:"]
[]
["Fecha Creación del evento:",null,null,null,"Fecha de inicio del servicio:",null,"Fecha de finalización del servicio:",null,null,"Nombre funcionario Comprador:"]
[]
["Solicitud de Cotización"]
[]
["Introduzca la TRM correspondiente de acuerdo con las indicaciones de la guía de compra"]
[]
[null,"Filas a agregar o eliminar:"]
[]
[null,1,null,null,null,null,null,null,null,"Lote:","Lote 1"]
[]
["Item","Tipo","Zona","Nombre Producto",null,null,null,null,"Cantidad de medida","Unidad de medida","Cantidad del servicio","Unidad de cantidad","Tipo de moneda","Número de parte"]
[1]
[]
["Gravámenes adicionales"]
[]
["Si los hay, indique los gravámenes adicionales a los que está sujeta la Orden de Compra (por ejemplo; estampillas y demás impuestos territoriales):"]
[]
["Gravámenes adicionales (estampillas)"]
["No","Descripción",null,null,null,"Porcentaje"]
[1]
[null,null,null,null,null,{"$f":"SUM(F31:F31)","v":0}]
[null,"Filas a agregar o eliminar Gravámenes:"]
[null,1]

{"sheet":"ResumenCotizacion","index":1,"n_rows":28,"n_cols":18,"rows_kept":28,"cut":false,"hidden":false,"merged":[[7,10,7,12],[7,0,7,1],[7,2,7,8],[9,10,9,11],[11,0,11,1],[11,2,11,8],[11,9,11,10],[11,11,11,12],[9,0,9,1],[9,2,9,8],[0,0,1,12],[3,0,3,12],[5,0,5,1],[5,2,5,8],[5,10,5,12],[27,10,27,11],[26,10,26,11],[24,10,24,12],[25,10,25,11],[24,0,24,5],[25,1,25,4],[26,1,26,4],[13,0,13,12],[15,10,15,11],[20,2,20,3],[21,3,21,6],[22,3,22,6]]}
["Resumen de Cotización - Productos y Servicios Google",null,null,null,null,null,null,null,null,null,null,null,null,null,null,null,null,0]
[]
[]
["Información de la Entidad Compradora"]
[]
["Nombre de la Entidad:",null,{"$f":"IF(SolCotizacion!D6=\"\",\"\",SolCotizacion!D6)","v":""},null,null,null,null,null,null,"NIT:",{"$f":"IF(SolCotizacion!K6=\"\",\"\",SolCotizacion!K6)","v":""}]
[]
["Dirección de la Entidad:",null,{"$f":"IF(SolCotizacion!D8=\"\",\"\",SolCotizacion!D8)","v":""},null,null,null,null,null,null,"Correo de contacto:",{"$f":"IF(SolCotizacion!K8=\"\",\"\",SolCotizacion!K8)","v":""}]
[]
["Municipio:",null,{"$f":"IF(SolCotizacion!D10=\"\",\"\",SolCotizacion!D10)","v":""},null,null,null,null,null,null,"Teléfono de contacto:",{"$f":"IF(SolCotizacion!K10=\"\",\"\",SolCotizacion!K10)","v":""},null,{"$f":"IF(SolCotizacion!M10=\"\",\"\",SolCotizacion!M10)","v":""}]
[]
["Fecha Creación del evento:",null,{"$f":"IF(SolCotizacion!D12=\"\",\"\",SolCotizacion!D12)","v":""},null,null,null,null,null,null,"Nombre funcionario Comprador:",null,{"$f":"IF(SolCotizacion!L12=\"\",\"\",SolCotizacion!L12)","v":""}]
[]
["Solicitud de Cotización"]
[]
[null,"TRM:",{"$f":"SolCotizacion!G16","v":0}]
[]
[null,"Lote:",{"$f":"SolCotizacion!K20","v":"Lote 1"}]
[]
[]
[]
["Item","Tipo","Zona","Nombre Producto",null,null,null,"Unidad de Medida","Cantidad de medida","Número de parte","Moneda","Valor Unitario (Incluye gravámenes adicionales)","Valor Unitario * Und Cantidad (COP)","Total (COP)","IVA","Cantidad de servicio","Excento de IVA"]
[1,null,null,null,null,null,null,null,null,null,null,null,null,{"$f":"IF(K23=\"USD\",((I23*L23*P23)*$C$16),(I23*L23*P23))","v":0},{"$f":"IF(Q23=\"NO\",N23*0.19,0)","v":0},1,"SI"]
[]
["Gravámenes adicionales (estampillas)",null,null,null,null,null,null,null,null,null,"Totales"]
["No","Descripción",null,null,null,"Porcentaje",null,null,null,null,"Total Productos y Servicios:",null,{"$f":"SUM(N23:N23)","v":0}]
[1,null,null,null,null,null,null,null,null,null,"Total IVA:",null,{"$f":"SUM(O23:O23)","v":0}]
[null,null,null,null,null,{"$f":"SUM(F27:F27)","v":0},null,null,null,null,"Valor total de la cotización:",null,{"$f":"SUM(M26:M27)","v":0}]

{"sheet":"Cotizacion","index":2,"n_rows":28,"n_cols":19,"rows_kept":28,"cut":false,"hidden":false,"merged":[[9,10,9,11],[11,0,11,1],[11,2,11,8],[11,9,11,10],[11,11,11,12],[25,10,25,11],[24,0,24,5],[25,1,25,4],[17,10,17,11],[17,2,17,7],[20,2,20,3],[21,3,21,6],[22,3,22,6],[26,1,26,4],[27,10,27,11],[26,10,26,11],[0,0,1,12],[5,0,5,1],[5,2,5,8],[5,10,5,12],[24,10,24,12],[3,0,3,13],[7,0,7,1],[7,2,7,8],[9,0,9,1],[9,2,9,8],[15,10,15,11],[7,10,7,12],[13,0,13,13]]}
["Resumen de Cotización - Productos y Servicios Google",null,null,null,null,null,null,null,null,null,null,null,null,null,null,null,null,0,0]
[]
[]
["Información de la Entidad Compradora"]
[]
["Nombre de la Entidad:",null,{"$f":"IF(ResumenCotizacion!C6=\"\",\"\",ResumenCotizacion!C6)","v":""},null,null,null,null,null,null,"NIT:",{"$f":"IF(ResumenCotizacion!K6=\"\",\"\",ResumenCotizacion!K6)","v":""}]
[]
["Dirección de la Entidad:",null,{"$f":"IF(ResumenCotizacion!C8=\"\",\"\",ResumenCotizacion!C8)","v":""},null,null,null,null,null,null,"Correo de contacto:",{"$f":"IF(ResumenCotizacion!K8=\"\",\"\",ResumenCotizacion!K8)","v":""}]
[]
["Municipio:",null,{"$f":"IF(ResumenCotizacion!C10=\"\",\"\",ResumenCotizacion!C10)","v":""},null,null,null,null,null,null,"Teléfono de contacto:",{"$f":"IF(ResumenCotizacion!K10=\"\",\"\",ResumenCotizacion!K10)","v":""},null,{"$f":"IF(ResumenCotizacion!M10=\"\",\"\",ResumenCotizacion!M10)","v":""}]
[]
["Fecha Creación del evento:",null,{"$f":"IF(ResumenCotizacion!C12=\"\",\"\",ResumenCotizacion!C12)","v":""},null,null,null,null,null,null,"Nombre funcionario Comprador:",null,{"$f":"IF(ResumenCotizacion!L12=\"\",\"\",ResumenCotizacion!L12)","v":""}]
[]
["Solicitud de Cotización"]
[]
[null,"TRM:",{"$f":"SolCotizacion!G16","v":0}]
[]
[null,"Proveedor:",null,null,null,null,null,null,null,"Categoría:",{"$f":"IF(SolCotizacion!K20=\"\",\"\",SolCotizacion!K20)","v":"Lote 1"}]
[]
[]
[]
["Item","Tipo","Zona","Nombre Producto",null,null,null,"Unidad de Medida","Cantidad de medida","Número de parte","Moneda","Valor Unitario (Incluye gravámenes adicionales)","Valor Unitario * Und Cantidad (COP)","Descuento","Total (COP)","IVA","Cantidad de servicio","Excento de IVA"]
[1,null,null,null,null,null,null,null,null,null,null,null,null,null,{"$f":"IF(K23=\"USD\",((I23*L23*Q23-(L23*N23%*I23*Q23))*$C$16),(I23*L23*Q23-(L23*N23%*I23*Q23)))","v":0},{"$f":"IF(R23=\"NO\",O23*0.19,0)","v":0},1,"SI"]
[]
["Gravámenes adicionales (estampillas)",null,null,null,null,null,null,null,null,null,"Totales"]
["No","Descripción",null,null,null,"Porcentaje",null,null,null,null,"Total Productos y Servicios:",null,{"$f":"SUM(O23:O23)","v":0}]
[1,null,null,null,null,null,null,null,null,null,"Total IVA:",null,{"$f":"SUM(P23:P23)","v":0}]
[null,null,null,null,null,{"$f":"SUM(F27:F27)","v":0},null,null,null,null,"Valor total de la cotización:",null,{"$f":"SUM(M26:M27)","v":0}]

{"sheet":"Version 1 09-08-2017","index":3,"n_rows":2,"n_cols":3,"rows_kept":2,"cut":false,"hidden":true,"merged":[]}
["Version","Fecha","Observaciones"]
[1,"2017-08-09","Se crea el Simulador"]

{"sheet":"CSV","index":4,"n_rows":4,"n_cols":8,"rows_kept":4,"cut":false,"hidden":true,"merged":[]}
["Tipo (servicio o artÃ­culo)","Cantidad","CÃ³digo de unidad de medida*","PosiciÃ³n","Precio base","Divisa","DescripciÃ³n","MercancÃ­a"]
["item",1,"Und",null,"\"30000\"","COP","goo02--Producto - Zona Todas -  - IT-GO-GS-00-03"]
["item",1,"Und",null,"\"750000\"","COP","goo02--Servicio - Zona 2 -  - IT-GO-GS-03-03"]
["item",1,"Und",null,"\"142500\"","COP","goo02--IVA"]

{"sheet":"Lote 1","index":5,"n_rows":47,"n_cols":20,"rows_kept":47,"cut":false,"hidden":true,"merged":[]}
["Código matriz","Excento de IVA","Zona","Lote","Codigo","Nombre Producto","Moneda","Unidad de Medida","Unidad de Servicio","Tipo","Precio ","Proveedor","Número de parte",null,"Menor valor","proveedor 1","proveedor 2","proveedor 3","proveedor 4","proveedor 5"]
[1,"SI","Zona Todas","Lote 1","81112106","GAPPS-PREM-1USER-1MO_Licencia G Suite Basic mensual por usuario","USD","Und","Und","Producto",5,"Eforcers S.A.","IT-GO-GS-00-01",null,{"$f":"MIN(IF(P2=0,1000000000000,P2),IF(Q2=0,1000000000000,Q2),IF(R2=0,1000000000000,R2),IF(S2=0,1000000000000,S2),IF(T2=0,1000000000000,T2))","v":780685},{"$f":"SUM(IF($N:$N=1,$K:$K,0))","v":780685},{"$f":"SUM(IF($N:$N=2,$K:$K,0))","v":811912},{"$f":"SUM(IF($N:$N=3,$K:$K,0))","v":0},{"$f":"SUM(IF($N:$N=4,$K:$K,0))","v":0},{"$f":"SUM(IF($N:$N=5,$K:$K,0))","v":0}]
[1,"SI","Zona Todas","Lote 1","81112106","GAPPS-PREM-1USER-1MO_Licencia G Suite Basic mensual por usuario","USD","Und","Und","Producto",5,"Ito Software S.A.S.","IT-GO-GS-00-01"]
[2,"SI","Zona Todas","Lote 1","81112106","GAPPS-PREM-1USER-12MO_Licencia G Suite Basic año por usuario","USD","Und","Und","Producto",50,"Eforcers S.A.","IT-GO-GS-00-02"]
[2,"SI","Zona Todas","Lote 1","81112106","GAPPS-PREM-1USER-12MO_Licencia G Suite Basic año por usuario","USD","Und","Und","Producto",50,"Ito Software S.A.S.","IT-GO-GS-00-02"]
[3,"SI","Zona Todas","Lote 1","81112106","GAPPS-UNLIM-1USER-1MO_Licencia G Suite Business mensual por usuario","USD","Und","Und","Producto",10,"Eforcers S.A.","IT-GO-GS-00-03",1]
[3,"SI","Zona Todas","Lote 1","81112106","GAPPS-UNLIM-1USER-1MO_Licencia G Suite Business mensual por usuario","USD","Und","Und","Producto",10,"Ito Software S.A.S.","IT-GO-GS-00-03",2]
[4,"SI","Zona Todas","Lote 1","81112106","GAPPS-UNLIM-1USER-12MO_Licencia G Suite Business año por usuario","USD","Und","Und","Producto",120,"Eforcers S.A.","IT-GO-GS-00-04"]
[4,"SI","Zona Todas","Lote 1","81112106","GAPPS-UNLIM-1USER-12MO_Licencia G Suite Business año por usuario","USD","Und","Und","Producto",120,"Ito Software S.A.S.","IT-GO-GS-00-04"]
[5,"SI","Zona Todas","Lote 1","81112106","GAPPS-ENT-1USER-1MO_Licencia G Suite Enterprise mensual por usuario","USD","Und","Und","Producto",21.5,"Eforcers S.A.","IT-GO-GS-00-05"]
[5,"SI","Zona Todas","Lote 1","81112106","GAPPS-ENT-1USER-1MO_Licencia G Suite Enterprise mensual por usuario","USD","Und","Und","Producto",20,"Ito Software S.A.S.","IT-GO-GS-00-05"]
[6,"SI","Zona Todas","Lote 1","81112106","GAPPS-ENT-1USER-12MO_Licencia G Suite Enterprise año por usuario","USD","Und","Und","Producto",255,"Eforcers S.A.","IT-GO-GS-00-06"]
[6,"SI","Zona Todas","Lote 1","81112106","GAPPS-ENT-1USER-12MO_Licencia G Suite Enterprise año por usuario","USD","Und","Und","Producto",240,"Ito Software S.A.S.","IT-GO-GS-00-06"]
[7,"SI","Zona Todas","Lote 1","81112106","Licencia Google Vault mensual por usuario","USD","Und","Und","Producto",5,"Eforcers S.A.","IT-GO-GS-00-07"]
[7,"SI","Zona Todas","Lote 1","81112106","Licencia Google Vault mensual por usuario","USD","Und","Und","Producto",5,"Ito Software S.A.S.","IT-GO-GS-00-07"]
[8,"SI","Zona Todas","Lote 1","81112106","GAPPS-VAULT-1USER-12MO_Licencia Google Vault año por usuario","USD","Und","Und","Producto",50,"Eforcers S.A.","IT-GO-GS-00-08"]
[8,"SI","Zona Todas","Lote 1","81112106","GAPPS-VAULT-1USER-12MO_Licencia Google Vault año por usuario","USD","Und","Und","Producto",50,"Ito Software S.A.S.","IT-GO-GS-00-08"]
[9,"SI","Zona Todas","Lote 1","81112106","GAPPS-STOR-20GB-1USER-1MO-STD_Google Drive Storage mensual por usuario por giga","USD","Und","Und","Producto",1,"Eforcers S.A.","IT-GO-GS-00-09"]
[9,"SI","Zona Todas","Lote 1","81112106","GAPPS-STOR-20GB-1USER-1MO-STD_Google Drive Storage mensual por usuario por giga","USD","Und","Und","Producto",1.5,"Ito Software S.A.S.","IT-GO-GS-00-09"]
[10,"SI","Zona Todas","Lote 1","81112106","GAPPS-STOR-20GB-1USER-12MO-STD_Google Drive Storage anual por usuario por giga","USD","Und","Und","Producto",10,"Eforcers S.A.","IT-GO-GS-00-10"]
[10,"SI","Zona Todas","Lote 1","81112106","GAPPS-STOR-20GB-1USER-12MO-STD_Google Drive Storage anual por usuario por giga","USD","Und","Und","Producto",10,"Ito Software S.A.S.","IT-GO-GS-00-10"]
[11,"NO","Zona Todas","Lote 1","81112106","Implementación de G-Suite","COP","Und","Und","Servicio",520449.99999999994,"Eforcers S.A.","IT-GO-GS-01-01"]
[11,"NO","Zona Todas","Lote 1","81112106","Implementación de G-Suite","COP","Und","Und","Servicio",541268,"Ito Software S.A.S.","IT-GO-GS-01-01"]
[12,"NO","Zona Todas","Lote 1","81112106","Capacitación sobre G-Suite para usuario final_Remoto_Todas las Zonas","COP","Und","Und","Servicio",218589,"Eforcers S.A.","IT-GO-GS-02-01"]
[12,"NO","Zona Todas","Lote 1","81112106","Capacitación sobre G-Suite para usuario final_Remoto_Todas las Zonas","COP","Und","Und","Servicio",208180,"Ito Software S.A.S.","IT-GO-GS-02-01"]
[13,"NO","Zona 1","Lote 1","81112106","Capacitación sobre G-Suite para usuario final_Presencial_Zona 1","COP","Und","Und","Servicio",327883.5,"Eforcers S.A.","IT-GO-GS-02-02"]
[13,"NO","Zona 1","Lote 1","81112106","Capacitación sobre G-Suite para usuario final_Presencial_Zona 1","COP","Und","Und","Servicio",312270,"Ito Software S.A.S.","IT-GO-GS-02-02"]
[14,"NO","Zona 2","Lote 1","81112106","Capacitación sobre G-Suite para usuario final_Presencial_Zona 2","COP","Und","Und","Servicio",780675,"Eforcers S.A.","IT-GO-GS-02-03"]
[14,"NO","Zona 2","Lote 1","81112106","Capacitación sobre G-Suite para usuario final_Presencial_Zona 2","COP","Und","Und","Servicio",811902,"Ito Software S.A.S.","IT-GO-GS-02-03"]
[15,"NO","Zona 3","Lote 1","81112106","Capacitación sobre G-Suite para usuario final_Presencial_Zona 3","COP","Und","Und","Servicio",936810,"Eforcers S.A.","IT-GO-GS-02-04"]
[15,"NO","Zona 3","Lote 1","81112106","Capacitación sobre G-Suite para usuario final_Presencial_Zona 3","COP","Und","Und","Servicio",988854.99999999988,"Ito Software S.A.S.","IT-GO-GS-02-04"]
[16,"NO","Zona Todas","Lote 1","81112106","Capacitación sobre G-Suite para usuario técnico_Remoto_Todas las Zonas","COP","Und","Und","Servicio",218589,"Eforcers S.A.","IT-GO-GS-03-01"]
[16,"NO","Zona Todas","Lote 1","81112106","Capacitación sobre G-Suite para usuario técnico_Remoto_Todas las Zonas","COP","Und","Und","Servicio",208180,"Ito Software S.A.S.","IT-GO-GS-03-01"]
[17,"NO","Zona 1","Lote 1","81112106","Capacitación sobre G-Suite para usuario técnico_Presencial_Zona 1","COP","Und","Und","Servicio",327883.5,"Eforcers S.A.","IT-GO-GS-03-02"]
[17,"NO","Zona 1","Lote 1","81112106","Capacitación sobre G-Suite para usuario técnico_Presencial_Zona 1","COP","Und","Und","Servicio",312270,"Ito Software S.A.S.","IT-GO-GS-03-02"]
[18,"NO","Zona 2","Lote 1","81112106","Capacitación sobre G-Suite para usuario técnico_Presencial_Zona 2","COP","Und","Und","Servicio",780675,"Eforcers S.A.","IT-GO-GS-03-03",1]
[18,"NO","Zona 2","Lote 1","81112106","Capacitación sobre G-Suite para usuario técnico_Presencial_Zona 2","COP","Und","Und","Servicio",811902,"Ito Software S.A.S.","IT-GO-GS-03-03",2]
[19,"NO","Zona 3","Lote 1","81112106","Capacitación sobre G-Suite para usuario técnico_Presencial_Zona 3","COP","Und","Und","Servicio",936810,"Eforcers S.A.","IT-GO-GS-03-04"]
[19,"NO","Zona 3","Lote 1","81112106","Capacitación sobre G-Suite para usuario técnico_Presencial_Zona 3","COP","Und","Und","Servicio",988854.99999999988,"Ito Software S.A.S.","IT-GO-GS-03-04"]
[20,"NO","Zona Todas","Lote 1","81112106","Migración de correo","COP","Und","Und","Servicio",26022.5,"Eforcers S.A.","IT-GO-GS-04-01"]
[20,"NO","Zona Todas","Lote 1","81112106","Migración de correo","COP","Und","Und","Servicio",29145.199999999997,"Ito Software S.A.S.","IT-GO-GS-04-01"]
[21,"NO","Zona Todas","Lote 1","81112106","Soporte técnico de G-Suite - horario 6x12","COP","Und","Und","Servicio",208180,"Eforcers S.A.","IT-GO-GS-05-01"]
[21,"NO","Zona Todas","Lote 1","81112106","Soporte técnico de G-Suite - horario 6x12","COP","Und","Und","Servicio",208180,"Ito Software S.A.S.","IT-GO-GS-05-01"]
[22,"NO","Zona Todas","Lote 1","81112106","Soporte técnico de G-Suite - Horario 7x24","COP","Und","Und","Servicio",327883.5,"Eforcers S.A.","IT-GO-GS-05-02"]
[22,"NO","Zona Todas","Lote 1","81112106","Soporte técnico de G-Suite - Horario 7x24","COP","Und","Und","Servicio",312270,"Ito Software S.A.S.","IT-GO-GS-05-02"]
[23,"SI","Zona Todas","Lote 1","81112106","Single Sign-on","COP","Und","Und","Producto",655767,"Eforcers S.A.","IT-GO-GS-06-01"]
[23,"SI","Zona Todas","Lote 1","81112106","Single Sign-on","COP","Und","Und","Producto",676585,"Ito Software S.A.S.","IT-GO-GS-06-01"]

{"sheet":"Lote 3","index":6,"n_rows":87,"n_cols":20,"rows_kept":87,"cut":false,"hidden":true,"merged":[]}
["Código matriz","Excento de IVA","Zona","Lote","Codigo","Nombre Producto","Moneda","Unidad de Medida","Unidad de Servicio","Tipo","Precio ","Proveedor","Número de parte",null,"Menor valor","proveedor 1","proveedor 2","proveedor 3","proveedor 4","proveedor 5"]
[13,"NO","Zona Todas","Lote 3","81112106","Servicio_Capacitación sobre GCP para usuario técnico__Remoto_Todas las zonas_Por sesión","COP","Und","Und","Servicio",2185890,"Eforcers S.A.","IT-GO-CP-02-01"]
[13,"NO","Zona Todas","Lote 3","81112106","Servicio_Capacitación sobre GCP para usuario técnico__Remoto_Todas las zonas_Por sesión","COP","Und","Und","Servicio",2174964.7135999999,"Información Localizada S.A.S.","IT-GO-CP-02-01"]
[14,"NO","Zona 1","Lote 3","81112106","Servicio_Capacitación sobre GCP para usuario técnico__Presencial_Zona 1_Por sesión","COP","Und","Und","Servicio",2560614,"Eforcers S.A.","IT-GO-CP-02-02"]
[14,"NO","Zona 1","Lote 3","81112106","Servicio_Capacitación sobre GCP para usuario técnico__Presencial_Zona 1_Por sesión","COP","Und","Und","Servicio",2586211.8128,"Información Localizada S.A.S.","IT-GO-CP-02-02"]
[15,"NO","Zona 2","Lote 3","81112106","Servicio_Capacitación sobre GCP para usuario técnico__Presencial_Zona 2_Por sesión","COP","Und","Und","Servicio",4496688,"Eforcers S.A.","IT-GO-CP-02-03"]
[15,"NO","Zona 2","Lote 3","81112106","Servicio_Capacitación sobre GCP para usuario técnico__Presencial_Zona 2_Por sesión","COP","Und","Und","Servicio",4474300.3227999993,"Información Localizada S.A.S.","IT-GO-CP-02-03"]
[16,"NO","Zona 3","Lote 3","81112106","Servicio_Capacitación sobre GCP para usuario técnico__Presencial_Zona 3_Por sesión","COP","Und","Und","Servicio",5121228,"Eforcers S.A.","IT-GO-CP-02-04"]
[16,"NO","Zona 3","Lote 3","81112106","Servicio_Capacitación sobre GCP para usuario técnico__Presencial_Zona 3_Por sesión","COP","Und","Und","Servicio",5172431.9528000001,"Información Localizada S.A.S.","IT-GO-CP-02-04"]
[84,"SI","Zona Todas","Lote 3","81112106","CP-GAE-DATASTORE-STORAGE_GB / mes","USD","Und","Und","Producto",0.23400000000000001,"Eforcers S.A.","IT-GO-CP-00-66"]
[84,"SI","Zona Todas","Lote 3","81112106","CP-GAE-DATASTORE-STORAGE_GB / mes","USD","Und","Und","Producto",0.23400000000000001,"Información Localizada S.A.S.","IT-GO-CP-00-66"]
[85,"SI","Zona Todas","Lote 3","81112106","CP-GAE-DATASTORE-WRITE-OPS_100k entity writes","USD","Und","Und","Producto",0.23400000000000001,"Eforcers S.A.","IT-GO-CP-00-67"]
[85,"SI","Zona Todas","Lote 3","81112106","CP-GAE-DATASTORE-WRITE-OPS_100k entity writes","USD","Und","Und","Producto",0.23400000000000001,"Información Localizada S.A.S.","IT-GO-CP-00-67"]
[86,"SI","Zona Todas","Lote 3","81112106","CP-GAE-DATASTORE-READ-OPS_100k entity reads","USD","Und","Und","Producto",0.08,"Eforcers S.A.","IT-GO-CP-00-68"]
[86,"SI","Zona Todas","Lote 3","81112106","CP-GAE-DATASTORE-READ-OPS_100k entity reads","USD","Und","Und","Producto",0.08,"Información Localizada S.A.S.","IT-GO-CP-00-68"]
[87,"SI","Zona Todas","Lote 3","81112106","CP-GAE-DATASTORE-DELETE-OPS_100k entity delete","USD","Und","Und","Producto",0.03,"Eforcers S.A.","IT-GO-CP-00-69"]
[87,"SI","Zona Todas","Lote 3","81112106","CP-GAE-DATASTORE-DELETE-OPS_100k entity delete","USD","Und","Und","Producto",0.03,"Información Localizada S.A.S.","IT-GO-CP-00-69"]
[98,"SI","Zona Todas","Lote 3","81112106","CP-BIGQUERY-STORAGE_GB/mes","USD","Und","Und","Producto",0.02,"Eforcers S.A.","IT-GO-CP-00-80"]
[98,"SI","Zona Todas","Lote 3","81112106","CP-BIGQUERY-STORAGE_GB/mes","USD","Und","Und","Producto",0.02,"Información Localizada S.A.S.","IT-GO-CP-00-80"]
[99,"SI","Zona Todas","Lote 3","81112106","CP-BIGQUERY-QUERY_TB/mes","USD","Und","Und","Producto",5,"Eforcers S.A.","IT-GO-CP-00-81"]
[99,"SI","Zona Todas","Lote 3","81112106","CP-BIGQUERY-QUERY_TB/mes","USD","Und","Und","Producto",5.12,"Información Localizada S.A.S.","IT-GO-CP-00-81"]
[100,"SI","Zona Todas","Lote 3","81112106","CP-BIGQUERY-BATCHQUERY_TB/mes","USD","Und","Und","Producto",5,"Eforcers S.A.","IT-GO-CP-00-82"]
[100,"SI","Zona Todas","Lote 3","81112106","CP-BIGQUERY-BATCHQUERY_TB/mes","USD","Und","Und","Producto",5.12,"Información Localizada S.A.S.","IT-GO-CP-00-82"]
[101,"SI","Zona Todas","Lote 3","81112106","CP-BIGQUERY-STREAMING-INSERT_GB/mes","USD","Und","Und","Producto",5.1200000000000002E-2,"Eforcers S.A.","IT-GO-CP-00-83"]
[101,"SI","Zona Todas","Lote 3","81112106","CP-BIGQUERY-STREAMING-INSERT_GB/mes","USD","Und","Und","Producto",5.1200000000000002E-2,"Información Localizada S.A.S.","IT-GO-CP-00-83"]
[102,"SI","Zona Todas","Lote 3","81112106","CP_BIGQUERY_LONG_TERM_STORAGE_GB/mes","USD","Und","Und","Producto",0.01,"Eforcers S.A.","IT-GO-CP-00-84"]
[102,"SI","Zona Todas","Lote 3","81112106","CP_BIGQUERY_LONG_TERM_STORAGE_GB/mes","USD","Und","Und","Producto",0.01,"Información Localizada S.A.S.","IT-GO-CP-00-84"]
[103,"SI","Zona Todas","Lote 3","81112106","CP-DATAFLOW-BATCH_Por 1,000 trabajos","USD","Und","Und","Producto",0.38400000000000001,"Eforcers S.A.","IT-GO-CP-00-85"]
[103,"SI","Zona Todas","Lote 3","81112106","CP-DATAFLOW-BATCH_Por 1,000 trabajos","USD","Und","Und","Producto",0.01,"Información Localizada S.A.S.","IT-GO-CP-00-85"]
[104,"SI","Zona Todas","Lote 3","81112106","CP-DATAFLOW-STREAMING_Por 1,000 trabajos","USD","Und","Und","Producto",0.45419999999999999,"Eforcers S.A.","IT-GO-CP-00-86"]
[104,"SI","Zona Todas","Lote 3","81112106","CP-DATAFLOW-STREAMING_Por 1,000 trabajos","USD","Und","Und","Producto",0.45418399999999998,"Información Localizada S.A.S.","IT-GO-CP-00-86"]
[105,"SI","Zona Todas","Lote 3","81112106","CP-DATAPROC_Por hora","USD","Und","Und","Producto",0.01,"Eforcers S.A.","IT-GO-CP-00-87"]
[105,"SI","Zona Todas","Lote 3","81112106","CP-DATAPROC_Por hora","USD","Und","Und","Producto",0.01,"Información Localizada S.A.S.","IT-GO-CP-00-87"]
[106,"SI","Zona Todas","Lote 3","81112106","CP-PUBSUB-MESSAGE-DELIVERY-BASIC_Por 1,000 mensajes","USD","Und","Und","Producto",6.9999999999999999E-4,"Eforcers S.A.","IT-GO-CP-00-88"]
[106,"SI","Zona Todas","Lote 3","81112106","CP-PUBSUB-MESSAGE-DELIVERY-BASIC_Por 1,000 mensajes","USD","Und","Und","Producto",6.9999999999999999E-4,"Información Localizada S.A.S.","IT-GO-CP-00-88"]
[107,"SI","Zona Todas","Lote 3","81112106","CP-DLP_GB/mes","USD","Und","Und","Producto",10,"Eforcers S.A.","IT-GO-CP-00-89"]
[107,"SI","Zona Todas","Lote 3","81112106","CP-DLP_GB/mes","USD","Und","Und","Producto",10,"Información Localizada S.A.S.","IT-GO-CP-00-89"]
[111,"SI","Zona Todas","Lote 3","81112106","TRANSLATE-BASE-TRANSLATE-1M_Por 1M caracteres","USD","Und","Und","Producto",20,"Eforcers S.A.","IT-GO-CP-00-93"]
[111,"SI","Zona Todas","Lote 3","81112106","TRANSLATE-BASE-TRANSLATE-1M_Por 1M caracteres","USD","Und","Und","Producto",20,"Información Localizada S.A.S.","IT-GO-CP-00-93"]
[112,"SI","Zona Todas","Lote 3","81112106","CP-VISION-LABEL-DETECTION-5M_Por 1,000 operaciones","USD","Und","Und","Producto",1.5,"Eforcers S.A.","IT-GO-CP-00-94"]
[112,"SI","Zona Todas","Lote 3","81112106","CP-VISION-LABEL-DETECTION-5M_Por 1,000 operaciones","USD","Und","Und","Producto",1.5,"Información Localizada S.A.S.","IT-GO-CP-00-94"]
[113,"SI","Zona Todas","Lote 3","81112106","CP-VISION-LABEL-DETECTION-20M_Por 1,000 operaciones","USD","Und","Und","Producto",1,"Eforcers S.A.","IT-GO-CP-00-95"]
[113,"SI","Zona Todas","Lote 3","81112106","CP-VISION-LABEL-DETECTION-20M_Por 1,000 operaciones","USD","Und","Und","Producto",1,"Información Localizada S.A.S.","IT-GO-CP-00-95"]
[114,"SI","Zona Todas","Lote 3","81112106","CP-VISION-OCR-5M_Por 1,000 operaciones","USD","Und","Und","Producto",1.5,"Eforcers S.A.","IT-GO-CP-00-96"]
[114,"SI","Zona Todas","Lote 3","81112106","CP-VISION-OCR-5M_Por 1,000 operaciones","USD","Und","Und","Producto",1.5,"Información Localizada S.A.S.","IT-GO-CP-00-96"]
[115,"SI","Zona Todas","Lote 3","81112106","CP-VISION-OCR-20M_Por 1,000 operaciones","USD","Und","Und","Producto",0.6,"Eforcers S.A.","IT-GO-CP-00-97"]
[115,"SI","Zona Todas","Lote 3","81112106","CP-VISION-OCR-20M_Por 1,000 operaciones","USD","Und","Und","Producto",0.6,"Información Localizada S.A.S.","IT-GO-CP-00-97"]
[116,"SI","Zona Todas","Lote 3","81112106","CP-VISION-FACIAL-DETECTION-5M_Por 1,000 operaciones","USD","Und","Und","Producto",1.5,"Eforcers S.A.","IT-GO-CP-00-98"]
[116,"SI","Zona Todas","Lote 3","81112106","CP-VISION-FACIAL-DETECTION-5M_Por 1,000 operaciones","USD","Und","Und","Producto",1.5,"Información Localizada S.A.S.","IT-GO-CP-00-98"]
[117,"SI","Zona Todas","Lote 3","81112106","CP-VISION-FACIAL-DETECTION-20M_Por 1,000 operaciones","USD","Und","Und","Producto",0.6,"Eforcers S.A.","IT-GO-CP-00-99"]
[117,"SI","Zona Todas","Lote 3","81112106","CP-VISION-FACIAL-DETECTION-20M_Por 1,000 operaciones","USD","Und","Und","Producto",0.6,"Información Localizada S.A.S.","IT-GO-CP-00-99"]
[118,"SI","Zona Todas","Lote 3","81112106","CP-VISION-LANDMARK-DETECTION-5M_Por 1,000 operaciones","USD","Und","Und","Producto",1.5,"Eforcers S.A.","IT-GO-CP-00-100"]
[118,"SI","Zona Todas","Lote 3","81112106","CP-VISION-LANDMARK-DETECTION-5M_Por 1,000 operaciones","USD","Und","Und","Producto",1.5,"Información Localizada S.A.S.","IT-GO-CP-00-100"]
[119,"SI","Zona Todas","Lote 3","81112106","CP-VISION-LANDMARK-DETECTION-20M_Por 1,000 operaciones","USD","Und","Und","Producto",0.6,"Eforcers S.A.","IT-GO-CP-00-101"]
[119,"SI","Zona Todas","Lote 3","81112106","CP-VISION-LANDMARK-DETECTION-20M_Por 1,000 operaciones","USD","Und","Und","Producto",0.6,"Información Localizada S.A.S.","IT-GO-CP-00-101"]
[120,"SI","Zona Todas","Lote 3","81112106","CP-VISION-LOGO-DETECTION-5M_Por 1,000 operaciones","USD","Und","Und","Producto",1.5,"Eforcers S.A.","IT-GO-CP-00-102"]
[120,"SI","Zona Todas","Lote 3","81112106","CP-VISION-LOGO-DETECTION-5M_Por 1,000 operaciones","USD","Und","Und","Producto",1.5,"Información Localizada S.A.S.","IT-GO-CP-00-102"]
[121,"SI","Zona Todas","Lote 3","81112106","CP-VISION-LOGO-DETECTION-20M_Por 1,000 operaciones","USD","Und","Und","Producto",0.6,"Eforcers S.A.","IT-GO-CP-00-103"]
[121,"SI","Zona Todas","Lote 3","81112106","CP-VISION-LOGO-DETECTION-20M_Por 1,000 operaciones","USD","Und","Und","Producto",0.6,"Información Localizada S.A.S.","IT-GO-CP-00-103"]
[122,"SI","Zona Todas","Lote 3","81112106","CP-VISION-IMAGE-PROPERTIES-5M_Por 1,000 operaciones","USD","Und","Und","Producto",1.5,"Eforcers S.A.","IT-GO-CP-00-104"]
[122,"SI","Zona Todas","Lote 3","81112106","CP-VISION-IMAGE-PROPERTIES-5M_Por 1,000 operaciones","USD","Und","Und","Producto",1.5,"Información Localizada S.A.S.","IT-GO-CP-00-104"]
[123,"SI","Zona Todas","Lote 3","81112106","CP-VISION-IMAGE-PROPERTIES-20M_Por 1,000 operaciones","USD","Und","Und","Producto",0.6,"Eforcers S.A.","IT-GO-CP-00-105"]
[123,"SI","Zona Todas","Lote 3","81112106","CP-VISION-IMAGE-PROPERTIES-20M_Por 1,000 operaciones","USD","Und","Und","Producto",0.6,"Información Localizada S.A.S.","IT-GO-CP-00-105"]
[124,"SI","Zona Todas","Lote 3","81112106","CP-NL-API-ENTITY-RECOGNITION_por registro de texto","USD","Und","Und","Producto",1,"Eforcers S.A.","IT-GO-CP-00-106"]
[124,"SI","Zona Todas","Lote 3","81112106","CP-NL-API-ENTITY-RECOGNITION_por registro de texto","USD","Und","Und","Producto",1,"Información Localizada S.A.S.","IT-GO-CP-00-106"]
[125,"SI","Zona Todas","Lote 3","81112106","CP-NL-API-SENTIMENT-ANALYSIS_por registro de texto","USD","Und","Und","Producto",1,"Eforcers S.A.","IT-GO-CP-00-107"]
[125,"SI","Zona Todas","Lote 3","81112106","CP-NL-API-SENTIMENT-ANALYSIS_por registro de texto","USD","Und","Und","Producto",1,"Información Localizada S.A.S.","IT-GO-CP-00-107"]
[126,"SI","Zona Todas","Lote 3","81112106","CP-NL-API-SYNTAX-ANALYSIS_por registro de texto","USD","Und","Und","Producto",0.5,"Eforcers S.A.","IT-GO-CP-00-108"]
[126,"SI","Zona Todas","Lote 3","81112106","CP-NL-API-SYNTAX-ANALYSIS_por registro de texto","USD","Und","Und","Producto",0.5,"Información Localizada S.A.S.","IT-GO-CP-00-108"]
[127,"SI","Zona Todas","Lote 3","81112106","CP-SPEECH-API-RECOGNITION_segundos","USD","Und","Und","Producto",4.0000000000000002E-4,"Eforcers S.A.","IT-GO-CP-00-109"]
[127,"SI","Zona Todas","Lote 3","81112106","CP-SPEECH-API-RECOGNITION_segundos","USD","Und","Und","Producto",4.0000000000000002E-4,"Información Localizada S.A.S.","IT-GO-CP-00-109"]
[128,"SI","Zona Todas","Lote 3","81112106","CP-ML-TRAINING_Por hora, Por ML training unit","USD","Und","Und","Producto",0.54,"Eforcers S.A.","IT-GO-CP-00-110"]
[128,"SI","Zona Todas","Lote 3","81112106","CP-ML-TRAINING_Por hora, Por ML training unit","USD","Und","Und","Producto",0.54,"Información Localizada S.A.S.","IT-GO-CP-00-110"]
[129,"SI","Zona Todas","Lote 3","81112106","CP-ML-TRAINING-STANDARD_Por hora, Por ML training unit","USD","Und","Und","Producto",5.4,"Eforcers S.A.","IT-GO-CP-00-111"]
[129,"SI","Zona Todas","Lote 3","81112106","CP-ML-TRAINING-STANDARD_Por hora, Por ML training unit","USD","Und","Und","Producto",5.4,"Información Localizada S.A.S.","IT-GO-CP-00-111"]
[130,"SI","Zona Todas","Lote 3","81112106","CP-ML-TRAINING-PREMIUM_Por hora, Por ML training unit","USD","Und","Und","Producto",40.5,"Eforcers S.A.","IT-GO-CP-00-112"]
[130,"SI","Zona Todas","Lote 3","81112106","CP-ML-TRAINING-PREMIUM_Por hora, Por ML training unit","USD","Und","Und","Producto",40.5,"Información Localizada S.A.S.","IT-GO-CP-00-112"]
[131,"SI","Zona Todas","Lote 3","81112106","CP-BIGTABLE-NODE_Por hora/node","USD","Und","Und","Producto",0.65,"Eforcers S.A.","IT-GO-CP-00-113"]
[131,"SI","Zona Todas","Lote 3","81112106","CP-BIGTABLE-NODE_Por hora/node","USD","Und","Und","Producto",0.65,"Información Localizada S.A.S.","IT-GO-CP-00-113"]
[132,"SI","Zona Todas","Lote 3","81112106","CP-BIGTABLE-STORAGE-SSD_GB/mes","USD","Und","Und","Producto",0.17,"Eforcers S.A.","IT-GO-CP-00-114"]
[132,"SI","Zona Todas","Lote 3","81112106","CP-BIGTABLE-STORAGE-SSD_GB/mes","USD","Und","Und","Producto",0.17,"Información Localizada S.A.S.","IT-GO-CP-00-114"]
[133,"SI","Zona Todas","Lote 3","81112106","CP-BIGTABLE-STORAGE-HDD_GB/mes","USD","Und","Und","Producto",2.5999999999999999E-2,"Eforcers S.A.","IT-GO-CP-00-115"]
[133,"SI","Zona Todas","Lote 3","81112106","CP-BIGTABLE-STORAGE-HDD_GB/mes","USD","Und","Und","Producto",2.5999999999999999E-2,"Información Localizada S.A.S.","IT-GO-CP-00-115"]
[134,"SI","Zona Todas","Lote 3","81112106","CP-BIGTABLE-NETWORK-CROSSREG_GB/mes","USD","Und","Und","Producto",0.12,"Eforcers S.A.","IT-GO-CP-00-116"]
[134,"SI","Zona Todas","Lote 3","81112106","CP-BIGTABLE-NETWORK-CROSSREG_GB/mes","USD","Und","Und","Producto",0.12,"Información Localizada S.A.S.","IT-GO-CP-00-116"]
[135,"SI","Zona Todas","Lote 3","81112106","CP-BIGTABLE-NETWORK-INTERNET-EGRESS_GB/mes","USD","Und","Und","Producto",0.23,"Eforcers S.A.","IT-GO-CP-00-117"]
[135,"SI","Zona Todas","Lote 3","81112106","CP-BIGTABLE-NETWORK-INTERNET-EGRESS_GB/mes","USD","Und","Und","Producto",0.23,"Información Localizada S.A.S.","IT-GO-CP-00-117"]

{"sheet":"Lote 3 Original","index":7,"n_rows":479,"n_cols":20,"rows_kept":479,"cut":false,"hidden":true,"merged":[]}
["Código matriz","Excento de IVA","Zona","Lote","Codigo","Nombre Producto","Moneda","Unidad de Medida","Unidad de Servicio","Tipo","Precio ","Proveedor","Número de parte",null,"Menor valor","proveedor 1","proveedor 2","proveedor 3","proveedor 4","proveedor 5"]
[1,"NO","Zona Todas","Lote 3","81112106","Servicio_Experto en GCP_Experto tipo 1_Remoto_Todas las zonas_Por hora","COP","Und","Und","Servicio",218589,"Eforcers S.A.","IT-GO-CP-01-01",null,{"$f":"MIN(IF(P2=0,1000000000000,P2),IF(Q2=0,1000000000000,Q2),IF(R2=0,1000000000000,R2),IF(S2=0,1000000000000,S2),IF(T2=0,1000000000000,T2))","v":559274.02749999997},{"$f":"SUM(IF($N:$N=1,$K:$K,0))","v":562086.53929999995},{"$f":"SUM(IF($N:$N=2,$K:$K,0))","v":559274.02749999997},{"$f":"SUM(IF($N:$N=3,$K:$K,0))","v":0},{"$f":"SUM(IF($N:$N=4,$K:$K,0))","v":0},{"$f":"SUM(IF($N:$N=5,$K:$K,0))","v":0}]
[1,"NO","Zona Todas","Lote 3","81112106","Servicio_Experto en GCP_Experto tipo 1_Remoto_Todas las zonas_Por hora","COP","Und","Und","Servicio",217497.09589999999,"Información Localizada S.A.S.","IT-GO-CP-01-01"]
[2,"NO","Zona 1","Lote 3","81112106","Servicio_Experto en GCP_Experto tipo 1_Presencial_Zona 1_Por hora","COP","Und","Und","Servicio",374724,"Eforcers S.A.","IT-GO-CP-01-02"]
[2,"NO","Zona 1","Lote 3","81112106","Servicio_Experto en GCP_Experto tipo 1_Presencial_Zona 1_Por hora","COP","Und","Und","Servicio",378473.32179999998,"Información Localizada S.A.S.","IT-GO-CP-01-02"]
[3,"NO","Zona 2","Lote 3","81112106","Servicio_Experto en GCP_Experto tipo 1_Presencial_Zona 2_Por hora","COP","Und","Und","Servicio",562086,"Eforcers S.A.","IT-GO-CP-01-03"]
[3,"NO","Zona 2","Lote 3","81112106","Servicio_Experto en GCP_Experto tipo 1_Presencial_Zona 2_Por hora","COP","Und","Und","Servicio",559273.48820000002,"Información Localizada S.A.S.","IT-GO-CP-01-03"]
[4,"NO","Zona 3","Lote 3","81112106","Servicio_Experto en GCP_Experto tipo 1_Presencial_Zona 3_Por hora","COP","Und","Und","Servicio",780675,"Eforcers S.A.","IT-GO-CP-01-04"]
[4,"NO","Zona 3","Lote 3","81112106","Servicio_Experto en GCP_Experto tipo 1_Presencial_Zona 3_Por hora","COP","Und","Und","Servicio",788480.70909999998,"Información Localizada S.A.S.","IT-GO-CP-01-04"]
[5,"NO","Zona Todas","Lote 3","81112106","Servicio_Experto en GCP_Experto tipo 2_Remoto_Todas las zonas_Por hora","COP","Und","Und","Servicio",218589,"Eforcers S.A.","IT-GO-CP-01-01"]
[5,"NO","Zona Todas","Lote 3","81112106","Servicio_Experto en GCP_Experto tipo 2_Remoto_Todas las zonas_Por hora","COP","Und","Und","Servicio",217497.09589999999,"Información Localizada S.A.S.","IT-GO-CP-01-01"]
[6,"NO","Zona 1","Lote 3","81112106","Servicio_Experto en GCP_Experto tipo 2_Presencial_Zona 1_Por hora","COP","Und","Und","Servicio",374724,"Eforcers S.A.","IT-GO-CP-01-02"]
[6,"NO","Zona 1","Lote 3","81112106","Servicio_Experto en GCP_Experto tipo 2_Presencial_Zona 1_Por hora","COP","Und","Und","Servicio",378473.32179999998,"Información Localizada S.A.S.","IT-GO-CP-01-02"]
[7,"NO","Zona 2","Lote 3","81112106","Servicio_Experto en GCP_Experto tipo 2_Presencial_Zona 2_Por hora","COP","Und","Und","Servicio",562086,"Eforcers S.A.","IT-GO-CP-01-03"]
[7,"NO","Zona 2","Lote 3","81112106","Servicio_Experto en GCP_Experto tipo 2_Presencial_Zona 2_Por hora","COP","Und","Und","Servicio",559273.48820000002,"Información Localizada S.A.S.","IT-GO-CP-01-03"]
[8,"NO","Zona 3","Lote 3","81112106","Servicio_Experto en GCP_Experto tipo 2_Presencial_Zona 3_Por hora","COP","Und","Und","Servicio",780675,"Eforcers S.A.","IT-GO-CP-01-04"]
[8,"NO","Zona 3","Lote 3","81112106","Servicio_Experto en GCP_Experto tipo 2_Presencial_Zona 3_Por hora","COP","Und","Und","Servicio",788480.70909999998,"Información Localizada S.A.S.","IT-GO-CP-01-04"]
[9,"NO","Zona Todas","Lote 3","81112106","Servicio_Experto en GCP_Experto tipo 3_Remoto_Todas las zonas_Por hora","COP","Und","Und","Servicio",218589,"Eforcers S.A.","IT-GO-CP-01-01"]
[9,"NO","Zona Todas","Lote 3","81112106","Servicio_Experto en GCP_Experto tipo 3_Remoto_Todas las zonas_Por hora","COP","Und","Und","Servicio",217497.09589999999,"Información Localizada S.A.S.","IT-GO-CP-01-01"]
[10,"NO","Zona 1","Lote 3","81112106","Servicio_Experto en GCP_Experto tipo 3_Presencial_Zona 1_Por hora","COP","Und","Und","Servicio",374724,"Eforcers S.A.","IT-GO-CP-01-02"]
[10,"NO","Zona 1","Lote 3","81112106","Servicio_Experto en GCP_Experto tipo 3_Presencial_Zona 1_Por hora","COP","Und","Und","Servicio",378473.32179999998,"Información Localizada S.A.S.","IT-GO-CP-01-02"]
[11,"NO","Zona 2","Lote 3","81112106","Servicio_Experto en GCP_Experto tipo 3_Presencial_Zona 2_Por hora","COP","Und","Und","Servicio",562086,"Eforcers S.A.","IT-GO-CP-01-03",1]
[11,"NO","Zona 2","Lote 3","81112106","Servicio_Experto en GCP_Experto tipo 3_Presencial_Zona 2_Por hora","COP","Und","Und","Servicio",559273.48820000002,"Información Localizada S.A.S.","IT-GO-CP-01-03",2]
[12,"NO","Zona 3","Lote 3","81112106","Servicio_Experto en GCP_Experto tipo 3_Presencial_Zona 3_Por hora","COP","Und","Und","Servicio",780675,"Eforcers S.A.","IT-GO-CP-01-04"]
[12,"NO","Zona 3","Lote 3","81112106","Servicio_Experto en GCP_Experto tipo 3_Presencial_Zona 3_Por hora","COP","Und","Und","Servicio",788480.70909999998,"Información Localizada S.A.S.","IT-GO-CP-01-04"]
[13,"NO","Zona Todas","Lote 3","81112106","Servicio_Capacitación sobre GCP para usuario técnico__Remoto_Todas las zonas_Por sesión","COP","Und","Und","Servicio",2185890,"Eforcers S.A.","IT-GO-CP-02-01"]
[13,"NO","Zona Todas","Lote 3","81112106","Servicio_Capacitación sobre GCP para usuario técnico__Remoto_Todas las zonas_Por sesión","COP","Und","Und","Servicio",2174964.7135999999,"Información Localizada S.A.S.","IT-GO-CP-02-01"]
[14,"NO","Zona 1","Lote 3","81112106","Servicio_Capacitación sobre GCP para usuario técnico__Presencial_Zona 1_Por sesión","COP","Und","Und","Servicio",2560614,"Eforcers S.A.","IT-GO-CP-02-02"]
[14,"NO","Zona 1","Lote 3","81112106","Servicio_Capacitación sobre GCP para usuario técnico__Presencial_Zona 1_Por sesión","COP","Und","Und","Servicio",2586211.8128,"Información Localizada S.A.S.","IT-GO-CP-02-02"]
[15,"NO","Zona 2","Lote 3","81112106","Servicio_Capacitación sobre GCP para usuario técnico__Presencial_Zona 2_Por sesión","COP","Und","Und","Servicio",4496688,"Eforcers S.A.","IT-GO-CP-02-03"]
[15,"NO","Zona 2","Lote 3","81112106","Servicio_Capacitación sobre GCP para usuario técnico__Presencial_Zona 2_Por sesión","COP","Und","Und","Servicio",4474300.3227999993,"Información Localizada S.A.S.","IT-GO-CP-02-03"]
[16,"NO","Zona 3","Lote 3","81112106","Servicio_Capacitación sobre GCP para usuario técnico__Presencial_Zona 3_Por sesión","COP","Und","Und","Servicio",5121228,"Eforcers S.A.","IT-GO-CP-02-04"]
[16,"NO","Zona 3","Lote 3","81112106","Servicio_Capacitación sobre GCP para usuario técnico__Presencial_Zona 3_Por sesión","COP","Und","Und","Servicio",5172431.9528000001,"Información Localizada S.A.S.","IT-GO-CP-02-04"]
[17,"NO","Zona Todas","Lote 3","81112106","Servicio_Soporte técnico de GCP__Remoto_Todas las zonas_Por hora_Horario 6x12","COP","Und","Und","Servicio",281043,"Eforcers S.A.","IT-GO-CP-03-01"]
[17,"NO","Zona Todas","Lote 3","81112106","Servicio_Soporte técnico de GCP__Remoto_Todas las zonas_Por hora_Horario 6x12","COP","Und","Und","Servicio",372848.29819999996,"Información Localizada S.A.S.","IT-GO-CP-03-01"]
[18,"NO","Zona Todas","Lote 3","81112106","Servicio_Soporte técnico de GCP__Remoto_Todas las zonas_Por hora_Horario 7x24","COP","Und","Und","Servicio",452791.5,"Eforcers S.A.","IT-GO-CP-03-02"]
[18,"NO","Zona Todas","Lote 3","81112106","Servicio_Soporte técnico de GCP__Remoto_Todas las zonas_Por hora_Horario 7x24","COP","Und","Und","Servicio",466060.37274999998,"Información Localizada S.A.S.","IT-GO-CP-03-02"]
[19,"SI","Zona Todas","Lote 3","81112106","CP-COMPUTEENGINE-VMIMAGE-N1-STANDARD-1_Por hora","USD","Und","Und","Producto",6.7400000000000002E-2,"Eforcers S.A.","IT-GO-CP-00-01"]
[19,"SI","Zona Todas","Lote 3","81112106","CP-COMPUTEENGINE-VMIMAGE-N1-STANDARD-1_Por hora","USD","Und","Und","Producto",6.7400000000000002E-2,"Información Localizada S.A.S.","IT-GO-CP-00-01"]
[20,"SI","Zona Todas","Lote 3","81112106","CP-COMPUTEENGINE-VMIMAGE-N1-STANDARD-2_Por hora","USD","Und","Und","Producto",0.1348,"Eforcers S.A.","IT-GO-CP-00-02"]
[20,"SI","Zona Todas","Lote 3","81112106","CP-COMPUTEENGINE-VMIMAGE-N1-STANDARD-2_Por hora","USD","Und","Und","Producto",0.1348,"Información Localizada S.A.S.","IT-GO-CP-00-02"]
[21,"SI","Zona Todas","Lote 3","81112106","CP-COMPUTEENGINE-VMIMAGE-N1-STANDARD-4_Por hora","USD","Und","Und","Producto",0.2697,"Eforcers S.A.","IT-GO-CP-00-03"]
[21,"SI","Zona Todas","Lote 3","81112106","CP-COMPUTEENGINE-VMIMAGE-N1-STANDARD-4_Por hora","USD","Und","Und","Producto",0.2697,"Información Localizada S.A.S.","IT-GO-CP-00-03"]
[22,"SI","Zona Todas","Lote 3","81112106","CP-COMPUTEENGINE-VMIMAGE-N1-STANDARD-8_Por hora","USD","Und","Und","Producto",0.5393,"Eforcers S.A.","IT-GO-CP-00-04",1]
[22,"SI","Zona Todas","Lote 3","81112106","CP-COMPUTEENGINE-VMIMAGE-N1-STANDARD-8_Por hora","USD","Und","Und","Producto",0.5393,"Información Localizada S.A.S.","IT-GO-CP-00-04",2]
[23,"SI","Zona Todas","Lote 3","81112106","CP-COMPUTEENGINE-VMIMAGE-N1-STANDARD-16_Por hora","USD","Und","Und","Producto",1.0787,"Eforcers S.A.","IT-GO-CP-00-05"]
[23,"SI","Zona Todas","Lote 3","81112106","CP-COMPUTEENGINE-VMIMAGE-N1-STANDARD-16_Por hora","USD","Und","Und","Producto",1.0787,"Información Localizada S.A.S.","IT-GO-CP-00-05"]
[24,"SI","Zona Todas","Lote 3","81112106","CP-COMPUTEENGINE-VMIMAGE-N1-STANDARD-32_Por hora","USD","Und","Und","Producto",2.1574,"Eforcers S.A.","IT-GO-CP-00-06"]
[24,"SI","Zona Todas","Lote 3","81112106","CP-COMPUTEENGINE-VMIMAGE-N1-STANDARD-32_Por hora","USD","Und","Und","Producto",2.1574,"Información Localizada S.A.S.","IT-GO-CP-00-06"]
[25,"SI","Zona Todas","Lote 3","81112106","CP-COMPUTEENGINE-VMIMAGE-N1-STANDARD-64_Por hora","USD","Und","Und","Producto",4.3147000000000002,"Eforcers S.A.","IT-GO-CP-00-07"]
[25,"SI","Zona Todas","Lote 3","81112106","CP-COMPUTEENGINE-VMIMAGE-N1-STANDARD-64_Por hora","USD","Und","Und","Producto",4.3147000000000002,"Información Localizada S.A.S.","IT-GO-CP-00-07"]
[26,"SI","Zona Todas","Lote 3","81112106","CP-COMPUTEENGINE-VMIMAGE-N1-HIGHMEM-2_Por hora","USD","Und","Und","Producto",0.16789999999999999,"Eforcers S.A.","IT-GO-CP-00-08"]
[26,"SI","Zona Todas","Lote 3","81112106","CP-COMPUTEENGINE-VMIMAGE-N1-HIGHMEM-2_Por hora","USD","Und","Und","Producto",0.16789999999999999,"Información Localizada S.A.S.","IT-GO-CP-00-08"]
[27,"SI","Zona Todas","Lote 3","81112106","CP-COMPUTEENGINE-VMIMAGE-N1-HIGHMEM-4_Por hora","USD","Und","Und","Producto",0.33579999999999999,"Eforcers S.A.","IT-GO-CP-00-09"]
[27,"SI","Zona Todas","Lote 3","81112106","CP-COMPUTEENGINE-VMIMAGE-N1-HIGHMEM-4_Por hora","USD","Und","Und","Producto",0.33579999999999999,"Información Localizada S.A.S.","IT-GO-CP-00-09"]
[28,"SI","Zona Todas","Lote 3","81112106","CP-COMPUTEENGINE-VMIMAGE-N1-HIGHMEM-8_Por hora","USD","Und","Und","Producto",0.67159999999999997,"Eforcers S.A.","IT-GO-CP-00-10"]
[28,"SI","Zona Todas","Lote 3","81112106","CP-COMPUTEENGINE-VMIMAGE-N1-HIGHMEM-8_Por hora","USD","Und","Und","Producto",0.67159999999999997,"Información Localizada S.A.S.","IT-GO-CP-00-10"]
[29,"SI","Zona Todas","Lote 3","81112106","CP-COMPUTEENGINE-VMIMAGE-N1-HIGHMEM-16_Por hora","USD","Und","Und","Producto",1.3431,"Eforcers S.A.","IT-GO-CP-00-11"]
[29,"SI","Zona Todas","Lote 3","81112106","CP-COMPUTEENGINE-VMIMAGE-N1-HIGHMEM-16_Por hora","USD","Und","Und","Producto",1.3431,"Información Localizada S.A.S.","IT-GO-CP-00-11"]
[30,"SI","Zona Todas","Lote 3","81112106","CP-COMPUTEENGINE-VMIMAGE-N1-HIGHMEM-32_Por hora","USD","Und","Und","Producto",2.6861999999999999,"Eforcers S.A.","IT-GO-CP-00-12"]
[30,"SI","Zona Todas","Lote 3","81112106","CP-COMPUTEENGINE-VMIMAGE-N1-HIGHMEM-32_Por hora","USD","Und","Und","Producto",2.6861999999999999,"Información Localizada S.A.S.","IT-GO-CP-00-12"]
[31,"SI","Zona Todas","Lote 3","81112106","CP-COMPUTEENGINE-VMIMAGE-N1-HIGHMEM-64_Por hora","USD","Und","Und","Producto",5.3724999999999996,"Eforcers S.A.","IT-GO-CP-00-13"]
[31,"SI","Zona Todas","Lote 3","81112106","CP-COMPUTEENGINE-VMIMAGE-N1-HIGHMEM-64_Por hora","USD","Und","Und","Producto",5.3724999999999996,"Información Localizada S.A.S.","IT-GO-CP-00-13"]
[32,"SI","Zona Todas","Lote 3","81112106","CP-COMPUTEENGINE-VMIMAGE-N1-HIGHCPU-2_Por hora","USD","Und","Und","Producto",0.10059999999999999,"Eforcers S.A.","IT-GO-CP-00-14"]
[32,"SI","Zona Todas","Lote 3","81112106","CP-COMPUTEENGINE-VMIMAGE-N1-HIGHCPU-2_Por hora","USD","Und","Und","Producto",0.10059999999999999,"Información Localizada S.A.S.","IT-GO-CP-00-14"]
[33,"SI","Zona Todas","Lote 3","81112106","CP-COMPUTEENGINE-VMIMAGE-N1-HIGHCPU-4_Por hora","USD","Und","Und","Producto",0.20119999999999999,"Eforcers S.A.","IT-GO-CP-00-15"]
[33,"SI","Zona Todas","Lote 3","81112106","CP-COMPUTEENGINE-VMIMAGE-N1-HIGHCPU-4_Por hora","USD","Und","Und","Producto",0.20119999999999999,"Información Localizada S.A.S.","IT-GO-CP-00-15"]
[34,"SI","Zona Todas","Lote 3","81112106","CP-COMPUTEENGINE-VMIMAGE-N1-HIGHCPU-8_Por hora","USD","Und","Und","Producto",0.40229999999999999,"Eforcers S.A.","IT-GO-CP-00-16"]
[34,"SI","Zona Todas","Lote 3","81112106","CP-COMPUTEENGINE-VMIMAGE-N1-HIGHCPU-8_Por hora","USD","Und","Und","Producto",0.40229999999999999,"Información Localizada S.A.S.","IT-GO-CP-00-16"]
[35,"SI","Zona Todas","Lote 3","81112106","CP-COMPUTEENGINE-VMIMAGE-N1-HIGHCPU-16_Por hora","USD","Und","Und","Producto",0.80459999999999998,"Eforcers S.A.","IT-GO-CP-00-17"]
[35,"SI","Zona Todas","Lote 3","81112106","CP-COMPUTEENGINE-VMIMAGE-N1-HIGHCPU-16_Por hora","USD","Und","Und","Producto",0.80459999999999998,"Información Localizada S.A.S.","IT-GO-CP-00-17"]
[36,"SI","Zona Todas","Lote 3","81112106","CP-COMPUTEENGINE-VMIMAGE-N1-HIGHCPU-32_Por hora","USD","Und","Und","Producto",1.6092,"Eforcers S.A.","IT-GO-CP-00-18"]
[36,"SI","Zona Todas","Lote 3","81112106","CP-COMPUTEENGINE-VMIMAGE-N1-HIGHCPU-32_Por hora","USD","Und","Und","Producto",1.6092,"Información Localizada S.A.S.","IT-GO-CP-00-18"]
[37,"SI","Zona Todas","Lote 3","81112106","CP-COMPUTEENGINE-VMIMAGE-N1-HIGHCPU-64_Por hora","USD","Und","Und","Producto",3.2185000000000001,"Eforcers S.A.","IT-GO-CP-00-19"]
[37,"SI","Zona Todas","Lote 3","81112106","CP-COMPUTEENGINE-VMIMAGE-N1-HIGHCPU-64_Por hora","USD","Und","Und","Producto",3.2185000000000001,"Información Localizada S.A.S.","IT-GO-CP-00-19"]
[38,"SI","Zona Todas","Lote 3","81112106","CP-COMPUTEENGINE-VMIMAGE-F1-MICRO-SHARED_Por hora","USD","Und","Und","Producto",1.06E-2,"Eforcers S.A.","IT-GO-CP-00-20"]
[38,"SI","Zona Todas","Lote 3","81112106","CP-COMPUTEENGINE-VMIMAGE-F1-MICRO-SHARED_Por hora","USD","Und","Und","Producto",1.06E-2,"Información Localizada S.A.S.","IT-GO-CP-00-20"]
[39,"SI","Zona Todas","Lote 3","81112106","CP-COMPUTEENGINE-VMIMAGE-G1-SMALL-SHARED_Por hora","USD","Und","Und","Producto",3.5700000000000003E-2,"Eforcers S.A.","IT-GO-CP-00-21"]
[39,"SI","Zona Todas","Lote 3","81112106","CP-COMPUTEENGINE-VMIMAGE-G1-SMALL-SHARED_Por hora","USD","Und","Und","Producto",3.5700000000000003E-2,"Información Localizada S.A.S.","IT-GO-CP-00-21"]
[40,"SI","Zona Todas","Lote 3","81112106","CP-COMPUTEENGINE-COMMITMENTCORE-1y_Por año","USD","Und","Und","Producto",2.8299999999999999E-2,"Eforcers S.A.","IT-GO-CP-00-22"]
[40,"SI","Zona Todas","Lote 3","81112106","CP-COMPUTEENGINE-COMMITMENTCORE-1y_Por año","USD","Und","Und","Producto",2.8274000000000001E-2,"Información Localizada S.A.S.","IT-GO-CP-00-22"]
[41,"SI","Zona Todas","Lote 3","81112106","CP-COMPUTEENGINE-COMMITMENTRAM-1yr_Por año","USD","Und","Und","Producto",3.8E-3,"Eforcers S.A.","IT-GO-CP-00-23"]
[41,"SI","Zona Todas","Lote 3","81112106","CP-COMPUTEENGINE-COMMITMENTRAM-1yr_Por año","USD","Und","Und","Producto",3.7859999999999999E-3,"Información Localizada S.A.S.","IT-GO-CP-00-23"]
[42,"SI","Zona Todas","Lote 3","81112106","CP-COMPUTEENGINE-OS-WINDOWS-SQL-STANDARD_Por core/hora","USD","Und","Und","Producto",0.16450000000000001,"Eforcers S.A.","IT-GO-CP-00-24"]
[42,"SI","Zona Todas","Lote 3","81112106","CP-COMPUTEENGINE-OS-WINDOWS-SQL-STANDARD_Por core/hora","USD","Und","Und","Producto",0.16450000000000001,"Información Localizada S.A.S.","IT-GO-CP-00-24"]
[43,"SI","Zona Todas","Lote 3","81112106","CP-COMPUTEENGINE-OS-WINDOWS-SQL-WEB_Por core/hora","USD","Und","Und","Producto",1.0999999999999999E-2,"Eforcers S.A.","IT-GO-CP-00-25"]
[43,"SI","Zona Todas","Lote 3","81112106","CP-COMPUTEENGINE-OS-WINDOWS-SQL-WEB_Por core/hora","USD","Und","Und","Producto",1.0999999999999999E-2,"Información Localizada S.A.S.","IT-GO-CP-00-25"]
[44,"SI","Zona Todas","Lote 3","81112106","CP-COMPUTEENGINE-OS-RHEL-SMALL_Por hora","USD","Und","Und","Producto",0.06,"Eforcers S.A.","IT-GO-CP-00-26"]
[44,"SI","Zona Todas","Lote 3","81112106","CP-COMPUTEENGINE-OS-RHEL-SMALL_Por hora","USD","Und","Und","Producto",0.06,"Información Localizada S.A.S.","IT-GO-CP-00-26"]
[45,"SI","Zona Todas","Lote 3","81112106","CP-COMPUTEENGINE-OS-RHEL-LARGE_Por hora","USD","Und","Und","Producto",0.13,"Eforcers S.A.","IT-GO-CP-00-27"]
[45,"SI","Zona Todas","Lote 3","81112106","CP-COMPUTEENGINE-OS-RHEL-LARGE_Por hora","USD","Und","Und","Producto",0.13,"Información Localizada S.A.S.","IT-GO-CP-00-27"]
[46,"SI","Zona Todas","Lote 3","81112106","CP-COMPUTEENGINE-OS-SUSE_Por hora","USD","Und","Und","Producto",0.11,"Eforcers S.A.","IT-GO-CP-00-28"]
[46,"SI","Zona Todas","Lote 3","81112106","CP-COMPUTEENGINE-OS-SUSE_Por hora","USD","Und","Und","Producto",0.11,"Información Localizada S.A.S.","IT-GO-CP-00-28"]
[47,"SI","Zona Todas","Lote 3","81112106","CP-COMPUTEENGINE-OS-SUSE-SHARED_Por hora","USD","Und","Und","Producto",0.02,"Eforcers S.A.","IT-GO-CP-00-29"]
[47,"SI","Zona Todas","Lote 3","81112106","CP-COMPUTEENGINE-OS-SUSE-SHARED_Por hora","USD","Und","Und","Producto",0.02,"Información Localizada S.A.S.","IT-GO-CP-00-29"]
[48,"SI","Zona Todas","Lote 3","81112106","CP-COMPUTEENGINE-OS-WINDOWS_Por hora","USD","Und","Und","Producto",0.04,"Eforcers S.A.","IT-GO-CP-00-30"]
[48,"SI","Zona Todas","Lote 3","81112106","CP-COMPUTEENGINE-OS-WINDOWS_Por hora","USD","Und","Und","Producto",0.04,"Información Localizada S.A.S.","IT-GO-CP-00-30"]
[49,"SI","Zona Todas","Lote 3","81112106","CP-COMPUTEENGINE-OS-WINDOWS-SHARED_Por hora","USD","Und","Und","Producto",0.2,"Eforcers S.A.","IT-GO-CP-00-31"]
[49,"SI","Zona Todas","Lote 3","81112106","CP-COMPUTEENGINE-OS-WINDOWS-SHARED_Por hora","USD","Und","Und","Producto",0.02,"Información Localizada S.A.S.","IT-GO-CP-00-31"]
[50,"SI","Zona Todas","Lote 3","81112106","CP-COMPUTEENGINE-OS-WINDOWS-SQL-STANDARD_Por hora","USD","Und","Und","Producto",0.16450000000000001,"Eforcers S.A.","IT-GO-CP-00-32"]
[50,"SI","Zona Todas","Lote 3","81112106","CP-COMPUTEENGINE-OS-WINDOWS-SQL-STANDARD_Por hora","USD","Und","Und","Producto",0.16450000000000001,"Información Localizada S.A.S.","IT-GO-CP-00-32"]
[51,"SI","Zona Todas","Lote 3","81112106","CP-COMPUTEENGINE-OS-WINDOWS-SQL-WEB_Por hora","USD","Und","Und","Producto",1.0999999999999999E-2,"Eforcers S.A.","IT-GO-CP-00-33"]
[51,"SI","Zona Todas","Lote 3","81112106","CP-COMPUTEENGINE-OS-WINDOWS-SQL-WEB_Por hora","USD","Und","Und","Producto",1.0999999999999999E-2,"Información Localizada S.A.S.","IT-GO-CP-00-33"]
[52,"SI","Zona Todas","Lote 3","81112106","CP-COMPUTEENGINE-STORAGE-LOCAL-SSD_GB/mes","USD","Und","Und","Producto",0.29399999999999998,"Eforcers S.A.","IT-GO-CP-00-34"]
[52,"SI","Zona Todas","Lote 3","81112106","CP-COMPUTEENGINE-STORAGE-LOCAL-SSD_GB/mes","USD","Und","Und","Producto",0.29399999999999998,"Información Localizada S.A.S.","IT-GO-CP-00-34"]
[53,"SI","Zona Todas","Lote 3","81112106","CP-COMPUTEENGINE-STORAGE-PD-CAPACITY_GB/mes","USD","Und","Und","Producto",5.3999999999999999E-2,"Eforcers S.A.","IT-GO-CP-00-35"]
[53,"SI","Zona Todas","Lote 3","81112106","CP-COMPUTEENGINE-STORAGE-PD-CAPACITY_GB/mes","USD","Und","Und","Producto",5.3999999999999999E-2,"Información Localizada S.A.S.","IT-GO-CP-00-35"]
[54,"SI","Zona Todas","Lote 3","81112106","CP-COMPUTEENGINE-STORAGE-PD-SNAPSHOT_GB/mes","USD","Und","Und","Producto",3.9E-2,"Eforcers S.A.","IT-GO-CP-00-36"]
[54,"SI","Zona Todas","Lote 3","81112106","CP-COMPUTEENGINE-STORAGE-PD-SNAPSHOT_GB/mes","USD","Und","Und","Producto",3.9E-2,"Información Localizada S.A.S.","IT-GO-CP-00-36"]
[55,"SI","Zona Todas","Lote 3","81112106","CP-COMPUTEENGINE-STORAGE-PD-SSD-CAPACITY_GB/mes","USD","Und","Und","Producto",0.23,"Eforcers S.A.","IT-GO-CP-00-37"]
[55,"SI","Zona Todas","Lote 3","81112106","CP-COMPUTEENGINE-STORAGE-PD-SSD-CAPACITY_GB/mes","USD","Und","Und","Producto",0.23,"Información Localizada S.A.S.","IT-GO-CP-00-37"]
[56,"SI","Zona Todas","Lote 3","81112106","CP-COMPUTEENGINE-STORAGE-IMAGE_GB/mes","USD","Und","Und","Producto",0.115,"Eforcers S.A.","IT-GO-CP-00-38"]
[56,"SI","Zona Todas","Lote 3","81112106","CP-COMPUTEENGINE-STORAGE-IMAGE_GB/mes","USD","Und","Und","Producto",0.115,"Información Localizada S.A.S.","IT-GO-CP-00-38"]
[57,"SI","Zona Todas","Lote 3","81112106","CP-COMPUTEENGINE-INTERNET-EGRESS_GB/mes","USD","Und","Und","Producto",0.23,"Eforcers S.A.","IT-GO-CP-00-39"]
[57,"SI","Zona Todas","Lote 3","81112106","CP-COMPUTEENGINE-INTERNET-EGRESS_GB/mes","USD","Und","Und","Producto",0.23,"Información Localizada S.A.S.","IT-GO-CP-00-39"]
[58,"SI","Zona Todas","Lote 3","81112106","CP-BIGSTORE-INTER-REGION-EGRESS_GB/mes","USD","Und","Und","Producto",0.14000000000000001,"Eforcers S.A.","IT-GO-CP-00-40"]
[58,"SI","Zona Todas","Lote 3","81112106","CP-BIGSTORE-INTER-REGION-EGRESS_GB/mes","USD","Und","Und","Producto",0.14000000000000001,"Información Localizada S.A.S.","IT-GO-CP-00-40"]
[59,"SI","Zona Todas","Lote 3","81112106","CP-COMPUTEENGINE-INTERCONNECT-EGRESS_GB/mes","USD","Und","Und","Producto",0.06,"Eforcers S.A.","IT-GO-CP-00-41"]
[59,"SI","Zona Todas","Lote 3","81112106","CP-COMPUTEENGINE-INTERCONNECT-EGRESS_GB/mes","USD","Und","Und","Producto",0.06,"Información Localizada S.A.S.","IT-GO-CP-00-41"]
[60,"SI","Zona Todas","Lote 3","81112106","FORWARDING_RULE_CHARGE_BASE_por número de reglas","USD","Und","Und","Producto",3.7999999999999999E-2,"Eforcers S.A.","IT-GO-CP-00-42"]
[60,"SI","Zona Todas","Lote 3","81112106","FORWARDING_RULE_CHARGE_BASE_por número de reglas","USD","Und","Und","Producto",3.7999999999999999E-2,"Información Localizada S.A.S.","IT-GO-CP-00-42"]
[61,"SI","Zona Todas","Lote 3","81112106","FORWARDING_RULE_CHARGE_EXTRA_por número de reglas","USD","Und","Und","Producto",1.4999999999999999E-2,"Eforcers S.A.","IT-GO-CP-00-43"]
[61,"SI","Zona Todas","Lote 3","81112106","FORWARDING_RULE_CHARGE_EXTRA_por número de reglas","USD","Und","Und","Producto",1.4999999999999999E-2,"Información Localizada S.A.S.","IT-GO-CP-00-43"]
[62,"SI","Zona Todas","Lote 3","81112106","NETWORK_LOAD_BALANCED_INGRESS_NA_GB/mes","USD","Und","Und","Producto",1.2E-2,"Eforcers S.A.","IT-GO-CP-00-44"]
[62,"SI","Zona Todas","Lote 3","81112106","NETWORK_LOAD_BALANCED_INGRESS_NA_GB/mes","USD","Und","Und","Producto",1.2E-2,"Información Localizada S.A.S.","IT-GO-CP-00-44"]
[63,"SI","Zona Todas","Lote 3","81112106","VPN_TUNNEL_DEFAULT_hora","USD","Und","Und","Producto",7.4999999999999997E-2,"Eforcers S.A.","IT-GO-CP-00-45"]
[63,"SI","Zona Todas","Lote 3","81112106","VPN_TUNNEL_DEFAULT_hora","USD","Und","Und","Producto",7.4999999999999997E-2,"Información Localizada S.A.S.","IT-GO-CP-00-45"]
[64,"SI","Zona Todas","Lote 3","81112106","CP-COMPUTEENGINE-INTER-ZONE-EGRESS_GB/mes","USD","Und","Und","Producto",0.01,"Eforcers S.A.","IT-GO-CP-00-46"]
[64,"SI","Zona Todas","Lote 3","81112106","CP-COMPUTEENGINE-INTER-ZONE-EGRESS_GB/mes","USD","Und","Und","Producto",0.01,"Información Localizada S.A.S.","IT-GO-CP-00-46"]
[65,"SI","Zona Todas","Lote 3","81112106","CP-COMPUTEENGINE-INTER-REGION-EGRESS_GB/mes","USD","Und","Und","Producto",0.14000000000000001,"Eforcers S.A.","IT-GO-CP-00-47"]
[65,"SI","Zona Todas","Lote 3","81112106","CP-COMPUTEENGINE-INTER-REGION-EGRESS_GB/mes","USD","Und","Und","Producto",0.14000000000000001,"Información Localizada S.A.S.","IT-GO-CP-00-47"]
[66,"SI","Zona Todas","Lote 3","81112106","CP-COMPUTEENGINE-GOOGLE-EGRESS_GB/mes","USD","Und","Und","Producto",0.14000000000000001,"Eforcers S.A.","IT-GO-CP-00-48"]
[66,"SI","Zona Todas","Lote 3","81112106","CP-COMPUTEENGINE-GOOGLE-EGRESS_GB/mes","USD","Und","Und","Producto",0.14000000000000001,"Información Localizada S.A.S.","IT-GO-CP-00-48"]
[67,"SI","Zona Todas","Lote 3","81112106","CP-CLOUDDNS-QUERY_Por 1.000.000 búsquedas","USD","Und","Und","Producto",4.0000000000000002E-4,"Eforcers S.A.","IT-GO-CP-00-49"]
[67,"SI","Zona Todas","Lote 3","81112106","CP-CLOUDDNS-QUERY_Por 1.000.000 búsquedas","USD","Und","Und","Producto",0.4,"Información Localizada S.A.S.","IT-GO-CP-00-49"]
[68,"SI","Zona Todas","Lote 3","81112106","CP-CLOUDDNS-ZONE_Número de zonas sancionadas/mes","USD","Und","Und","Producto",0.2,"Eforcers S.A.","IT-GO-CP-00-50"]
[68,"SI","Zona Todas","Lote 3","81112106","CP-CLOUDDNS-ZONE_Número de zonas sancionadas/mes","USD","Und","Und","Producto",0.2,"Información Localizada S.A.S.","IT-GO-CP-00-50"]
[69,"SI","Zona Todas","Lote 3","81112106","CP-COMPUTEENGINE-STATIC-IP-CHARGE_Unidades","USD","Und","Und","Producto",1.4E-2,"Eforcers S.A.","IT-GO-CP-00-51"]
[69,"SI","Zona Todas","Lote 3","81112106","CP-COMPUTEENGINE-STATIC-IP-CHARGE_Unidades","USD","Und","Und","Producto",1.4E-2,"Información Localizada S.A.S.","IT-GO-CP-00-51"]
[70,"SI","Zona Todas","Lote 3","81112106","CP-CLOUD-CDN-Cache-egress_GB/mes","USD","Und","Und","Producto",0.2,"Eforcers S.A.","IT-GO-CP-00-52"]
[70,"SI","Zona Todas","Lote 3","81112106","CP-CLOUD-CDN-Cache-egress_GB/mes","USD","Und","Und","Producto",0.2,"Información Localizada S.A.S.","IT-GO-CP-00-52"]
[71,"SI","Zona Todas","Lote 3","81112106","CP-CLOUD-CDN-Cache-fill_GB/mes","USD","Und","Und","Producto",0.15,"Eforcers S.A.","IT-GO-CP-00-53"]
[71,"SI","Zona Todas","Lote 3","81112106","CP-CLOUD-CDN-Cache-fill_GB/mes","USD","Und","Und","Producto",0.15,"Información Localizada S.A.S.","IT-GO-CP-00-53"]
[72,"SI","Zona Todas","Lote 3","81112106","CP-CLOUD-CDN-HTTP(S)-requests_Por 10.000 solicitudes","USD","Und","Und","Producto",9.9999999999999995E-7,"Eforcers S.A.","IT-GO-CP-00-54"]
[72,"SI","Zona Todas","Lote 3","81112106","CP-CLOUD-CDN-HTTP(S)-requests_Por 10.000 solicitudes","USD","Und","Und","Producto",7.4999999999999997E-3,"Información Localizada S.A.S.","IT-GO-CP-00-54"]
[73,"SI","Zona Todas","Lote 3","81112106","CP-CLOUD-CDN-Cache-invalidation_Por solicitud","USD","Und","Und","Producto",5.0000000000000001E-3,"Eforcers S.A.","IT-GO-CP-00-55"]
[73,"SI","Zona Todas","Lote 3","81112106","CP-CLOUD-CDN-Cache-invalidation_Por solicitud","USD","Und","Und","Producto",5.0000000000000001E-3,"Información Localizada S.A.S.","IT-GO-CP-00-55"]
[74,"SI","Zona Todas","Lote 3","81112106","CP-FUNCTIONS-GB-SECONDS_GB/segundo","USD","Und","Und","Producto",3.0000000000000001E-6,"Eforcers S.A.","IT-GO-CP-00-56"]
[74,"SI","Zona Todas","Lote 3","81112106","CP-FUNCTIONS-GB-SECONDS_GB/segundo","USD","Und","Und","Producto",1.9999999999999999E-6,"Información Localizada S.A.S.","IT-GO-CP-00-56"]
[75,"SI","Zona Todas","Lote 3","81112106","CP-FUNCTIONS-GHZ-SECONDS_GHz/segundo","USD","Und","Und","Producto",9.9999999999999995E-7,"Eforcers S.A.","IT-GO-CP-00-57"]
[75,"SI","Zona Todas","Lote 3","81112106","CP-FUNCTIONS-GHZ-SECONDS_GHz/segundo","USD","Und","Und","Producto",1.0000000000000001E-5,"Información Localizada S.A.S.","IT-GO-CP-00-57"]
[76,"SI","Zona Todas","Lote 3","81112106","CP-FUNCTIONS-EXECUTIONS_Por 10.000 solicitudes","USD","Und","Und","Producto",9.9999999999999995E-7,"Eforcers S.A.","IT-GO-CP-00-58"]
[76,"SI","Zona Todas","Lote 3","81112106","CP-FUNCTIONS-EXECUTIONS_Por 10.000 solicitudes","USD","Und","Und","Producto",0.4,"Información Localizada S.A.S.","IT-GO-CP-00-58"]
[77,"SI","Zona Todas","Lote 3","81112106","CP-FUNCTIONS-BW-I_GB/mes","USD","Und","Und","Producto",0.06,"Eforcers S.A.","IT-GO-CP-00-59"]
[77,"SI","Zona Todas","Lote 3","81112106","CP-FUNCTIONS-BW-I_GB/mes","USD","Und","Und","Producto",0.06,"Información Localizada S.A.S.","IT-GO-CP-00-59"]
[78,"SI","Zona Todas","Lote 3","81112106","CP-FUNCTIONS-BW-O_GB/mes","USD","Und","Und","Producto",0.12,"Eforcers S.A.","IT-GO-CP-00-60"]
[78,"SI","Zona Todas","Lote 3","81112106","CP-FUNCTIONS-BW-O_GB/mes","USD","Und","Und","Producto",0.12,"Información Localizada S.A.S.","IT-GO-CP-00-60"]
[79,"SI","Zona Todas","Lote 3","81112106","CP-GAE-FRONTEND-INSTANCE_Por hora","USD","Und","Und","Producto",6.5000000000000002E-2,"Eforcers S.A.","IT-GO-CP-00-61"]
[79,"SI","Zona Todas","Lote 3","81112106","CP-GAE-FRONTEND-INSTANCE_Por hora","USD","Und","Und","Producto",6.5000000000000002E-2,"Información Localizada S.A.S.","IT-GO-CP-00-61"]
[80,"SI","Zona Todas","Lote 3","81112106","CP-GAE-BACKEND-INSTANCE_Por hora","USD","Und","Und","Producto",6.5000000000000002E-2,"Eforcers S.A.","IT-GO-CP-00-62"]
[80,"SI","Zona Todas","Lote 3","81112106","CP-GAE-BACKEND-INSTANCE_Por hora","USD","Und","Und","Producto",6.5000000000000002E-2,"Información Localizada S.A.S.","IT-GO-CP-00-62"]
[81,"SI","Zona Todas","Lote 3","81112106","CP-GAE-BW-O_GB/mes","USD","Und","Und","Producto",0.15,"Eforcers S.A.","IT-GO-CP-00-63"]
[81,"SI","Zona Todas","Lote 3","81112106","CP-GAE-BW-O_GB/mes","USD","Und","Und","Producto",0.15,"Información Localizada S.A.S.","IT-GO-CP-00-63"]
[82,"SI","Zona Todas","Lote 3","81112106","CP-GAE-STOR-TASK-QUEUE_GB / mes","USD","Und","Und","Producto",0.03,"Eforcers S.A.","IT-GO-CP-00-64"]
[82,"SI","Zona Todas","Lote 3","81112106","CP-GAE-STOR-TASK-QUEUE_GB / mes","USD","Und","Und","Producto",0.03,"Información Localizada S.A.S.","IT-GO-CP-00-64"]
[83,"SI","Zona Todas","Lote 3","81112106","CP-GAE-TOTAL-APP-SIZE-BYTES_GB / mes","USD","Und","Und","Producto",2.3E-2,"Eforcers S.A.","IT-GO-CP-00-65"]
[83,"SI","Zona Todas","Lote 3","81112106","CP-GAE-TOTAL-APP-SIZE-BYTES_GB / mes","USD","Und","Und","Producto",2.3E-2,"Información Localizada S.A.S.","IT-GO-CP-00-65"]
[84,"SI","Zona Todas","Lote 3","81112106","CP-GAE-DATASTORE-STORAGE_GB / mes","USD","Und","Und","Producto",0.23400000000000001,"Eforcers S.A.","IT-GO-CP-00-66"]
[84,"SI","Zona Todas","Lote 3","81112106","CP-GAE-DATASTORE-STORAGE_GB / mes","USD","Und","Und","Producto",0.23400000000000001,"Información Localizada S.A.S.","IT-GO-CP-00-66"]
[85,"SI","Zona Todas","Lote 3","81112106","CP-GAE-DATASTORE-WRITE-OPS_100k entity writes","USD","Und","Und","Producto",0.23400000000000001,"Eforcers S.A.","IT-GO-CP-00-67"]
[85,"SI","Zona Todas","Lote 3","81112106","CP-GAE-DATASTORE-WRITE-OPS_100k entity writes","USD","Und","Und","Producto",0.23400000000000001,"Información Localizada S.A.S.","IT-GO-CP-00-67"]
[86,"SI","Zona Todas","Lote 3","81112106","CP-GAE-DATASTORE-READ-OPS_100k entity reads","USD","Und","Und","Producto",0.08,"Eforcers S.A.","IT-GO-CP-00-68"]
[86,"SI","Zona Todas","Lote 3","81112106","CP-GAE-DATASTORE-READ-OPS_100k entity reads","USD","Und","Und","Producto",0.08,"Información Localizada S.A.S.","IT-GO-CP-00-68"]
[87,"SI","Zona Todas","Lote 3","81112106","CP-GAE-DATASTORE-DELETE-OPS_100k entity delete","USD","Und","Und","Producto",0.03,"Eforcers S.A.","IT-GO-CP-00-69"]
[87,"SI","Zona Todas","Lote 3","81112106","CP-GAE-DATASTORE-DELETE-OPS_100k entity delete","USD","Und","Und","Producto",0.03,"Información Localizada S.A.S.","IT-GO-CP-00-69"]
[88,"SI","Zona Todas","Lote 3","81112106","CP-GAE-OP-LOGS_GB/mes","USD","Und","Und","Producto",0.156,"Eforcers S.A.","IT-GO-CP-00-70"]
[88,"SI","Zona Todas","Lote 3","81112106","CP-GAE-OP-LOGS_GB/mes","USD","Und","Und","Producto",0.156,"Información Localizada S.A.S.","IT-GO-CP-00-70"]
[89,"SI","Zona Todas","Lote 3","81112106","CP-GAE-SSL-VIP_Por VIP Por mes","USD","Und","Und","Producto",50.7,"Eforcers S.A.","IT-GO-CP-00-71"]
[89,"SI","Zona Todas","Lote 3","81112106","CP-GAE-SSL-VIP_Por VIP Por mes","USD","Und","Und","Producto",50.7,"Información Localizada S.A.S.","IT-GO-CP-00-71"]
[90,"SI","Zona Todas","Lote 3","81112106","CP-GAE-SEARCH-BYTES-INDEXED_GB/mes","USD","Und","Und","Producto",2.6,"Eforcers S.A.","IT-GO-CP-00-72"]
[90,"SI","Zona Todas","Lote 3","81112106","CP-GAE-SEARCH-BYTES-INDEXED_GB/mes","USD","Und","Und","Producto",2.6,"Información Localizada S.A.S.","IT-GO-CP-00-72"]
[91,"SI","Zona Todas","Lote 3","81112106","CP-GAE-SEARCH-BYTES-STORED_GB/mes","USD","Und","Und","Producto",0.23,"Eforcers S.A.","IT-GO-CP-00-73"]
[91,"SI","Zona Todas","Lote 3","81112106","CP-GAE-SEARCH-BYTES-STORED_GB/mes","USD","Und","Und","Producto",0.23,"Información Localizada S.A.S.","IT-GO-CP-00-73"]
[92,"SI","Zona Todas","Lote 3","81112106","CP-GAE-SEARCH-COMPLEX-SEARCHES_10K oPorations","USD","Und","Und","Producto",0.65,"Eforcers S.A.","IT-GO-CP-00-74"]
[92,"SI","Zona Todas","Lote 3","81112106","CP-GAE-SEARCH-COMPLEX-SEARCHES_10K oPorations","USD","Und","Und","Producto",0.65,"Información Localizada S.A.S.","IT-GO-CP-00-74"]
[93,"SI","Zona Todas","Lote 3","81112106","CP-GAE-SEARCH-SIMPLE-SEARCHES_10K oPorations","USD","Und","Und","Producto",0.65,"Eforcers S.A.","IT-GO-CP-00-75"]
[93,"SI","Zona Todas","Lote 3","81112106","CP-GAE-SEARCH-SIMPLE-SEARCHES_10K oPorations","USD","Und","Und","Producto",0.65,"Información Localizada S.A.S.","IT-GO-CP-00-75"]
[94,"SI","Zona Todas","Lote 3","81112106","RESERVED-MEMCACHE-M1024-Q10000_GB/hora","USD","Und","Und","Producto",7.8E-2,"Eforcers S.A.","IT-GO-CP-00-76"]
[94,"SI","Zona Todas","Lote 3","81112106","RESERVED-MEMCACHE-M1024-Q10000_GB/hora","USD","Und","Und","Producto",7.8E-2,"Información Localizada S.A.S.","IT-GO-CP-00-76"]
[95,"SI","Zona Todas","Lote 3","81112106","CP-GAE-FLEX-INSTANCE-CORE-HOURS_Por hora","USD","Und","Und","Producto",6.6600000000000006E-2,"Eforcers S.A.","IT-GO-CP-00-77"]
[95,"SI","Zona Todas","Lote 3","81112106","CP-GAE-FLEX-INSTANCE-CORE-HOURS_Por hora","USD","Und","Und","Producto",6.6600000000000006E-2,"Información Localizada S.A.S.","IT-GO-CP-00-77"]
[96,"SI","Zona Todas","Lote 3","81112106","CP-GAE-FLEX-INSTANCE-RAM_GB/mes","USD","Und","Und","Producto",8.8999999999999999E-3,"Eforcers S.A.","IT-GO-CP-00-78"]
[96,"SI","Zona Todas","Lote 3","81112106","CP-GAE-FLEX-INSTANCE-RAM_GB/mes","USD","Und","Und","Producto",8.8999999999999999E-3,"Información Localizada S.A.S.","IT-GO-CP-00-78"]
[97,"SI","Zona Todas","Lote 3","81112106","CP-GAE-FLEX-STORAGE-PD-CAPACITY_GB/mes","USD","Und","Und","Producto",5.1999999999999998E-2,"Eforcers S.A.","IT-GO-CP-00-79"]
[97,"SI","Zona Todas","Lote 3","81112106","CP-GAE-FLEX-STORAGE-PD-CAPACITY_GB/mes","USD","Und","Und","Producto",5.1999999999999998E-2,"Información Localizada S.A.S.","IT-GO-CP-00-79"]
[98,"SI","Zona Todas","Lote 3","81112106","CP-BIGQUERY-STORAGE_GB/mes","USD","Und","Und","Producto",0.02,"Eforcers S.A.","IT-GO-CP-00-80"]
[98,"SI","Zona Todas","Lote 3","81112106","CP-BIGQUERY-STORAGE_GB/mes","USD","Und","Und","Producto",0.02,"Información Localizada S.A.S.","IT-GO-CP-00-80"]
[99,"SI","Zona Todas","Lote 3","81112106","CP-BIGQUERY-QUERY_TB/mes","USD","Und","Und","Producto",5,"Eforcers S.A.","IT-GO-CP-00-81"]
[99,"SI","Zona Todas","Lote 3","81112106","CP-BIGQUERY-QUERY_TB/mes","USD","Und","Und","Producto",5.12,"Información Localizada S.A.S.","IT-GO-CP-00-81"]
[100,"SI","Zona Todas","Lote 3","81112106","CP-BIGQUERY-BATCHQUERY_TB/mes","USD","Und","Und","Producto",5,"Eforcers S.A.","IT-GO-CP-00-82"]
[100,"SI","Zona Todas","Lote 3","81112106","CP-BIGQUERY-BATCHQUERY_TB/mes","USD","Und","Und","Producto",5.12,"Información Localizada S.A.S.","IT-GO-CP-00-82"]
[101,"SI","Zona Todas","Lote 3","81112106","CP-BIGQUERY-STREAMING-INSERT_GB/mes","USD","Und","Und","Producto",5.1200000000000002E-2,"Eforcers S.A.","IT-GO-CP-00-83"]
[101,"SI","Zona Todas","Lote 3","81112106","CP-BIGQUERY-STREAMING-INSERT_GB/mes","USD","Und","Und","Producto",5.1200000000000002E-2,"Información Localizada S.A.S.","IT-GO-CP-00-83"]
[102,"SI","Zona Todas","Lote 3","81112106","CP_BIGQUERY_LONG_TERM_STORAGE_GB/mes","USD","Und","Und","Producto",0.01,"Eforcers S.A.","IT-GO-CP-00-84"]
[102,"SI","Zona Todas","Lote 3","81112106","CP_BIGQUERY_LONG_TERM_STORAGE_GB/mes","USD","Und","Und","Producto",0.01,"Información Localizada S.A.S.","IT-GO-CP-00-84"]
[103,"SI","Zona Todas","Lote 3","81112106","CP-DATAFLOW-BATCH_Por 1,000 trabajos","USD","Und","Und","Producto",0.38400000000000001,"Eforcers S.A.","IT-GO-CP-00-85"]
[103,"SI","Zona Todas","Lote 3","81112106","CP-DATAFLOW-BATCH_Por 1,000 trabajos","USD","Und","Und","Producto",0.01,"Información Localizada S.A.S.","IT-GO-CP-00-85"]
[104,"SI","Zona Todas","Lote 3","81112106","CP-DATAFLOW-STREAMING_Por 1,000 trabajos","USD","Und","Und","Producto",0.45419999999999999,"Eforcers S.A.","IT-GO-CP-00-86"]
[104,"SI","Zona Todas","Lote 3","81112106","CP-DATAFLOW-STREAMING_Por 1,000 trabajos","USD","Und","Und","Producto",0.45418399999999998,"Información Localizada S.A.S.","IT-GO-CP-00-86"]
[105,"SI","Zona Todas","Lote 3","81112106","CP-DATAPROC_Por hora","USD","Und","Und","Producto",0.01,"Eforcers S.A.","IT-GO-CP-00-87"]
[105,"SI","Zona Todas","Lote 3","81112106","CP-DATAPROC_Por hora","USD","Und","Und","Producto",0.01,"Información Localizada S.A.S.","IT-GO-CP-00-87"]
[106,"SI","Zona Todas","Lote 3","81112106","CP-PUBSUB-MESSAGE-DELIVERY-BASIC_Por 1,000 mensajes","USD","Und","Und","Producto",6.9999999999999999E-4,"Eforcers S.A.","IT-GO-CP-00-88"]
[106,"SI","Zona Todas","Lote 3","81112106","CP-PUBSUB-MESSAGE-DELIVERY-BASIC_Por 1,000 mensajes","USD","Und","Und","Producto",6.9999999999999999E-4,"Información Localizada S.A.S.","IT-GO-CP-00-88"]
[107,"SI","Zona Todas","Lote 3","81112106","CP-DLP_GB/mes","USD","Und","Und","Producto",10,"Eforcers S.A.","IT-GO-CP-00-89"]
[107,"SI","Zona Todas","Lote 3","81112106","CP-DLP_GB/mes","USD","Und","Und","Producto",10,"Información Localizada S.A.S.","IT-GO-CP-00-89"]
[108,"SI","Zona Todas","Lote 3","81112106","CP-SERVICECONTROL_Por 1,000 operaciones","USD","Und","Und","Producto",3.0000000000000001E-3,"Eforcers S.A.","IT-GO-CP-00-90"]
[108,"SI","Zona Todas","Lote 3","81112106","CP-SERVICECONTROL_Por 1,000 operaciones","USD","Und","Und","Producto",3.0000000000000001E-3,"Información Localizada S.A.S.","IT-GO-CP-00-90"]
[109,"SI","Zona Todas","Lote 3","81112106","CP-KMS-KEY-VERSION_Por 100 versiones","USD","Und","Und","Producto",6,"Eforcers S.A.","IT-GO-CP-00-91"]
[109,"SI","Zona Todas","Lote 3","81112106","CP-KMS-KEY-VERSION_Por 100 versiones","USD","Und","Und","Producto",6,"Información Localizada S.A.S.","IT-GO-CP-00-91"]
[110,"SI","Zona Todas","Lote 3","81112106","CP-KMS-CRYPTO-OPERATION_Por 1,000 operaciones","USD","Und","Und","Producto",3.0000000000000001E-3,"Eforcers S.A.","IT-GO-CP-00-92"]
[110,"SI","Zona Todas","Lote 3","81112106","CP-KMS-CRYPTO-OPERATION_Por 1,000 operaciones","USD","Und","Und","Producto",3.0000000000000001E-3,"Información Localizada S.A.S.","IT-GO-CP-00-92"]
[111,"SI","Zona Todas","Lote 3","81112106","TRANSLATE-BASE-TRANSLATE-1M_Por 1M caracteres","USD","Und","Und","Producto",20,"Eforcers S.A.","IT-GO-CP-00-93"]
[111,"SI","Zona Todas","Lote 3","81112106","TRANSLATE-BASE-TRANSLATE-1M_Por 1M caracteres","USD","Und","Und","Producto",20,"Información Localizada S.A.S.","IT-GO-CP-00-93"]
[112,"SI","Zona Todas","Lote 3","81112106","CP-VISION-LABEL-DETECTION-5M_Por 1,000 operaciones","USD","Und","Und","Producto",1.5,"Eforcers S.A.","IT-GO-CP-00-94"]
[112,"SI","Zona Todas","Lote 3","81112106","CP-VISION-LABEL-DETECTION-5M_Por 1,000 operaciones","USD","Und","Und","Producto",1.5,"Información Localizada S.A.S.","IT-GO-CP-00-94"]
[113,"SI","Zona Todas","Lote 3","81112106","CP-VISION-LABEL-DETECTION-20M_Por 1,000 operaciones","USD","Und","Und","Producto",1,"Eforcers S.A.","IT-GO-CP-00-95"]
[113,"SI","Zona Todas","Lote 3","81112106","CP-VISION-LABEL-DETECTION-20M_Por 1,000 operaciones","USD","Und","Und","Producto",1,"Información Localizada S.A.S.","IT-GO-CP-00-95"]
[114,"SI","Zona Todas","Lote 3","81112106","CP-VISION-OCR-5M_Por 1,000 operaciones","USD","Und","Und","Producto",1.5,"Eforcers S.A.","IT-GO-CP-00-96"]
[114,"SI","Zona Todas","Lote 3","81112106","CP-VISION-OCR-5M_Por 1,000 operaciones","USD","Und","Und","Producto",1.5,"Información Localizada S.A.S.","IT-GO-CP-00-96"]
[115,"SI","Zona Todas","Lote 3","81112106","CP-VISION-OCR-20M_Por 1,000 operaciones","USD","Und","Und","Producto",0.6,"Eforcers S.A.","IT-GO-CP-00-97"]
[115,"SI","Zona Todas","Lote 3","81112106","CP-VISION-OCR-20M_Por 1,000 operaciones","USD","Und","Und","Producto",0.6,"Información Localizada S.A.S.","IT-GO-CP-00-97"]
[116,"SI","Zona Todas","Lote 3","81112106","CP-VISION-FACIAL-DETECTION-5M_Por 1,000 operaciones","USD","Und","Und","Producto",1.5,"Eforcers S.A.","IT-GO-CP-00-98"]
[116,"SI","Zona Todas","Lote 3","81112106","CP-VISION-FACIAL-DETECTION-5M_Por 1,000 operaciones","USD","Und","Und","Producto",1.5,"Información Localizada S.A.S.","IT-GO-CP-00-98"]
[117,"SI","Zona Todas","Lote 3","81112106","CP-VISION-FACIAL-DETECTION-20M_Por 1,000 operaciones","USD","Und","Und","Producto",0.6,"Eforcers S.A.","IT-GO-CP-00-99"]
[117,"SI","Zona Todas","Lote 3","81112106","CP-VISION-FACIAL-DETECTION-20M_Por 1,000 operaciones","USD","Und","Und","Producto",0.6,"Información Localizada S.A.S.","IT-GO-CP-00-99"]
[118,"SI","Zona Todas","Lote 3","81112106","CP-VISION-LANDMARK-DETECTION-5M_Por 1,000 operaciones","USD","Und","Und","Producto",1.5,"Eforcers S.A.","IT-GO-CP-00-100"]
[118,"SI","Zona Todas","Lote 3","81112106","CP-VISION-LANDMARK-DETECTION-5M_Por 1,000 operaciones","USD","Und","Und","Producto",1.5,"Información Localizada S.A.S.","IT-GO-CP-00-100"]
[119,"SI","Zona Todas","Lote 3","81112106","CP-VISION-LANDMARK-DETECTION-20M_Por 1,000 operaciones","USD","Und","Und","Producto",0.6,"Eforcers S.A.","IT-GO-CP-00-101"]
[119,"SI","Zona Todas","Lote 3","81112106","CP-VISION-LANDMARK-DETECTION-20M_Por 1,000 operaciones","USD","Und","Und","Producto",0.6,"Información Localizada S.A.S.","IT-GO-CP-00-101"]
[120,"SI","Zona Todas","Lote 3","81112106","CP-VISION-LOGO-DETECTION-5M_Por 1,000 operaciones","USD","Und","Und","Producto",1.5,"Eforcers S.A.","IT-GO-CP-00-102"]
[120,"SI","Zona Todas","Lote 3","81112106","CP-VISION-LOGO-DETECTION-5M_Por 1,000 operaciones","USD","Und","Und","Producto",1.5,"Información Localizada S.A.S.","IT-GO-CP-00-102"]
[121,"SI","Zona Todas","Lote 3","81112106","CP-VISION-LOGO-DETECTION-20M_Por 1,000 operaciones","USD","Und","Und","Producto",0.6,"Eforcers S.A.","IT-GO-CP-00-103"]
[121,"SI","Zona Todas","Lote 3","81112106","CP-VISION-LOGO-DETECTION-20M_Por 1,000 operaciones","USD","Und","Und","Producto",0.6,"Información Localizada S.A.S.","IT-GO-CP-00-103"]
[122,"SI","Zona Todas","Lote 3","81112106","CP-VISION-IMAGE-PROPERTIES-5M_Por 1,000 operaciones","USD","Und","Und","Producto",1.5,"Eforcers S.A.","IT-GO-CP-00-104"]
[122,"SI","Zona Todas","Lote 3","81112106","CP-VISION-IMAGE-PROPERTIES-5M_Por 1,000 operaciones","USD","Und","Und","Producto",1.5,"Información Localizada S.A.S.","IT-GO-CP-00-104"]
[123,"SI","Zona Todas","Lote 3","81112106","CP-VISION-IMAGE-PROPERTIES-20M_Por 1,000 operaciones","USD","Und","Und","Producto",0.6,"Eforcers S.A.","IT-GO-CP-00-105"]
[123,"SI","Zona Todas","Lote 3","81112106","CP-VISION-IMAGE-PROPERTIES-20M_Por 1,000 operaciones","USD","Und","Und","Producto",0.6,"Información Localizada S.A.S.","IT-GO-CP-00-105"]
[124,"SI","Zona Todas","Lote 3","81112106","CP-NL-API-ENTITY-RECOGNITION_por registro de texto","USD","Und","Und","Producto",1,"Eforcers S.A.","IT-GO-CP-00-106"]
[124,"SI","Zona Todas","Lote 3","81112106","CP-NL-API-ENTITY-RECOGNITION_por registro de texto","USD","Und","Und","Producto",1,"Información Localizada S.A.S.","IT-GO-CP-00-106"]
[125,"SI","Zona Todas","Lote 3","81112106","CP-NL-API-SENTIMENT-ANALYSIS_por registro de texto","USD","Und","Und","Producto",1,"Eforcers S.A.","IT-GO-CP-00-107"]
[125,"SI","Zona Todas","Lote 3","81112106","CP-NL-API-SENTIMENT-ANALYSIS_por registro de texto","USD","Und","Und","Producto",1,"Información Localizada S.A.S.","IT-GO-CP-00-107"]
[126,"SI","Zona Todas","Lote 3","81112106","CP-NL-API-SYNTAX-ANALYSIS_por registro de texto","USD","Und","Und","Producto",0.5,"Eforcers S.A.","IT-GO-CP-00-108"]
[126,"SI","Zona Todas","Lote 3","81112106","CP-NL-API-SYNTAX-ANALYSIS_por registro de texto","USD","Und","Und","Producto",0.5,"Información Localizada S.A.S.","IT-GO-CP-00-108"]
[127,"SI","Zona Todas","Lote 3","81112106","CP-SPEECH-API-RECOGNITION_segundos","USD","Und","Und","Producto",4.0000000000000002E-4,"Eforcers S.A.","IT-GO-CP-00-109"]
[127,"SI","Zona Todas","Lote 3","81112106","CP-SPEECH-API-RECOGNITION_segundos","USD","Und","Und","Producto",4.0000000000000002E-4,"Información Localizada S.A.S.","IT-GO-CP-00-109"]
[128,"SI","Zona Todas","Lote 3","81112106","CP-ML-TRAINING_Por hora, Por ML training unit","USD","Und","Und","Producto",0.54,"Eforcers S.A.","IT-GO-CP-00-110"]
[128,"SI","Zona Todas","Lote 3","81112106","CP-ML-TRAINING_Por hora, Por ML training unit","USD","Und","Und","Producto",0.54,"Información Localizada S.A.S.","IT-GO-CP-00-110"]
[129,"SI","Zona Todas","Lote 3","81112106","CP-ML-TRAINING-STANDARD_Por hora, Por ML training unit","USD","Und","Und","Producto",5.4,"Eforcers S.A.","IT-GO-CP-00-111"]
[129,"SI","Zona Todas","Lote 3","81112106","CP-ML-TRAINING-STANDARD_Por hora, Por ML training unit","USD","Und","Und","Producto",5.4,"Información Localizada S.A.S.","IT-GO-CP-00-111"]
[130,"SI","Zona Todas","Lote 3","81112106","CP-ML-TRAINING-PREMIUM_Por hora, Por ML training unit","USD","Und","Und","Producto",40.5,"Eforcers S.A.","IT-GO-CP-00-112"]
[130,"SI","Zona Todas","Lote 3","81112106","CP-ML-TRAINING-PREMIUM_Por hora, Por ML training unit","USD","Und","Und","Producto",40.5,"Información Localizada S.A.S.","IT-GO-CP-00-112"]
[131,"SI","Zona Todas","Lote 3","81112106","CP-BIGTABLE-NODE_Por hora/node","USD","Und","Und","Producto",0.65,"Eforcers S.A.","IT-GO-CP-00-113"]
[131,"SI","Zona Todas","Lote 3","81112106","CP-BIGTABLE-NODE_Por hora/node","USD","Und","Und","Producto",0.65,"Información Localizada S.A.S.","IT-GO-CP-00-113"]
[132,"SI","Zona Todas","Lote 3","81112106","CP-BIGTABLE-STORAGE-SSD_GB/mes","USD","Und","Und","Producto",0.17,"Eforcers S.A.","IT-GO-CP-00-114"]
[132,"SI","Zona Todas","Lote 3","81112106","CP-BIGTABLE-STORAGE-SSD_GB/mes","USD","Und","Und","Producto",0.17,"Información Localizada S.A.S.","IT-GO-CP-00-114"]
[133,"SI","Zona Todas","Lote 3","81112106","CP-BIGTABLE-STORAGE-HDD_GB/mes","USD","Und","Und","Producto",2.5999999999999999E-2,"Eforcers S.A.","IT-GO-CP-00-115"]
[133,"SI","Zona Todas","Lote 3","81112106","CP-BIGTABLE-STORAGE-HDD_GB/mes","USD","Und","Und","Producto",2.5999999999999999E-2,"Información Localizada S.A.S.","IT-GO-CP-00-115"]
[134,"SI","Zona Todas","Lote 3","81112106","CP-BIGTABLE-NETWORK-CROSSREG_GB/mes","USD","Und","Und","Producto",0.12,"Eforcers S.A.","IT-GO-CP-00-116"]
[134,"SI","Zona Todas","Lote 3","81112106","CP-BIGTABLE-NETWORK-CROSSREG_GB/mes","USD","Und","Und","Producto",0.12,"Información Localizada S.A.S.","IT-GO-CP-00-116"]
[135,"SI","Zona Todas","Lote 3","81112106","CP-BIGTABLE-NETWORK-INTERNET-EGRESS_GB/mes","USD","Und","Und","Producto",0.23,"Eforcers S.A.","IT-GO-CP-00-117"]
[135,"SI","Zona Todas","Lote 3","81112106","CP-BIGTABLE-NETWORK-INTERNET-EGRESS_GB/mes","USD","Und","Und","Producto",0.23,"Información Localizada S.A.S.","IT-GO-CP-00-117"]
[136,"SI","Zona Todas","Lote 3","81112106","CP-SPANNER-SERVER-NODE_Por hora","USD","Und","Und","Producto",0.9,"Eforcers S.A.","IT-GO-CP-00-118"]
[136,"SI","Zona Todas","Lote 3","81112106","CP-SPANNER-SERVER-NODE_Por hora","USD","Und","Und","Producto",0.9,"Información Localizada S.A.S.","IT-GO-CP-00-118"]
[137,"SI","Zona Todas","Lote 3","81112106","CP-SPANNER-SSD-STORAGE_GB/mes","USD","Und","Und","Producto",0.3,"Eforcers S.A.","IT-GO-CP-00-119"]
[137,"SI","Zona Todas","Lote 3","81112106","CP-SPANNER-SSD-STORAGE_GB/mes","USD","Und","Und","Producto",0.3,"Información Localizada S.A.S.","IT-GO-CP-00-119"]
[138,"SI","Zona Todas","Lote 3","81112106","CP-SPANNER-NETWORK-INTERREGION-EGRESS_GB/mes","USD","Und","Und","Producto",0.12,"Eforcers S.A.","IT-GO-CP-00-120"]
[138,"SI","Zona Todas","Lote 3","81112106","CP-SPANNER-NETWORK-INTERREGION-EGRESS_GB/mes","USD","Und","Und","Producto",0.12,"Información Localizada S.A.S.","IT-GO-CP-00-120"]
[139,"SI","Zona Todas","Lote 3","81112106","CP-SPANNER-NETWORK-INTERNET-EGRESS_GB/mes","USD","Und","Und","Producto",0.23,"Eforcers S.A.","IT-GO-CP-00-121"]
[139,"SI","Zona Todas","Lote 3","81112106","CP-SPANNER-NETWORK-INTERNET-EGRESS_GB/mes","USD","Und","Und","Producto",0.23,"Información Localizada S.A.S.","IT-GO-CP-00-121"]
[140,"SI","Zona Todas","Lote 3","81112106","CP-CLOUDSQL-INSTANCE-F1-MICRO_Por hora","USD","Und","Und","Producto",2.0299999999999999E-2,"Eforcers S.A.","IT-GO-CP-00-122"]
[140,"SI","Zona Todas","Lote 3","81112106","CP-CLOUDSQL-INSTANCE-F1-MICRO_Por hora","USD","Und","Und","Producto",2.0299999999999999E-2,"Información Localizada S.A.S.","IT-GO-CP-00-122"]
[141,"SI","Zona Todas","Lote 3","81112106","CP-CLOUDSQL-INSTANCE-G1-SMALL_Por hora","USD","Und","Und","Producto",6.7500000000000004E-2,"Eforcers S.A.","IT-GO-CP-00-123"]
[141,"SI","Zona Todas","Lote 3","81112106","CP-CLOUDSQL-INSTANCE-G1-SMALL_Por hora","USD","Und","Und","Producto",6.7500000000000004E-2,"Información Localizada S.A.S.","IT-GO-CP-00-123"]
[142,"SI","Zona Todas","Lote 3","81112106","CP-CLOUDSQL-INSTANCE-N1-STANDARD-1_Por hora","USD","Und","Und","Producto",0.1303,"Eforcers S.A.","IT-GO-CP-00-124"]
[142,"SI","Zona Todas","Lote 3","81112106","CP-CLOUDSQL-INSTANCE-N1-STANDARD-1_Por hora","USD","Und","Und","Producto",0.1303,"Información Localizada S.A.S.","IT-GO-CP-00-124"]
[143,"SI","Zona Todas","Lote 3","81112106","CP-CLOUDSQL-INSTANCE-N1-STANDARD-2_Por hora","USD","Und","Und","Producto",0.2606,"Eforcers S.A.","IT-GO-CP-00-125"]
[143,"SI","Zona Todas","Lote 3","81112106","CP-CLOUDSQL-INSTANCE-N1-STANDARD-2_Por hora","USD","Und","Und","Producto",0.2606,"Información Localizada S.A.S.","IT-GO-CP-00-125"]
[144,"SI","Zona Todas","Lote 3","81112106","CP-CLOUDSQL-INSTANCE-N1-STANDARD-4_Por hora","USD","Und","Und","Producto",0.52110000000000001,"Eforcers S.A.","IT-GO-CP-00-126"]
[144,"SI","Zona Todas","Lote 3","81112106","CP-CLOUDSQL-INSTANCE-N1-STANDARD-4_Por hora","USD","Und","Und","Producto",0.52110000000000001,"Información Localizada S.A.S.","IT-GO-CP-00-126"]
[145,"SI","Zona Todas","Lote 3","81112106","CP-CLOUDSQL-INSTANCE-N1-STANDARD-8_Por hora","USD","Und","Und","Producto",1.0422,"Eforcers S.A.","IT-GO-CP-00-127"]
[145,"SI","Zona Todas","Lote 3","81112106","CP-CLOUDSQL-INSTANCE-N1-STANDARD-8_Por hora","USD","Und","Und","Producto",1.0422,"Información Localizada S.A.S.","IT-GO-CP-00-127"]
[146,"SI","Zona Todas","Lote 3","81112106","CP-CLOUDSQL-INSTANCE-N1-STANDARD-16_Por hora","USD","Und","Und","Producto",2.0851000000000002,"Eforcers S.A.","IT-GO-CP-00-128"]
[146,"SI","Zona Todas","Lote 3","81112106","CP-CLOUDSQL-INSTANCE-N1-STANDARD-16_Por hora","USD","Und","Und","Producto",2.0851000000000002,"Información Localizada S.A.S.","IT-GO-CP-00-128"]
[147,"SI","Zona Todas","Lote 3","81112106","CP-CLOUDSQL-INSTANCE-N1-STANDARD-32_Por hora","USD","Und","Und","Producto",4.1702000000000004,"Eforcers S.A.","IT-GO-CP-00-129"]
[147,"SI","Zona Todas","Lote 3","81112106","CP-CLOUDSQL-INSTANCE-N1-STANDARD-32_Por hora","USD","Und","Und","Producto",4.1702000000000004,"Información Localizada S.A.S.","IT-GO-CP-00-129"]
[148,"SI","Zona Todas","Lote 3","81112106","CP-CLOUDSQL-INSTANCE-N1-HIGHMEM-2_Por hora","USD","Und","Und","Producto",0.33950000000000002,"Eforcers S.A.","IT-GO-CP-00-130"]
[148,"SI","Zona Todas","Lote 3","81112106","CP-CLOUDSQL-INSTANCE-N1-HIGHMEM-2_Por hora","USD","Und","Und","Producto",0.33950000000000002,"Información Localizada S.A.S.","IT-GO-CP-00-130"]
[149,"SI","Zona Todas","Lote 3","81112106","CP-CLOUDSQL-INSTANCE-N1-HIGHMEM-4_Por hora","USD","Und","Und","Producto",0.67910000000000004,"Eforcers S.A.","IT-GO-CP-00-131"]
[149,"SI","Zona Todas","Lote 3","81112106","CP-CLOUDSQL-INSTANCE-N1-HIGHMEM-4_Por hora","USD","Und","Und","Producto",0.67910000000000004,"Información Localizada S.A.S.","IT-GO-CP-00-131"]
[150,"SI","Zona Todas","Lote 3","81112106","CP-CLOUDSQL-INSTANCE-N1-HIGHMEM-8_Por hora","USD","Und","Und","Producto",1.3581000000000001,"Eforcers S.A.","IT-GO-CP-00-132"]
[150,"SI","Zona Todas","Lote 3","81112106","CP-CLOUDSQL-INSTANCE-N1-HIGHMEM-8_Por hora","USD","Und","Und","Producto",1.3581000000000001,"Información Localizada S.A.S.","IT-GO-CP-00-132"]
[151,"SI","Zona Todas","Lote 3","81112106","CP-CLOUDSQL-INSTANCE-N1-HIGHMEM-16_Por hora","USD","Und","Und","Producto",2.7162000000000002,"Eforcers S.A.","IT-GO-CP-00-133"]
[151,"SI","Zona Todas","Lote 3","81112106","CP-CLOUDSQL-INSTANCE-N1-HIGHMEM-16_Por hora","USD","Und","Und","Producto",2.7162000000000002,"Información Localizada S.A.S.","IT-GO-CP-00-133"]
[152,"SI","Zona Todas","Lote 3","81112106","CP-CLOUDSQL-INSTANCE-N1-HIGHMEM-32_Por hora","USD","Und","Und","Producto",5.4324000000000003,"Eforcers S.A.","IT-GO-CP-00-134"]
[152,"SI","Zona Todas","Lote 3","81112106","CP-CLOUDSQL-INSTANCE-N1-HIGHMEM-32_Por hora","USD","Und","Und","Producto",5.4324000000000003,"Información Localizada S.A.S.","IT-GO-CP-00-134"]
[153,"SI","Zona Todas","Lote 3","81112106","CP-CLOUDSQL-INTERNET-EGRESS_GB/mes","USD","Und","Und","Producto",0.19,"Eforcers S.A.","IT-GO-CP-00-135"]
[153,"SI","Zona Todas","Lote 3","81112106","CP-CLOUDSQL-INTERNET-EGRESS_GB/mes","USD","Und","Und","Producto",0.19,"Información Localizada S.A.S.","IT-GO-CP-00-135"]
[154,"SI","Zona Todas","Lote 3","81112106","CP-CLOUDSQL-INTERCONNECT-EGRESS_GB/mes","USD","Und","Und","Producto",0.05,"Eforcers S.A.","IT-GO-CP-00-136"]
[154,"SI","Zona Todas","Lote 3","81112106","CP-CLOUDSQL-INTERCONNECT-EGRESS_GB/mes","USD","Und","Und","Producto",0.05,"Información Localizada S.A.S.","IT-GO-CP-00-136"]
[155,"SI","Zona Todas","Lote 3","81112106","CP-CLOUDSQL-INTER-REGION-EGRESS_GB/mes","USD","Und","Und","Producto",0.12,"Eforcers S.A.","IT-GO-CP-00-137"]
[155,"SI","Zona Todas","Lote 3","81112106","CP-CLOUDSQL-INTER-REGION-EGRESS_GB/mes","USD","Und","Und","Producto",0.12,"Información Localizada S.A.S.","IT-GO-CP-00-137"]
[156,"SI","Zona Todas","Lote 3","81112106","CP-CLOUDSQL-GOOGLE-EGRESS_GB/mes","USD","Und","Und","Producto",0.12,"Eforcers S.A.","IT-GO-CP-00-138"]
[156,"SI","Zona Todas","Lote 3","81112106","CP-CLOUDSQL-GOOGLE-EGRESS_GB/mes","USD","Und","Und","Producto",0.12,"Información Localizada S.A.S.","IT-GO-CP-00-138"]
[157,"SI","Zona Todas","Lote 3","81112106","CP-CLOUDSQL-STORAGE-PD-SSD-CAPACITY_GB/mes","USD","Und","Und","Producto",0.23,"Eforcers S.A.","IT-GO-CP-00-139"]
[157,"SI","Zona Todas","Lote 3","81112106","CP-CLOUDSQL-STORAGE-PD-SSD-CAPACITY_GB/mes","USD","Und","Und","Producto",0.23,"Información Localizada S.A.S.","IT-GO-CP-00-139"]
[158,"SI","Zona Todas","Lote 3","81112106","CP-CLOUDSQL-STORAGE-PD-STANDARD-CAPACITY_GB/mes","USD","Und","Und","Producto",0.122,"Eforcers S.A.","IT-GO-CP-00-140"]
[158,"SI","Zona Todas","Lote 3","81112106","CP-CLOUDSQL-STORAGE-PD-STANDARD-CAPACITY_GB/mes","USD","Und","Und","Producto",0.122,"Información Localizada S.A.S.","IT-GO-CP-00-140"]
[159,"SI","Zona Todas","Lote 3","81112106","CP-CLOUDSQL-STORAGE-PD-SNAPSHOT_GB/mes","USD","Und","Und","Producto",0.108,"Eforcers S.A.","IT-GO-CP-00-141"]
[159,"SI","Zona Todas","Lote 3","81112106","CP-CLOUDSQL-STORAGE-PD-SNAPSHOT_GB/mes","USD","Und","Und","Producto",0.108,"Información Localizada S.A.S.","IT-GO-CP-00-141"]
[160,"SI","Zona Todas","Lote 3","81112106","CP-CLOUDSQL-STATIC-IP-CHARGE_Por hora","USD","Und","Und","Producto",1.4999999999999999E-2,"Eforcers S.A.","IT-GO-CP-00-142"]
[160,"SI","Zona Todas","Lote 3","81112106","CP-CLOUDSQL-STATIC-IP-CHARGE_Por hora","USD","Und","Und","Producto",1.4999999999999999E-2,"Información Localizada S.A.S.","IT-GO-CP-00-142"]
[161,"SI","Zona Todas","Lote 3","81112106","CP-CLOUDSQL-PG-INSTANCE-F1-MICRO_Por hora","USD","Und","Und","Producto",2.0299999999999999E-2,"Eforcers S.A.","IT-GO-CP-00-143"]
[161,"SI","Zona Todas","Lote 3","81112106","CP-CLOUDSQL-PG-INSTANCE-F1-MICRO_Por hora","USD","Und","Und","Producto",2.0299999999999999E-2,"Información Localizada S.A.S.","IT-GO-CP-00-143"]
[162,"SI","Zona Todas","Lote 3","81112106","CP-CLOUDSQL-PG-INSTANCE-G1-SMALL_Por hora","USD","Und","Und","Producto",6.7500000000000004E-2,"Eforcers S.A.","IT-GO-CP-00-144"]
[162,"SI","Zona Todas","Lote 3","81112106","CP-CLOUDSQL-PG-INSTANCE-G1-SMALL_Por hora","USD","Und","Und","Producto",6.7500000000000004E-2,"Información Localizada S.A.S.","IT-GO-CP-00-144"]
[163,"SI","Zona Todas","Lote 3","81112106","CP-CLOUDSQL-PG-INSTANCE-CPU_Por hora","USD","Und","Und","Producto",7.9699999999999993E-2,"Eforcers S.A.","IT-GO-CP-00-145"]
[163,"SI","Zona Todas","Lote 3","81112106","CP-CLOUDSQL-PG-INSTANCE-CPU_Por hora","USD","Und","Und","Producto",7.9699999999999993E-2,"Información Localizada S.A.S.","IT-GO-CP-00-145"]
[164,"SI","Zona Todas","Lote 3","81112106","CP-CLOUDSQL-PG-INSTANCE-RAM_Por hora","USD","Und","Und","Producto",1.35E-2,"Eforcers S.A.","IT-GO-CP-00-146"]
[164,"SI","Zona Todas","Lote 3","81112106","CP-CLOUDSQL-PG-INSTANCE-RAM_Por hora","USD","Und","Und","Producto",1.35E-2,"Información Localizada S.A.S.","IT-GO-CP-00-146"]
[165,"SI","Zona Todas","Lote 3","81112106","CP-CLOUDSQL-PG-INTERNET-EGRESS_GB/mes","USD","Und","Und","Producto",0.19,"Eforcers S.A.","IT-GO-CP-00-147"]
[165,"SI","Zona Todas","Lote 3","81112106","CP-CLOUDSQL-PG-INTERNET-EGRESS_GB/mes","USD","Und","Und","Producto",0.19,"Información Localizada S.A.S.","IT-GO-CP-00-147"]
[166,"SI","Zona Todas","Lote 3","81112106","CP-CLOUDSQL-PG-INTERCONNECT-EGRESS_GB/mes","USD","Und","Und","Producto",0.05,"Eforcers S.A.","IT-GO-CP-00-148"]
[166,"SI","Zona Todas","Lote 3","81112106","CP-CLOUDSQL-PG-INTERCONNECT-EGRESS_GB/mes","USD","Und","Und","Producto",0.05,"Información Localizada S.A.S.","IT-GO-CP-00-148"]
[167,"SI","Zona Todas","Lote 3","81112106","CP-CLOUDSQL-PG-INTER-REGION-EGRESS_GB/mes","USD","Und","Und","Producto",0.12,"Eforcers S.A.","IT-GO-CP-00-149"]
[167,"SI","Zona Todas","Lote 3","81112106","CP-CLOUDSQL-PG-INTER-REGION-EGRESS_GB/mes","USD","Und","Und","Producto",0.12,"Información Localizada S.A.S.","IT-GO-CP-00-149"]
[168,"SI","Zona Todas","Lote 3","81112106","CP-CLOUDSQL-PG-GOOGLE-EGRESS_GB/mes","USD","Und","Und","Producto",0.12,"Eforcers S.A.","IT-GO-CP-00-150"]
[168,"SI","Zona Todas","Lote 3","81112106","CP-CLOUDSQL-PG-GOOGLE-EGRESS_GB/mes","USD","Und","Und","Producto",0.12,"Información Localizada S.A.S.","IT-GO-CP-00-150"]
[169,"SI","Zona Todas","Lote 3","81112106","CP-CLOUDSQL-PG-STORAGE-PD-SSD-CAPACITY_GB/mes","USD","Und","Und","Producto",0.23,"Eforcers S.A.","IT-GO-CP-00-151"]
[169,"SI","Zona Todas","Lote 3","81112106","CP-CLOUDSQL-PG-STORAGE-PD-SSD-CAPACITY_GB/mes","USD","Und","Und","Producto",0.23,"Información Localizada S.A.S.","IT-GO-CP-00-151"]
[170,"SI","Zona Todas","Lote 3","81112106","CP-CLOUDSQL-PG-STORAGE-PD-STANDARD-CAPACITY_GB/mes","USD","Und","Und","Producto",0.122,"Eforcers S.A.","IT-GO-CP-00-152"]
[170,"SI","Zona Todas","Lote 3","81112106","CP-CLOUDSQL-PG-STORAGE-PD-STANDARD-CAPACITY_GB/mes","USD","Und","Und","Producto",0.122,"Información Localizada S.A.S.","IT-GO-CP-00-152"]
[171,"SI","Zona Todas","Lote 3","81112106","CP-CLOUDSQL-PG-STORAGE-PD-SNAPSHOT_GB/mes","USD","Und","Und","Producto",0.108,"Eforcers S.A.","IT-GO-CP-00-153"]
[171,"SI","Zona Todas","Lote 3","81112106","CP-CLOUDSQL-PG-STORAGE-PD-SNAPSHOT_GB/mes","USD","Und","Und","Producto",0.108,"Información Localizada S.A.S.","IT-GO-CP-00-153"]
[172,"SI","Zona Todas","Lote 3","81112106","CP-CLOUDSQL-PG-STATIC-IP-CHARGE_Por hora","USD","Und","Und","Producto",1.4999999999999999E-2,"Eforcers S.A.","IT-GO-CP-00-154"]
[172,"SI","Zona Todas","Lote 3","81112106","CP-CLOUDSQL-PG-STATIC-IP-CHARGE_Por hora","USD","Und","Und","Producto",1.4999999999999999E-2,"Información Localizada S.A.S.","IT-GO-CP-00-154"]
[173,"SI","Zona Todas","Lote 3","81112106","CP-BIGSTORE-STORAGE-MULTI_REGIONAL_GB/mes","USD","Und","Und","Producto",2.5999999999999999E-2,"Eforcers S.A.","IT-GO-CP-00-155"]
[173,"SI","Zona Todas","Lote 3","81112106","CP-BIGSTORE-STORAGE-MULTI_REGIONAL_GB/mes","USD","Und","Und","Producto",2.5999999999999999E-2,"Información Localizada S.A.S.","IT-GO-CP-00-155"]
[174,"SI","Zona Todas","Lote 3","81112106","CP-BIGSTORE-STORAGE-REGIONAL_GB/mes","USD","Und","Und","Producto",2.3E-2,"Eforcers S.A.","IT-GO-CP-00-156"]
[174,"SI","Zona Todas","Lote 3","81112106","CP-BIGSTORE-STORAGE-REGIONAL_GB/mes","USD","Und","Und","Producto",2.3E-2,"Información Localizada S.A.S.","IT-GO-CP-00-156"]
[175,"SI","Zona Todas","Lote 3","81112106","CP-BIGSTORE-STORAGE-DRA_GB/mes","USD","Und","Und","Producto",0.02,"Eforcers S.A.","IT-GO-CP-00-157"]
[175,"SI","Zona Todas","Lote 3","81112106","CP-BIGSTORE-STORAGE-DRA_GB/mes","USD","Und","Und","Producto",0.02,"Información Localizada S.A.S.","IT-GO-CP-00-157"]
[176,"SI","Zona Todas","Lote 3","81112106","CP-BIGSTORE-STORAGE-NEARLINE_GB/mes","USD","Und","Und","Producto",1.6E-2,"Eforcers S.A.","IT-GO-CP-00-158"]
[176,"SI","Zona Todas","Lote 3","81112106","CP-BIGSTORE-STORAGE-NEARLINE_GB/mes","USD","Und","Und","Producto",1.6E-2,"Información Localizada S.A.S.","IT-GO-CP-00-158"]
[177,"SI","Zona Todas","Lote 3","81112106","CP-BIGSTORE-STORAGE-COLDLINE_GB/mes","USD","Und","Und","Producto",0.01,"Eforcers S.A.","IT-GO-CP-00-159"]
[177,"SI","Zona Todas","Lote 3","81112106","CP-BIGSTORE-STORAGE-COLDLINE_GB/mes","USD","Und","Und","Producto",0.01,"Información Localizada S.A.S.","IT-GO-CP-00-159"]
[178,"SI","Zona Todas","Lote 3","81112106","CP-BIGSTORE-DATA-RETRIEVAL-NEARLINE_GB/mes","USD","Und","Und","Producto",0.01,"Eforcers S.A.","IT-GO-CP-00-160"]
[178,"SI","Zona Todas","Lote 3","81112106","CP-BIGSTORE-DATA-RETRIEVAL-NEARLINE_GB/mes","USD","Und","Und","Producto",0.01,"Información Localizada S.A.S.","IT-GO-CP-00-160"]
[179,"SI","Zona Todas","Lote 3","81112106","CP-BIGSTORE-DATA-RETRIEVAL-COLDLINE_GB/mes","USD","Und","Und","Producto",0.05,"Eforcers S.A.","IT-GO-CP-00-161"]
[179,"SI","Zona Todas","Lote 3","81112106","CP-BIGSTORE-DATA-RETRIEVAL-COLDLINE_GB/mes","USD","Und","Und","Producto",0.05,"Información Localizada S.A.S.","IT-GO-CP-00-161"]
[180,"SI","Zona Todas","Lote 3","81112106","CP-BIGSTORE-EARLYDELETE-NEARLINE_GB/mes","USD","Und","Und","Producto",1.6E-2,"Eforcers S.A.","IT-GO-CP-00-162"]
[180,"SI","Zona Todas","Lote 3","81112106","CP-BIGSTORE-EARLYDELETE-NEARLINE_GB/mes","USD","Und","Und","Producto",1.6E-2,"Información Localizada S.A.S.","IT-GO-CP-00-162"]
[181,"SI","Zona Todas","Lote 3","81112106","CP-BIGSTORE-EARLYDELETE-COLDLINE_GB/mes","USD","Und","Und","Producto",0.03,"Eforcers S.A.","IT-GO-CP-00-163"]
[181,"SI","Zona Todas","Lote 3","81112106","CP-BIGSTORE-EARLYDELETE-COLDLINE_GB/mes","USD","Und","Und","Producto",0.03,"Información Localizada S.A.S.","IT-GO-CP-00-163"]
[182,"SI","Zona Todas","Lote 3","81112106","CP-BIGSTORE-DOWNLOAD_GB/mes","USD","Und","Und","Producto",0.19,"Eforcers S.A.","IT-GO-CP-00-164"]
[182,"SI","Zona Todas","Lote 3","81112106","CP-BIGSTORE-DOWNLOAD_GB/mes","USD","Und","Und","Producto",0.19,"Información Localizada S.A.S.","IT-GO-CP-00-164"]
[183,"SI","Zona Todas","Lote 3","81112106","CP-BIGSTORE-INTER-REGION-EGRESS_GB/mes","USD","Und","Und","Producto",0.14000000000000001,"Eforcers S.A.","IT-GO-CP-00-165"]
[183,"SI","Zona Todas","Lote 3","81112106","CP-BIGSTORE-INTER-REGION-EGRESS_GB/mes","USD","Und","Und","Producto",0.14000000000000001,"Información Localizada S.A.S.","IT-GO-CP-00-165"]
[184,"SI","Zona Todas","Lote 3","81112106","CP-BIGSTORE-INTERCONNECT-EGRESS_GB/mes","USD","Und","Und","Producto",0.06,"Eforcers S.A.","IT-GO-CP-00-166"]
[184,"SI","Zona Todas","Lote 3","81112106","CP-BIGSTORE-INTERCONNECT-EGRESS_GB/mes","USD","Und","Und","Producto",0.06,"Información Localizada S.A.S.","IT-GO-CP-00-166"]
[185,"SI","Zona Todas","Lote 3","81112106","CP-BIGSTORE-DISK-IMPORTED_GB/mes","USD","Und","Und","Producto",0.156,"Eforcers S.A.","IT-GO-CP-00-167"]
[185,"SI","Zona Todas","Lote 3","81112106","CP-BIGSTORE-DISK-IMPORTED_GB/mes","USD","Und","Und","Producto",0.156,"Información Localizada S.A.S.","IT-GO-CP-00-167"]
[186,"SI","Zona Todas","Lote 3","81112106","CP-BIGSTORE-CLASS-A-REQUEST-MULTI_REGIONAL_Por 10K operaciones","USD","Und","Und","Producto",0.05,"Eforcers S.A.","IT-GO-CP-00-168"]
[186,"SI","Zona Todas","Lote 3","81112106","CP-BIGSTORE-CLASS-A-REQUEST-MULTI_REGIONAL_Por 10K operaciones","USD","Und","Und","Producto",0.05,"Información Localizada S.A.S.","IT-GO-CP-00-168"]
[187,"SI","Zona Todas","Lote 3","81112106","CP-BIGSTORE-CLASS-A-REQUEST-REGIONAL_Por 10K operaciones","USD","Und","Und","Producto",0.1,"Eforcers S.A.","IT-GO-CP-00-169"]
[187,"SI","Zona Todas","Lote 3","81112106","CP-BIGSTORE-CLASS-A-REQUEST-REGIONAL_Por 10K operaciones","USD","Und","Und","Producto",0.1,"Información Localizada S.A.S.","IT-GO-CP-00-169"]
[188,"SI","Zona Todas","Lote 3","81112106","CP-BIGSTORE-CLASS-A-REQUEST-DRA_Por 10K operaciones","USD","Und","Und","Producto",0.1,"Eforcers S.A.","IT-GO-CP-00-170"]
[188,"SI","Zona Todas","Lote 3","81112106","CP-BIGSTORE-CLASS-A-REQUEST-DRA_Por 10K operaciones","USD","Und","Und","Producto",0.1,"Información Localizada S.A.S.","IT-GO-CP-00-170"]
[189,"SI","Zona Todas","Lote 3","81112106","CP-BIGSTORE-CLASS-A-REQUEST-NEARLINE_Por 10K operaciones","USD","Und","Und","Producto",0.1,"Eforcers S.A.","IT-GO-CP-00-171"]
[189,"SI","Zona Todas","Lote 3","81112106","CP-BIGSTORE-CLASS-A-REQUEST-NEARLINE_Por 10K operaciones","USD","Und","Und","Producto",0.1,"Información Localizada S.A.S.","IT-GO-CP-00-171"]
[190,"SI","Zona Todas","Lote 3","81112106","CP-BIGSTORE-CLASS-A-REQUEST-COLDLINE_Por 10K operaciones","USD","Und","Und","Producto",0.1,"Eforcers S.A.","IT-GO-CP-00-172"]
[190,"SI","Zona Todas","Lote 3","81112106","CP-BIGSTORE-CLASS-A-REQUEST-COLDLINE_Por 10K operaciones","USD","Und","Und","Producto",0.1,"Información Localizada S.A.S.","IT-GO-CP-00-172"]
[191,"SI","Zona Todas","Lote 3","81112106","CP-BIGSTORE-CLASS-B-REQUEST-MULTI_REGIONAL_Por 10K operaciones","USD","Und","Und","Producto",0.01,"Eforcers S.A.","IT-GO-CP-00-173"]
[191,"SI","Zona Todas","Lote 3","81112106","CP-BIGSTORE-CLASS-B-REQUEST-MULTI_REGIONAL_Por 10K operaciones","USD","Und","Und","Producto",0.01,"Información Localizada S.A.S.","IT-GO-CP-00-173"]
[192,"SI","Zona Todas","Lote 3","81112106","CP-BIGSTORE-CLASS-B-REQUEST-REGIONAL_Por 10K operaciones","USD","Und","Und","Producto",4.0000000000000001E-3,"Eforcers S.A.","IT-GO-CP-00-174"]
[192,"SI","Zona Todas","Lote 3","81112106","CP-BIGSTORE-CLASS-B-REQUEST-REGIONAL_Por 10K operaciones","USD","Und","Und","Producto",4.0000000000000001E-3,"Información Localizada S.A.S.","IT-GO-CP-00-174"]
[193,"SI","Zona Todas","Lote 3","81112106","CP-BIGSTORE-CLASS-B-REQUEST-DRA_Por 10K operaciones","USD","Und","Und","Producto",0.01,"Eforcers S.A.","IT-GO-CP-00-175"]
[193,"SI","Zona Todas","Lote 3","81112106","CP-BIGSTORE-CLASS-B-REQUEST-DRA_Por 10K operaciones","USD","Und","Und","Producto",0.01,"Información Localizada S.A.S.","IT-GO-CP-00-175"]
[194,"SI","Zona Todas","Lote 3","81112106","CP-BIGSTORE-CLASS-B-REQUEST-NEARLINE_Por 10K operaciones","USD","Und","Und","Producto",0.01,"Eforcers S.A.","IT-GO-CP-00-176"]
[194,"SI","Zona Todas","Lote 3","81112106","CP-BIGSTORE-CLASS-B-REQUEST-NEARLINE_Por 10K operaciones","USD","Und","Und","Producto",0.01,"Información Localizada S.A.S.","IT-GO-CP-00-176"]
[195,"SI","Zona Todas","Lote 3","81112106","CP-BIGSTORE-CLASS-B-REQUEST-COLDLINE_Por 10K operaciones","USD","Und","Und","Producto",0.05,"Eforcers S.A.","IT-GO-CP-00-177"]
[195,"SI","Zona Todas","Lote 3","81112106","CP-BIGSTORE-CLASS-B-REQUEST-COLDLINE_Por 10K operaciones","USD","Und","Und","Producto",0.05,"Información Localizada S.A.S.","IT-GO-CP-00-177"]
[196,"SI","Zona Todas","Lote 3","81112106","CP-COMPUTEENGINE-VMIMAGE-N1-STANDARD-1_Por mes","USD","Und","Und","Producto",34.441400000000002,"Eforcers S.A.","IT-GO-CP-00-193"]
[196,"SI","Zona Todas","Lote 3","81112106","CP-COMPUTEENGINE-VMIMAGE-N1-STANDARD-1_Por mes","USD","Und","Und","Producto",34.44,"Información Localizada S.A.S.","IT-GO-CP-00-193"]
[197,"SI","Zona Todas","Lote 3","81112106","CP-COMPUTEENGINE-VMIMAGE-N1-STANDARD-2_Por mes","USD","Und","Und","Producto",68.882800000000003,"Eforcers S.A.","IT-GO-CP-00-194"]
[197,"SI","Zona Todas","Lote 3","81112106","CP-COMPUTEENGINE-VMIMAGE-N1-STANDARD-2_Por mes","USD","Und","Und","Producto",68.88,"Información Localizada S.A.S.","IT-GO-CP-00-194"]
[198,"SI","Zona Todas","Lote 3","81112106","CP-COMPUTEENGINE-VMIMAGE-N1-STANDARD-4_Por mes","USD","Und","Und","Producto",137.8167,"Eforcers S.A.","IT-GO-CP-00-195"]
[198,"SI","Zona Todas","Lote 3","81112106","CP-COMPUTEENGINE-VMIMAGE-N1-STANDARD-4_Por mes","USD","Und","Und","Producto",137.82,"Información Localizada S.A.S.","IT-GO-CP-00-195"]
[199,"SI","Zona Todas","Lote 3","81112106","CP-COMPUTEENGINE-VMIMAGE-N1-STANDARD-8_Por mes","USD","Und","Und","Producto",275.58229999999998,"Eforcers S.A.","IT-GO-CP-00-196"]
[199,"SI","Zona Todas","Lote 3","81112106","CP-COMPUTEENGINE-VMIMAGE-N1-STANDARD-8_Por mes","USD","Und","Und","Producto",275.58,"Información Localizada S.A.S.","IT-GO-CP-00-196"]
[200,"SI","Zona Todas","Lote 3","81112106","CP-COMPUTEENGINE-VMIMAGE-N1-STANDARD-16_Por mes","USD","Und","Und","Producto",551.21569999999997,"Eforcers S.A.","IT-GO-CP-00-197"]
[200,"SI","Zona Todas","Lote 3","81112106","CP-COMPUTEENGINE-VMIMAGE-N1-STANDARD-16_Por mes","USD","Und","Und","Producto",551.22,"Información Localizada S.A.S.","IT-GO-CP-00-197"]
[201,"SI","Zona Todas","Lote 3","81112106","CP-COMPUTEENGINE-VMIMAGE-N1-STANDARD-32_Por mes","USD","Und","Und","Producto",1102.4313999999999,"Eforcers S.A.","IT-GO-CP-00-198"]
[201,"SI","Zona Todas","Lote 3","81112106","CP-COMPUTEENGINE-VMIMAGE-N1-STANDARD-32_Por mes","USD","Und","Und","Producto",1102.43,"Información Localizada S.A.S.","IT-GO-CP-00-198"]
[202,"SI","Zona Todas","Lote 3","81112106","CP-COMPUTEENGINE-VMIMAGE-N1-STANDARD-64_Por mes","USD","Und","Und","Producto",2204.8117000000002,"Eforcers S.A.","IT-GO-CP-00-199"]
[202,"SI","Zona Todas","Lote 3","81112106","CP-COMPUTEENGINE-VMIMAGE-N1-STANDARD-64_Por mes","USD","Und","Und","Producto",2204.81,"Información Localizada S.A.S.","IT-GO-CP-00-199"]
[203,"SI","Zona Todas","Lote 3","81112106","CP-COMPUTEENGINE-VMIMAGE-N1-HIGHMEM-2_Por mes","USD","Und","Und","Producto",85.796899999999994,"Eforcers S.A.","IT-GO-CP-00-200"]
[203,"SI","Zona Todas","Lote 3","81112106","CP-COMPUTEENGINE-VMIMAGE-N1-HIGHMEM-2_Por mes","USD","Und","Und","Producto",85.8,"Información Localizada S.A.S.","IT-GO-CP-00-200"]
[204,"SI","Zona Todas","Lote 3","81112106","CP-COMPUTEENGINE-VMIMAGE-N1-HIGHMEM-4_Por mes","USD","Und","Und","Producto",171.59379999999999,"Eforcers S.A.","IT-GO-CP-00-201"]
[204,"SI","Zona Todas","Lote 3","81112106","CP-COMPUTEENGINE-VMIMAGE-N1-HIGHMEM-4_Por mes","USD","Und","Und","Producto",171.59,"Información Localizada S.A.S.","IT-GO-CP-00-201"]
[205,"SI","Zona Todas","Lote 3","81112106","CP-COMPUTEENGINE-VMIMAGE-N1-HIGHMEM-8_Por mes","USD","Und","Und","Producto",343.18759999999997,"Eforcers S.A.","IT-GO-CP-00-202"]
[205,"SI","Zona Todas","Lote 3","81112106","CP-COMPUTEENGINE-VMIMAGE-N1-HIGHMEM-8_Por mes","USD","Und","Und","Producto",343.19,"Información Localizada S.A.S.","IT-GO-CP-00-202"]
[206,"SI","Zona Todas","Lote 3","81112106","CP-COMPUTEENGINE-VMIMAGE-N1-HIGHMEM-16_Por mes","USD","Und","Und","Producto",686.32410000000004,"Eforcers S.A.","IT-GO-CP-00-203"]
[206,"SI","Zona Todas","Lote 3","81112106","CP-COMPUTEENGINE-VMIMAGE-N1-HIGHMEM-16_Por mes","USD","Und","Und","Producto",686.32,"Información Localizada S.A.S.","IT-GO-CP-00-203"]
[207,"SI","Zona Todas","Lote 3","81112106","CP-COMPUTEENGINE-VMIMAGE-N1-HIGHMEM-32_Por mes","USD","Und","Und","Producto",1372.6482000000001,"Eforcers S.A.","IT-GO-CP-00-204"]
[207,"SI","Zona Todas","Lote 3","81112106","CP-COMPUTEENGINE-VMIMAGE-N1-HIGHMEM-32_Por mes","USD","Und","Und","Producto",1372.65,"Información Localizada S.A.S.","IT-GO-CP-00-204"]
[208,"SI","Zona Todas","Lote 3","81112106","CP-COMPUTEENGINE-VMIMAGE-N1-HIGHMEM-64_Por mes","USD","Und","Und","Producto",2745.3474999999999,"Eforcers S.A.","IT-GO-CP-00-205"]
[208,"SI","Zona Todas","Lote 3","81112106","CP-COMPUTEENGINE-VMIMAGE-N1-HIGHMEM-64_Por mes","USD","Und","Und","Producto",2745.35,"Información Localizada S.A.S.","IT-GO-CP-00-205"]
[209,"SI","Zona Todas","Lote 3","81112106","CP-COMPUTEENGINE-VMIMAGE-N1-HIGHCPU-2_Por mes","USD","Und","Und","Producto",51.406599999999997,"Eforcers S.A.","IT-GO-CP-00-206"]
[209,"SI","Zona Todas","Lote 3","81112106","CP-COMPUTEENGINE-VMIMAGE-N1-HIGHCPU-2_Por mes","USD","Und","Und","Producto",51.41,"Información Localizada S.A.S.","IT-GO-CP-00-206"]
[210,"SI","Zona Todas","Lote 3","81112106","CP-COMPUTEENGINE-VMIMAGE-N1-HIGHCPU-4_Por mes","USD","Und","Und","Producto",102.81319999999999,"Eforcers S.A.","IT-GO-CP-00-207"]
[210,"SI","Zona Todas","Lote 3","81112106","CP-COMPUTEENGINE-VMIMAGE-N1-HIGHCPU-4_Por mes","USD","Und","Und","Producto",102.81,"Información Localizada S.A.S.","IT-GO-CP-00-207"]
[211,"SI","Zona Todas","Lote 3","81112106","CP-COMPUTEENGINE-VMIMAGE-N1-HIGHCPU-8_Por mes","USD","Und","Und","Producto",205.5753,"Eforcers S.A.","IT-GO-CP-00-208"]
[211,"SI","Zona Todas","Lote 3","81112106","CP-COMPUTEENGINE-VMIMAGE-N1-HIGHCPU-8_Por mes","USD","Und","Und","Producto",205.58,"Información Localizada S.A.S.","IT-GO-CP-00-208"]
[212,"SI","Zona Todas","Lote 3","81112106","CP-COMPUTEENGINE-VMIMAGE-N1-HIGHCPU-16_Por mes","USD","Und","Und","Producto",411.1506,"Eforcers S.A.","IT-GO-CP-00-209"]
[212,"SI","Zona Todas","Lote 3","81112106","CP-COMPUTEENGINE-VMIMAGE-N1-HIGHCPU-16_Por mes","USD","Und","Und","Producto",411.15,"Información Localizada S.A.S.","IT-GO-CP-00-209"]
[213,"SI","Zona Todas","Lote 3","81112106","CP-COMPUTEENGINE-VMIMAGE-N1-HIGHCPU-32_Por mes","USD","Und","Und","Producto",822.30119999999999,"Eforcers S.A.","IT-GO-CP-00-210"]
[213,"SI","Zona Todas","Lote 3","81112106","CP-COMPUTEENGINE-VMIMAGE-N1-HIGHCPU-32_Por mes","USD","Und","Und","Producto",822.3,"Información Localizada S.A.S.","IT-GO-CP-00-210"]
[214,"SI","Zona Todas","Lote 3","81112106","CP-COMPUTEENGINE-VMIMAGE-N1-HIGHCPU-64_Por mes","USD","Und","Und","Producto",1644.6534999999999,"Eforcers S.A.","IT-GO-CP-00-211"]
[214,"SI","Zona Todas","Lote 3","81112106","CP-COMPUTEENGINE-VMIMAGE-N1-HIGHCPU-64_Por mes","USD","Und","Und","Producto",1644.65,"Información Localizada S.A.S.","IT-GO-CP-00-211"]
[215,"SI","Zona Todas","Lote 3","81112106","CP-COMPUTEENGINE-VMIMAGE-F1-MICRO-SHARED_Por mes","USD","Und","Und","Producto",7.7380000000000004,"Eforcers S.A.","IT-GO-CP-00-212"]
[215,"SI","Zona Todas","Lote 3","81112106","CP-COMPUTEENGINE-VMIMAGE-F1-MICRO-SHARED_Por mes","USD","Und","Und","Producto",7.74,"Información Localizada S.A.S.","IT-GO-CP-00-212"]
[216,"SI","Zona Todas","Lote 3","81112106","CP-COMPUTEENGINE-VMIMAGE-G1-SMALL-SHARED_Por mes","USD","Und","Und","Producto",26.061,"Eforcers S.A.","IT-GO-CP-00-213"]
[216,"SI","Zona Todas","Lote 3","81112106","CP-COMPUTEENGINE-VMIMAGE-G1-SMALL-SHARED_Por mes","USD","Und","Und","Producto",26.06,"Información Localizada S.A.S.","IT-GO-CP-00-213"]
[217,"SI","Zona Todas","Lote 3","81112106","CP-COMPUTEENGINE-OS-RHEL-SMALL_Por mes","USD","Und","Und","Producto",43.8,"Eforcers S.A.","IT-GO-CP-00-214"]
[217,"SI","Zona Todas","Lote 3","81112106","CP-COMPUTEENGINE-OS-RHEL-SMALL_Por mes","USD","Und","Und","Producto",43.8,"Información Localizada S.A.S.","IT-GO-CP-00-214"]
[218,"SI","Zona Todas","Lote 3","81112106","CP-COMPUTEENGINE-OS-RHEL-LARGE_Por mes","USD","Und","Und","Producto",94.9,"Eforcers S.A.","IT-GO-CP-00-215"]
[218,"SI","Zona Todas","Lote 3","81112106","CP-COMPUTEENGINE-OS-RHEL-LARGE_Por mes","USD","Und","Und","Producto",94.9,"Información Localizada S.A.S.","IT-GO-CP-00-215"]
[219,"SI","Zona Todas","Lote 3","81112106","CP-COMPUTEENGINE-OS-SUSE_Por mes","USD","Und","Und","Producto",80.3,"Eforcers S.A.","IT-GO-CP-00-216"]
[219,"SI","Zona Todas","Lote 3","81112106","CP-COMPUTEENGINE-OS-SUSE_Por mes","USD","Und","Und","Producto",80.3,"Información Localizada S.A.S.","IT-GO-CP-00-216"]
[220,"SI","Zona Todas","Lote 3","81112106","CP-COMPUTEENGINE-OS-SUSE-SHARED_Por mes","USD","Und","Und","Producto",14.6,"Eforcers S.A.","IT-GO-CP-00-217"]
[220,"SI","Zona Todas","Lote 3","81112106","CP-COMPUTEENGINE-OS-SUSE-SHARED_Por mes","USD","Und","Und","Producto",14.6,"Información Localizada S.A.S.","IT-GO-CP-00-217"]
[221,"SI","Zona Todas","Lote 3","81112106","CP-COMPUTEENGINE-OS-WINDOWS_Por mes","USD","Und","Und","Producto",29.2,"Eforcers S.A.","IT-GO-CP-00-218"]
[221,"SI","Zona Todas","Lote 3","81112106","CP-COMPUTEENGINE-OS-WINDOWS_Por mes","USD","Und","Und","Producto",29.2,"Información Localizada S.A.S.","IT-GO-CP-00-218"]
[222,"SI","Zona Todas","Lote 3","81112106","CP-COMPUTEENGINE-OS-WINDOWS-SHARED_Por mes","USD","Und","Und","Producto",14.6,"Eforcers S.A.","IT-GO-CP-00-219"]
[222,"SI","Zona Todas","Lote 3","81112106","CP-COMPUTEENGINE-OS-WINDOWS-SHARED_Por mes","USD","Und","Und","Producto",14.6,"Información Localizada S.A.S.","IT-GO-CP-00-219"]
[223,"SI","Zona Todas","Lote 3","81112106","CP-COMPUTEENGINE-OS-WINDOWS-SQL-STANDARD_Por mes","USD","Und","Und","Producto",120.08499999999999,"Eforcers S.A.","IT-GO-CP-00-220"]
[223,"SI","Zona Todas","Lote 3","81112106","CP-COMPUTEENGINE-OS-WINDOWS-SQL-STANDARD_Por mes","USD","Und","Und","Producto",120.09,"Información Localizada S.A.S.","IT-GO-CP-00-220"]
[224,"SI","Zona Todas","Lote 3","81112106","CP-COMPUTEENGINE-OS-WINDOWS-SQL-WEB_Por mes","USD","Und","Und","Producto",8.0299999999999994,"Eforcers S.A.","IT-GO-CP-00-221"]
[224,"SI","Zona Todas","Lote 3","81112106","CP-COMPUTEENGINE-OS-WINDOWS-SQL-WEB_Por mes","USD","Und","Und","Producto",8.0299999999999994,"Información Localizada S.A.S.","IT-GO-CP-00-221"]
[225,"SI","Zona Todas","Lote 3","81112106","CP-CLOUDSQL-INSTANCE-F1-MICRO_Por mes","USD","Und","Und","Producto",14.819000000000001,"Eforcers S.A.","IT-GO-CP-00-222"]
[225,"SI","Zona Todas","Lote 3","81112106","CP-CLOUDSQL-INSTANCE-F1-MICRO_Por mes","USD","Und","Und","Producto",14.82,"Información Localizada S.A.S.","IT-GO-CP-00-222"]
[226,"SI","Zona Todas","Lote 3","81112106","CP-CLOUDSQL-INSTANCE-G1-SMALL_Por mes","USD","Und","Und","Producto",49.274999999999999,"Eforcers S.A.","IT-GO-CP-00-223"]
[226,"SI","Zona Todas","Lote 3","81112106","CP-CLOUDSQL-INSTANCE-G1-SMALL_Por mes","USD","Und","Und","Producto",49.28,"Información Localizada S.A.S.","IT-GO-CP-00-223"]
[227,"SI","Zona Todas","Lote 3","81112106","CP-CLOUDSQL-INSTANCE-N1-STANDARD-1_Por mes","USD","Und","Und","Producto",95.119,"Eforcers S.A.","IT-GO-CP-00-224"]
[227,"SI","Zona Todas","Lote 3","81112106","CP-CLOUDSQL-INSTANCE-N1-STANDARD-1_Por mes","USD","Und","Und","Producto",95.12,"Información Localizada S.A.S.","IT-GO-CP-00-224"]
[228,"SI","Zona Todas","Lote 3","81112106","CP-CLOUDSQL-INSTANCE-N1-STANDARD-2_Por mes","USD","Und","Und","Producto",190.238,"Eforcers S.A.","IT-GO-CP-00-225"]
[228,"SI","Zona Todas","Lote 3","81112106","CP-CLOUDSQL-INSTANCE-N1-STANDARD-2_Por mes","USD","Und","Und","Producto",190.24,"Información Localizada S.A.S.","IT-GO-CP-00-225"]
[229,"SI","Zona Todas","Lote 3","81112106","CP-CLOUDSQL-INSTANCE-N1-STANDARD-4_Por mes","USD","Und","Und","Producto",380.40300000000002,"Eforcers S.A.","IT-GO-CP-00-226"]
[229,"SI","Zona Todas","Lote 3","81112106","CP-CLOUDSQL-INSTANCE-N1-STANDARD-4_Por mes","USD","Und","Und","Producto",380.4,"Información Localizada S.A.S.","IT-GO-CP-00-226"]
[230,"SI","Zona Todas","Lote 3","81112106","CP-CLOUDSQL-INSTANCE-N1-STANDARD-8_Por mes","USD","Und","Und","Producto",760.80600000000004,"Eforcers S.A.","IT-GO-CP-00-227"]
[230,"SI","Zona Todas","Lote 3","81112106","CP-CLOUDSQL-INSTANCE-N1-STANDARD-8_Por mes","USD","Und","Und","Producto",760.81,"Información Localizada S.A.S.","IT-GO-CP-00-227"]
[231,"SI","Zona Todas","Lote 3","81112106","CP-CLOUDSQL-INSTANCE-N1-STANDARD-16_Por mes","USD","Und","Und","Producto",1522.123,"Eforcers S.A.","IT-GO-CP-00-228"]
[231,"SI","Zona Todas","Lote 3","81112106","CP-CLOUDSQL-INSTANCE-N1-STANDARD-16_Por mes","USD","Und","Und","Producto",1522.12,"Información Localizada S.A.S.","IT-GO-CP-00-228"]
[232,"SI","Zona Todas","Lote 3","81112106","CP-CLOUDSQL-INSTANCE-N1-STANDARD-32_Por mes","USD","Und","Und","Producto",3044.2460000000001,"Eforcers S.A.","IT-GO-CP-00-229"]
[232,"SI","Zona Todas","Lote 3","81112106","CP-CLOUDSQL-INSTANCE-N1-STANDARD-32_Por mes","USD","Und","Und","Producto",3044.25,"Información Localizada S.A.S.","IT-GO-CP-00-229"]
[233,"SI","Zona Todas","Lote 3","81112106","CP-CLOUDSQL-INSTANCE-N1-HIGHMEM-2_Por mes","USD","Und","Und","Producto",247.83500000000001,"Eforcers S.A.","IT-GO-CP-00-230"]
[233,"SI","Zona Todas","Lote 3","81112106","CP-CLOUDSQL-INSTANCE-N1-HIGHMEM-2_Por mes","USD","Und","Und","Producto",247.84,"Información Localizada S.A.S.","IT-GO-CP-00-230"]
[234,"SI","Zona Todas","Lote 3","81112106","CP-CLOUDSQL-INSTANCE-N1-HIGHMEM-4_Por mes","USD","Und","Und","Producto",495.74299999999999,"Eforcers S.A.","IT-GO-CP-00-231"]
[234,"SI","Zona Todas","Lote 3","81112106","CP-CLOUDSQL-INSTANCE-N1-HIGHMEM-4_Por mes","USD","Und","Und","Producto",495.74,"Información Localizada S.A.S.","IT-GO-CP-00-231"]
[235,"SI","Zona Todas","Lote 3","81112106","CP-CLOUDSQL-INSTANCE-N1-HIGHMEM-8_Por mes","USD","Und","Und","Producto",991.41300000000001,"Eforcers S.A.","IT-GO-CP-00-232"]
[235,"SI","Zona Todas","Lote 3","81112106","CP-CLOUDSQL-INSTANCE-N1-HIGHMEM-8_Por mes","USD","Und","Und","Producto",991.41,"Información Localizada S.A.S.","IT-GO-CP-00-232"]
[236,"SI","Zona Todas","Lote 3","81112106","CP-CLOUDSQL-INSTANCE-N1-HIGHMEM-16_Por mes","USD","Und","Und","Producto",1982.826,"Eforcers S.A.","IT-GO-CP-00-233"]
[236,"SI","Zona Todas","Lote 3","81112106","CP-CLOUDSQL-INSTANCE-N1-HIGHMEM-16_Por mes","USD","Und","Und","Producto",1982.83,"Información Localizada S.A.S.","IT-GO-CP-00-233"]
[237,"SI","Zona Todas","Lote 3","81112106","CP-CLOUDSQL-INSTANCE-N1-HIGHMEM-32_Por mes","USD","Und","Und","Producto",3965.652,"Eforcers S.A.","IT-GO-CP-00-234"]
[237,"SI","Zona Todas","Lote 3","81112106","CP-CLOUDSQL-INSTANCE-N1-HIGHMEM-32_Por mes","USD","Und","Und","Producto",3965.65,"Información Localizada S.A.S.","IT-GO-CP-00-234"]
[238,"SI","Zona Todas","Lote 3","81112106","VPN_TUNNEL_DEFAULT_mes","USD","Und","Und","Producto",54.75,"Eforcers S.A.","IT-GO-CP-00-235"]
[238,"SI","Zona Todas","Lote 3","81112106","VPN_TUNNEL_DEFAULT_mes","USD","Und","Und","Producto",54.75,"Información Localizada S.A.S.","IT-GO-CP-00-235"]
[239,"SI","Zona Todas","Lote 3","81112106","CP-COMPUTEENGINE-OS-SUSE-SAP_Por mes","USD","Und","Und","Producto",547.5,"Eforcers S.A.","IT-GO-CP-00-236"]
[239,"SI","Zona Todas","Lote 3","81112106","CP-COMPUTEENGINE-OS-SUSE-SAP_Por mes","USD","Und","Und","Producto",547.5,"Información Localizada S.A.S.","IT-GO-CP-00-236"]

{"sheet":"Listas","index":8,"n_rows":77,"n_cols":83,"rows_kept":77,"cut":false,"hidden":true,"merged":[]}
["Zonas","Zona1Municipio","Zona2Municipio","Zona3Municipio","ZonaMunicipio","Lotes","Tipo","Lote1ProductoZona","Lote1ServicioZona","Lote1ProductoZonaTodas","Lote1ServicioZona1","Lote1ServicioZona2","Lote1ServicioZona3","Lote1ServicioZonaTodas","Lote3ProductoZonaTodas","Lote3ServicioZona1","Lote3ServicioZona2","Lote3ServicioZona3","Lote3ServicioZonaTodas"]
["Zona 1","Bogotá","Cali","Armenia","Otro","Lote 1","Producto","Zona Todas","Zona 1","GAPPS-PREM-1USER-1MO_Licencia G Suite Basic mensual por usuario","Capacitación sobre G-Suite para usuario final_Presencial_Zona 1","Capacitación sobre G-Suite para usuario final_Presencial_Zona 2","Capacitación sobre G-Suite para usuario final_Presencial_Zona 3","Implementación de G-Suite","CP_BIGQUERY_LONG_TERM_STORAGE_GB/mes","Servicio_Capacitación sobre GCP para usuario técnico__Presencial_Zona 1_Por sesión","Servicio_Capacitación sobre GCP para usuario técnico__Presencial_Zona 2_Por sesión","Servicio_Capacitación sobre GCP para usuario técnico__Presencial_Zona 3_Por sesión","Servicio_Capacitación sobre GCP para usuario técnico__Remoto_Todas las zonas_Por sesión"]
["Zona 2","Facatativá","Bucaramanga","Cúcuta",null,"Lote 3","Servicio",null,"Zona 2","GAPPS-PREM-1USER-12MO_Licencia G Suite Basic año por usuario","Capacitación sobre G-Suite para usuario técnico_Presencial_Zona 1","Capacitación sobre G-Suite para usuario técnico_Presencial_Zona 2","Capacitación sobre G-Suite para usuario técnico_Presencial_Zona 3","Capacitación sobre G-Suite para usuario final_Remoto_Todas las Zonas","CP-BIGQUERY-BATCHQUERY_TB/mes"]
["Zona 3","Zipaquirá","Cartagena","Ibague",null,null,null,"Lote3ProductoZona","Zona 3","GAPPS-UNLIM-1USER-1MO_Licencia G Suite Business mensual por usuario",null,null,null,"Capacitación sobre G-Suite para usuario técnico_Remoto_Todas las Zonas","CP-BIGQUERY-QUERY_TB/mes"]
[null,"Chía","Villavicencio","Manizales",null,null,null,"Zona Todas","Zona Todas","GAPPS-UNLIM-1USER-12MO_Licencia G Suite Business año por usuario",null,null,null,"Migración de correo","CP-BIGQUERY-STORAGE_GB/mes"]
[null,"Mosquera","Santa Marta","Montería",null,null,null,null,null,"GAPPS-ENT-1USER-1MO_Licencia G Suite Enterprise mensual por usuario",null,null,null,"Soporte técnico de G-Suite - horario 6x12","CP-BIGQUERY-STREAMING-INSERT_GB/mes"]
[null,"Madrid","Medellín","Neiva",null,null,null,null,null,"GAPPS-ENT-1USER-12MO_Licencia G Suite Enterprise año por usuario",null,null,null,"Soporte técnico de G-Suite - Horario 7x24","CP-BIGTABLE-NETWORK-CROSSREG_GB/mes"]
[null,"Funza","Barranquilla","Pereira",null,null,null,null,"Lote3ServicioZona","Licencia Google Vault mensual por usuario",null,null,null,null,"CP-BIGTABLE-NETWORK-INTERNET-EGRESS_GB/mes"]
[null,"Cajicá","Palmira","Popayán",null,null,null,null,"Zona 1","GAPPS-VAULT-1USER-12MO_Licencia Google Vault año por usuario",null,null,null,null,"CP-BIGTABLE-NODE_Por hora/node"]
[null,"Soacha","Yumbo","Sincelejo",null,null,null,null,"Zona 2","GAPPS-STOR-20GB-1USER-1MO-STD_Google Drive Storage mensual por usuario por giga",null,null,null,null,"CP-BIGTABLE-STORAGE-HDD_GB/mes"]
[null,"Sibaté","Jamundí","Yopal",null,null,null,null,"Zona 3","GAPPS-STOR-20GB-1USER-12MO-STD_Google Drive Storage anual por usuario por giga",null,null,null,null,"CP-BIGTABLE-STORAGE-SSD_GB/mes"]
[null,"Tocancipá","Florida","Circasia y Salento",null,null,null,null,"Zona Todas","Single Sign-on",null,null,null,null,"CP-DATAFLOW-BATCH_Por 1,000 trabajos"]
[null,"La Calera","Pradera","Montenegro",null,null,null,null,null,null,null,null,null,null,"CP-DATAFLOW-STREAMING_Por 1,000 trabajos"]
[null,"Sopó","Candelaria","Calarcá",null,null,null,null,null,null,null,null,null,null,"CP-DATAPROC_Por hora"]
[null,"Tabio","Dagua","La Tebaida",null,null,null,null,null,null,null,null,null,null,"CP-DLP_GB/mes"]
[null,"Tenjo","Puerto Tejada","Los Patios",null,null,null,null,null,null,null,null,null,null,"CP-GAE-DATASTORE-DELETE-OPS_100k entity delete"]
[null,"Cota","Santander de Quilichao","Villa del Rosario",null,null,null,null,null,null,null,null,null,null,"CP-GAE-DATASTORE-READ-OPS_100k entity reads"]
[null,"Cogua","Villa Rica","San Cayetano",null,null,null,null,null,null,null,null,null,null,"CP-GAE-DATASTORE-STORAGE_GB / mes"]
[null,"Nemocón","Floridablanca","El Zulia",null,null,null,null,null,null,null,null,null,null,"CP-GAE-DATASTORE-WRITE-OPS_100k entity writes"]
[null,"Gachancipá","Girón","Puerto Santander",null,null,null,null,null,null,null,null,null,null,"CP-ML-TRAINING_Por hora, Por ML training unit",null,null,null,null,null,null,null,null,null,null,null,null,null,null,null,null,"SfBServerPlusCAL 2015 Government OLP 1License NoLevel UsrCAL 1 Licencia por Usuario","SysCtrOpsMgrCltMgmtLic SoftwareAssurance Government OLP 1License NoLevel PerUsr",null,null,null,null,null,null,null,null,null,null,null,null,null,null,null,null,null,"Producto DynamicsCRMOnlineEssentialOpen ShrdSvr SubscriptionVL Government OLP 1License NoLevel Qualified Annual Región 1 a 4 Pago Anual Anticipado 1 Licencia por Usuario  1 Licencia por Usuario",null,null,"WindowsServerDCCore 2016 Government OLP 16Licenses NoLevel CoreLic Qualified",null,null,null,null,null,null,null,null,null,null,"SfBServerPlusCAL 2015 Government OLP 1License NoLevel UsrCAL 1 Licencia por Usuario",null,"DynamicsCRMOLProdInstOpen ShrdSvr SubscriptionVL Government OLP 1License NoLevel Srvcs Qualified Annual Región 1 a 4 Pago Anual Anticipado 1 Licencia por Usuario  1 Licencia por Usuario",null,null,"CoreInfraSvrSteStdCore License/SoftwareAssurancePack Government OLP 16Licenses NoLevel W/OWinServerLicense CoreLic Qualified","SysCtrOrchestratorSvr SoftwareAssurance Government OLP 1License NoLevel PerOSE",null,null,null,null,null,null,null,null,null,null,null,"WindowsServerDCCore 2016 Government OLP 16Licenses NoLevel CoreLic Qualified"]
[null,"Bojacá","Piedecuesta","Valle de San Juan",null,null,null,null,null,null,null,null,null,null,"CP-ML-TRAINING-PREMIUM_Por hora, Por ML training unit",null,null,null,null,null,null,null,null,null,null,null,null,null,null,null,null,"SfBServerPlusCAL License/SoftwareAssurancePack Government OLP 1License NoLevel DvcCAL 1 Licencia por Dispositivo","SysCtrOrchestratorSvr License/SoftwareAssurancePack Government OLP 1License NoLevel PerOSE",null,null,null,null,null,null,null,null,null,null,null,null,null,null,null,null,null,"DynamicsCRMOnlineEssentialOpen ShrdSvr SubscriptionVL Government OLP 1License NoLevel Qualified Annual Región 1 a 4 Pago Anual Anticipado 1 Licencia por Usuario  1 Licencia por Usuario",null,null,"WindowsServerDCCore License/SoftwareAssurancePack Government OLP 16Licenses NoLevel CoreLic Qualified",null,null,null,null,null,null,null,null,null,null,"SfBServerPlusCAL License/SoftwareAssurancePack Government OLP 1License NoLevel DvcCAL 1 Licencia por Dispositivo",null,"DynamicsCRMOLProOpen ShrdSvr SubscriptionVL Government OLP 1License NoLevel Qualified Annual Región 1 a 4 Pago Anual Anticipado 1 Licencia por Usuario  1 Licencia por Usuario",null,null,"CoreInfraSvrSteStdCore SoftwareAssurance Government OLP 16Licenses NoLevel CoreLic Qualified","SysCtrOrchestratorSvr SoftwareAssurance Government OLP 1License NoLevel PerUsr",null,null,null,null,null,null,null,null,null,null,null,"WindowsServerDCCore License/SoftwareAssurancePack Government OLP 16Licenses NoLevel CoreLic Qualified"]
[null,null,"Turbaco","San Luis",null,null,null,null,null,null,null,null,null,null,"CP-ML-TRAINING-STANDARD_Por hora, Por ML training unit",null,null,null,null,null,null,null,null,null,null,null,null,null,null,null,null,"SfBServerPlusCAL License/SoftwareAssurancePack Government OLP 1License NoLevel UsrCAL 1 Licencia por Usuario","SysCtrOrchestratorSvr License/SoftwareAssurancePack Government OLP 1License NoLevel PerUsr",null,null,null,null,null,null,null,null,null,null,null,null,null,null,null,null,null,"Producto DynamicsCRMOLNon-ProdOpen ShrdSvr SubscriptionVL Government OLP 1License NoLevel Srvcs Qualified Annual Región 1 a 4 Pago Anual Anticipado 1 Licencia por Usuario  1 Licencia por Usuario",null,null,"WindowsServerDCCore SoftwareAssurance Government OLP 16Licenses NoLevel CoreLic Qualified",null,null,null,null,null,null,null,null,null,null,"SfBServerPlusCAL License/SoftwareAssurancePack Government OLP 1License NoLevel UsrCAL 1 Licencia por Usuario",null,"DynamicsCRMOLStorageOpen ShrdSvr SubscriptionVL Government OLP 1License NoLevel AddOn Qualified Annual Región 1 a 4 Pago Anual Anticipado 1 Licencia por Usuario  1 Licencia por Usuario",null,null,"SysCtrDataCenterCore License/SoftwareAssurancePack Government OLP 16Licenses NoLevel CoreLic Qualified","SysCtrServiceMgrCltMgmtLic License/SoftwareAssurancePack Government OLP 1License NoLevel PerOSE",null,null,null,null,null,null,null,null,null,null,null,"WindowsServerDCCore SoftwareAssurance Government OLP 16Licenses NoLevel CoreLic Qualified"]
[null,null,"Arjona","Piedras",null,null,null,null,null,null,null,null,null,null,"CP-NL-API-ENTITY-RECOGNITION_por registro de texto",null,null,null,null,null,null,null,null,null,null,null,null,null,null,null,null,"SfBServerPlusCAL SoftwareAssurance Government OLP 1License NoLevel DvcCAL 1 Licencia por Dispositivo","SysCtrOrchestratorSvr SoftwareAssurance Government OLP 1License NoLevel PerOSE",null,null,null,null,null,null,null,null,null,null,null,null,null,null,null,null,null,"DynamicsCRMOLNon-ProdOpen ShrdSvr SubscriptionVL Government OLP 1License NoLevel Srvcs Qualified Annual Región 1 a 4 Pago Anual Anticipado 1 Licencia por Usuario  1 Licencia por Usuario",null,null,"WindowsServerSTDCORE 2016 Government OLP 16Licenses NoLevel CoreLic",null,null,null,null,null,null,null,null,null,null,"SfBServerPlusCAL SoftwareAssurance Government OLP 1License NoLevel DvcCAL 1 Licencia por Dispositivo",null,"DynamicsCRMProfessionalAddCAL License/SoftwareAssurancePack Government OLP 1License NoLevel DvcCAL Qualified Región 1 a 4 Una sola vez 1 Licencia por Dispositivo  1 Licencia por Dispositivo",null,null,"SysCtrDataCenterCore SoftwareAssurance Government OLP 16Licenses NoLevel CoreLic Qualified","SysCtrServiceMgrCltMgmtLic License/SoftwareAssurancePack Government OLP 1License NoLevel PerUsr",null,null,null,null,null,null,null,null,null,null,null,"WindowsServerSTDCORE 2016 Government OLP 16Licenses NoLevel CoreLic"]
[null,null,"Turbaná","Flandes",null,null,null,null,null,null,null,null,null,null,"CP-NL-API-SENTIMENT-ANALYSIS_por registro de texto",null,null,null,null,null,null,null,null,null,null,null,null,null,null,null,null,"SfBServerPlusCAL SoftwareAssurance Government OLP 1License NoLevel UsrCAL 1 Licencia por Usuario","SysCtrOrchestratorSvr SoftwareAssurance Government OLP 1License NoLevel PerUsr",null,null,null,null,null,null,null,null,null,null,null,null,null,null,null,null,null,"Producto DynamicsCRMOLProdInstOpen ShrdSvr SubscriptionVL Government OLP 1License NoLevel Srvcs Qualified Annual Región 1 a 4 Pago Anual Anticipado 1 Licencia por Usuario  1 Licencia por Usuario",null,null,"WindowsServerSTDCORE License/SoftwareAssurancePack Government OLP 16Licenses NoLevel CoreLic",null,null,null,null,null,null,null,null,null,null,"SfBServerPlusCAL SoftwareAssurance Government OLP 1License NoLevel UsrCAL 1 Licencia por Usuario",null,"DynamicsCRMProfessionalAddCAL License/SoftwareAssurancePack Government OLP 1License NoLevel UsrCAL Qualified Región 1 a 4 Una sola vez 1 Licencia por Usuario  1 Licencia por Usuario",null,null,"SysCtrStandardCore License/SoftwareAssurancePack Government OLP 16Licenses NoLevel CoreLic Qualified","SysCtrServiceMgrCltMgmtLic SoftwareAssurance Government OLP 1License NoLevel PerOSE",null,null,null,null,null,null,null,null,null,null,null,"WindowsServerSTDCORE License/SoftwareAssurancePack Government OLP 16Licenses NoLevel CoreLic"]
[null,null,"Santa Rosa","Espinal",null,null,null,null,null,null,null,null,null,null,"CP-NL-API-SYNTAX-ANALYSIS_por registro de texto",null,null,null,null,null,null,null,null,null,null,null,null,null,null,null,null,"SfBServerStdCAL 2015 Government OLP 1License NoLevel DvcCAL 1 Licencia por Dispositivo","SysCtrServiceMgrCltMgmtLic License/SoftwareAssurancePack Government OLP 1License NoLevel PerOSE",null,null,null,null,null,null,null,null,null,null,null,null,null,null,null,null,null,"DynamicsCRMOLProdInstOpen ShrdSvr SubscriptionVL Government OLP 1License NoLevel Srvcs Qualified Annual Región 1 a 4 Pago Anual Anticipado 1 Licencia por Usuario  1 Licencia por Usuario",null,null,"WindowsServerSTDCORE SoftwareAssurance Government OLP 16Licenses NoLevel CoreLic",null,null,null,null,null,null,null,null,null,null,"SfBServerStdCAL 2015 Government OLP 1License NoLevel DvcCAL 1 Licencia por Dispositivo",null,"DynamicsCRMProfessionalAddCAL SoftwareAssurance Government OLP 1License NoLevel DvcCAL Qualified Región 1 a 4 Una sola vez 1 Licencia por Dispositivo  1 Licencia por Dispositivo",null,null,"SysCtrStandardCore SoftwareAssurance Government OLP 16Licenses NoLevel CoreLic Qualified","SysCtrServiceMgrCltMgmtLic SoftwareAssurance Government OLP 1License NoLevel PerUsr",null,null,null,null,null,null,null,null,null,null,null,"WindowsServerSTDCORE SoftwareAssurance Government OLP 16Licenses NoLevel CoreLic"]
[null,null,"Santa Catalina","Coello",null,null,null,null,null,null,null,null,null,null,"CP-PUBSUB-MESSAGE-DELIVERY-BASIC_Por 1,000 mensajes",null,null,null,null,null,null,null,null,null,null,null,null,null,null,null,null,"SfBServerStdCAL 2015 Government OLP 1License NoLevel UsrCAL 1 Licencia por Usuario","SysCtrServiceMgrCltMgmtLic License/SoftwareAssurancePack Government OLP 1License NoLevel PerUsr",null,null,null,null,null,null,null,null,null,null,null,null,null,null,null,null,null,"Producto DynamicsCRMOLProOpen ShrdSvr SubscriptionVL Government OLP 1License NoLevel Qualified Annual Región 1 a 4 Pago Anual Anticipado 1 Licencia por Usuario  1 Licencia por Usuario",null,null,null,null,null,null,null,null,null,null,null,null,null,"SfBServerStdCAL 2015 Government OLP 1License NoLevel UsrCAL 1 Licencia por Usuario",null,"DynamicsCRMProfessionalAddCAL SoftwareAssurance Government OLP 1License NoLevel UsrCAL Qualified Región 1 a 4 Una sola vez 1 Licencia por Usuario  1 Licencia por Usuario"]
[null,null,"Clemencia","Cajamarca",null,null,null,null,null,null,null,null,null,null,"CP-SPEECH-API-RECOGNITION_segundos",null,null,null,null,null,null,null,null,null,null,null,null,null,null,null,null,"SfBServerStdCAL License/SoftwareAssurancePack Government OLP 1License NoLevel DvcCAL 1 Licencia por Dispositivo","SysCtrServiceMgrCltMgmtLic SoftwareAssurance Government OLP 1License NoLevel PerOSE",null,null,null,null,null,null,null,null,null,null,null,null,null,null,null,null,null,"DynamicsCRMOLProOpen ShrdSvr SubscriptionVL Government OLP 1License NoLevel Qualified Annual Región 1 a 4 Pago Anual Anticipado 1 Licencia por Usuario  1 Licencia por Usuario",null,null,null,null,null,null,null,null,null,null,null,null,null,"SfBServerStdCAL License/SoftwareAssurancePack Government OLP 1License NoLevel DvcCAL 1 Licencia por Dispositivo",null,"DynamicsCRMProfessionalCAL License/SoftwareAssurancePack Government OLP 1License NoLevel DvcCAL Qualified Región 1 a 4 Una sola vez 1 Licencia por Dispositivo  1 Licencia por Dispositivo"]
[null,null,"María La Baja","Anzoátegui",null,null,null,null,null,null,null,null,null,null,"CP-VISION-FACIAL-DETECTION-20M_Por 1,000 operaciones",null,null,null,null,null,null,null,null,null,null,null,null,null,null,null,null,"SfBServerStdCAL License/SoftwareAssurancePack Government OLP 1License NoLevel UsrCAL 1 Licencia por Usuario","SysCtrServiceMgrCltMgmtLic SoftwareAssurance Government OLP 1License NoLevel PerUsr",null,null,null,null,null,null,null,null,null,null,null,null,null,null,null,null,null,"Producto DynamicsCRMOLStorageOpen ShrdSvr SubscriptionVL Government OLP 1License NoLevel AddOn Qualified Annual Región 1 a 4 Pago Anual Anticipado 1 Licencia por Usuario  1 Licencia por Usuario",null,null,null,null,null,null,null,null,null,null,null,null,null,"SfBServerStdCAL License/SoftwareAssurancePack Government OLP 1License NoLevel UsrCAL 1 Licencia por Usuario",null,"DynamicsCRMProfessionalCAL License/SoftwareAssurancePack Government OLP 1License NoLevel UsrCAL Qualified Región 1 a 4 Una sola vez 1 Licencia por Usuario  1 Licencia por Usuario"]
[null,null,"Mahates","Alvarado",null,null,null,null,null,null,null,null,null,null,"CP-VISION-FACIAL-DETECTION-5M_Por 1,000 operaciones",null,null,null,null,null,null,null,null,null,null,null,null,null,null,null,null,"SfBServerStdCAL SoftwareAssurance Government OLP 1License NoLevel DvcCAL 1 Licencia por Dispositivo","CoreInfrastructureSvrSteDCCore License/SoftwareAssurancePack Government OLP 16Licenses NoLevel CoreLic Qualified",null,null,null,null,null,null,null,null,null,null,null,null,null,null,null,null,null,"DynamicsCRMOLStorageOpen ShrdSvr SubscriptionVL Government OLP 1License NoLevel AddOn Qualified Annual Región 1 a 4 Pago Anual Anticipado 1 Licencia por Usuario  1 Licencia por Usuario",null,null,null,null,null,null,null,null,null,null,null,null,null,"SfBServerStdCAL SoftwareAssurance Government OLP 1License NoLevel DvcCAL 1 Licencia por Dispositivo",null,"DynamicsCRMProfessionalCAL SoftwareAssurance Government OLP 1License NoLevel DvcCAL Qualified Región 1 a 4 Una sola vez 1 Licencia por Dispositivo  1 Licencia por Dispositivo"]
[null,null,"San Estanislao","Villamaría",null,null,null,null,null,null,null,null,null,null,"CP-VISION-IMAGE-PROPERTIES-20M_Por 1,000 operaciones",null,null,null,null,null,null,null,null,null,null,null,null,null,null,null,null,"SfBServerStdCAL SoftwareAssurance Government OLP 1License NoLevel UsrCAL 1 Licencia por Usuario","CoreInfrastructureSvrSteDCCore License/SoftwareAssurancePack Government OLP 16Licenses NoLevel W/OSYSCTRSERVERLICENSE CoreLic Qualified",null,null,null,null,null,null,null,null,null,null,null,null,null,null,null,null,null,"Producto DynamicsCRMProfessionalAddCAL License/SoftwareAssurancePack Government OLP 1License NoLevel DvcCAL Qualified Región 1 a 4 Una sola vez 1 Licencia por Dispositivo  1 Licencia por Dispositivo",null,null,null,null,null,null,null,null,null,null,null,null,null,"SfBServerStdCAL SoftwareAssurance Government OLP 1License NoLevel UsrCAL 1 Licencia por Usuario",null,"DynamicsCRMProfessionalCAL SoftwareAssurance Government OLP 1License NoLevel UsrCAL Qualified Región 1 a 4 Una sola vez 1 Licencia por Usuario  1 Licencia por Usuario"]
[null,null,"Villanueva","Anserma",null,null,null,null,null,null,null,null,null,null,"CP-VISION-IMAGE-PROPERTIES-5M_Por 1,000 operaciones",null,null,null,null,null,null,null,null,null,null,null,null,null,null,null,null,"SfBCloudPBXOpen ShrdSvr SubscriptionVL Government OLP 1License NoLevel  Qualified Annual 1 Licencia por Usuario","CoreInfrastructureSvrSteDCCore License/SoftwareAssurancePack Government OLP 16Licenses NoLevel W/OWinServerLicense CoreLic Qualified",null,null,null,null,null,null,null,null,null,null,null,null,null,null,null,null,null,"Producto DynamicsCRMProfessionalAddCAL License/SoftwareAssurancePack Government OLP 1License NoLevel UsrCAL Qualified Región 1 a 4 Una sola vez 1 Licencia por Usuario  1 Licencia por Usuario",null,null,null,null,null,null,null,null,null,null,null,null,null,"SfBCloudPBXOpen ShrdSvr SubscriptionVL Government OLP 1License NoLevel  Qualified Annual 1 Licencia por Usuario",null,"DynamicsCRMSvr License/SoftwareAssurancePack Government OLP 1License NoLevel 5Client Región 1 a 4 Una sola vez 1 Licencia por Servidor  1 Licencia por Servidor"]
[null,null,"Acacías","Palestina",null,null,null,null,null,null,null,null,null,null,"CP-VISION-LABEL-DETECTION-20M_Por 1,000 operaciones",null,null,null,null,null,null,null,null,null,null,null,null,null,null,null,null,"SfBPlusCALOpen ShrdSvr SubscriptionVL Government OLP 1License NoLevel  Qualified Annual Suscripción anual 1 Licencia por Usuario","CoreInfrastructureSvrSteDCCore SoftwareAssurance Government OLP 16Licenses NoLevel CoreLic Qualified",null,null,null,null,null,null,null,null,null,null,null,null,null,null,null,null,null,"Producto DynamicsCRMProfessionalAddCAL SoftwareAssurance Government OLP 1License NoLevel DvcCAL Qualified Región 1 a 4 Una sola vez 1 Licencia por Dispositivo  1 Licencia por Dispositivo",null,null,null,null,null,null,null,null,null,null,null,null,null,"SfBPlusCALOpen ShrdSvr SubscriptionVL Government OLP 1License NoLevel  Qualified Annual Suscripción anual 1 Licencia por Usuario",null,"DynamicsCRMSvr License/SoftwareAssurancePack Government OLP 1License NoLevel Qualified Región 1 a 4 Una sola vez 1 Licencia por Servidor  1 Licencia por Servidor"]
[null,null,"Cumaral","Chinchiná",null,null,null,null,null,null,null,null,null,null,"CP-VISION-LABEL-DETECTION-5M_Por 1,000 operaciones",null,null,null,null,null,null,null,null,null,null,null,null,null,null,null,null,"SfBCloudPBXOpen ShrdSvr SubscriptionVL Government OLP 1License NoLevel  Qualified Annual 1 licencia por Usuario","CoreInfraSvrSteStdCore License/SoftwareAssurancePack Government OLP 16Licenses NoLevel CoreLic Qualified",null,null,null,null,null,null,null,null,null,null,null,null,null,null,null,null,null,"Producto DynamicsCRMProfessionalAddCAL SoftwareAssurance Government OLP 1License NoLevel UsrCAL Qualified Región 1 a 4 Una sola vez 1 Licencia por Usuario  1 Licencia por Usuario",null,null,null,null,null,null,null,null,null,null,null,null,null,"SfBCloudPBXOpen ShrdSvr SubscriptionVL Government OLP 1License NoLevel  Qualified Annual 1 licencia por Usuario",null,"DynamicsCRMSvr SoftwareAssurance Government OLP 1License NoLevel 5Client Región 1 a 4 Una sola vez 1 Licencia por Servidor  1 Licencia por Servidor"]
[null,null,"Restrepo","Neira",null,null,null,null,null,null,null,null,null,null,"CP-VISION-LANDMARK-DETECTION-20M_Por 1,000 operaciones",null,null,null,null,null,null,null,null,null,null,null,null,null,null,null,null,"SfBPSTNConferencingOpen ShrdSvr SubscriptionVL Government OLP 1License NoLevel Qualified Annual 1 licencia por Usuario","CoreInfraSvrSteStdCore License/SoftwareAssurancePack Government OLP 16Licenses NoLevel W/OSYSCTRSERVERLICENSE CoreLic Qualified",null,null,null,null,null,null,null,null,null,null,null,null,null,null,null,null,null,"Producto DynamicsCRMProfessionalCAL License/SoftwareAssurancePack Government OLP 1License NoLevel DvcCAL Qualified Región 1 a 4 Una sola vez 1 Licencia por Dispositivo  1 Licencia por Dispositivo",null,null,null,null,null,null,null,null,null,null,null,null,null,"SfBPSTNConferencingOpen ShrdSvr SubscriptionVL Government OLP 1License NoLevel Qualified Annual 1 licencia por Usuario",null,"DynamicsCRMSvr SoftwareAssurance Government OLP 1License NoLevel Qualified Región 1 a 4 Una sola vez 1 Licencia por Servidor  1 Licencia por Servidor"]
[null,null,"El Calvario","Marulanda",null,null,null,null,null,null,null,null,null,null,"CP-VISION-LANDMARK-DETECTION-5M_Por 1,000 operaciones",null,null,null,null,null,null,null,null,null,null,null,null,null,null,null,null,null,"CoreInfraSvrSteStdCore License/SoftwareAssurancePack Government OLP 16Licenses NoLevel W/OWinServerLicense CoreLic Qualified",null,null,null,null,null,null,null,null,null,null,null,null,null,null,null,null,null,"Producto DynamicsCRMProfessionalCAL License/SoftwareAssurancePack Government OLP 1License NoLevel UsrCAL Qualified Región 1 a 4 Una sola vez 1 Licencia por Usuario  1 Licencia por Usuario",null,null,null,null,null,null,null,null,null,null,null,null,null,null,null,"DynamicsCRMWorkgroupSvr License/SoftwareAssurancePack Government OLP 1License NoLevel Qualified Región 1 a 4 Una sola vez 1 Licencia por Servidor  1 Licencia por Servidor"]
[null,null,"Puerto López","Cereté",null,null,null,null,null,null,null,null,null,null,"CP-VISION-LOGO-DETECTION-20M_Por 1,000 operaciones",null,null,null,null,null,null,null,null,null,null,null,null,null,null,null,null,null,"CoreInfraSvrSteStdCore SoftwareAssurance Government OLP 16Licenses NoLevel CoreLic Qualified",null,null,null,null,null,null,null,null,null,null,null,null,null,null,null,null,null,"Producto DynamicsCRMProfessionalCAL SoftwareAssurance Government OLP 1License NoLevel DvcCAL Qualified Región 1 a 4 Una sola vez 1 Licencia por Dispositivo  1 Licencia por Dispositivo",null,null,null,null,null,null,null,null,null,null,null,null,null,null,null,"DynamicsCRMWorkgroupSvr SoftwareAssurance Government OLP 1License NoLevel Qualified Región 1 a 4 Una sola vez 1 Licencia por Servidor  1 Licencia por Servidor"]
[null,null,"Puerto Gaitán","Puerto Escondido",null,null,null,null,null,null,null,null,null,null,"CP-VISION-LOGO-DETECTION-5M_Por 1,000 operaciones",null,null,null,null,null,null,null,null,null,null,null,null,null,null,null,null,null,"SysCtrDataCenterCore License/SoftwareAssurancePack Government OLP 16Licenses NoLevel CoreLic Qualified",null,null,null,null,null,null,null,null,null,null,null,null,null,null,null,null,null,"Producto DynamicsCRMProfessionalCAL SoftwareAssurance Government OLP 1License NoLevel UsrCAL Qualified Región 1 a 4 Una sola vez 1 Licencia por Usuario  1 Licencia por Usuario",null,null,null,null,null,null,null,null,null,null,null,null,null,null,null,"Dyn365ForCustmrSrvc LicSAPk OLP NL Gov DvcCAL"]
[null,null,"San Carlos de Guaroa","San Pelayo",null,null,null,null,null,null,null,null,null,null,"CP-VISION-OCR-20M_Por 1,000 operaciones",null,null,null,null,null,null,null,null,null,null,null,null,null,null,null,null,null,"SysCtrDataCenterCore SoftwareAssurance Government OLP 16Licenses NoLevel CoreLic Qualified",null,null,null,null,null,null,null,null,null,null,null,null,null,null,null,null,null,"Producto DynamicsCRMSvr License/SoftwareAssurancePack Government OLP 1License NoLevel 5Client Región 1 a 4 Una sola vez 1 Licencia por Servidor  1 Licencia por Servidor",null,null,null,null,null,null,null,null,null,null,null,null,null,null,null,"Dyn365ForCustmrSrvc LicSAPk OLP NL Gov UsrCAL"]
[null,null,"Ciénaga","San Carlos",null,null,null,null,null,null,null,null,null,null,"CP-VISION-OCR-5M_Por 1,000 operaciones",null,null,null,null,null,null,null,null,null,null,null,null,null,null,null,null,null,"SysCtrStandardCore License/SoftwareAssurancePack Government OLP 16Licenses NoLevel CoreLic Qualified",null,null,null,null,null,null,null,null,null,null,null,null,null,null,null,null,null,"Producto DynamicsCRMSvr License/SoftwareAssurancePack Government OLP 1License NoLevel Qualified Región 1 a 4 Una sola vez 1 Licencia por Servidor  1 Licencia por Servidor",null,null,null,null,null,null,null,null,null,null,null,null,null,null,null,"Dyn365ForCustmrSrvc SA OLP NL Gov DvcCAL"]
[null,null,"Puebloviejo","Planeta Rica",null,null,null,null,null,null,null,null,null,null,"TRANSLATE-BASE-TRANSLATE-1M_Por 1M caracteres",null,null,null,null,null,null,null,null,null,null,null,null,null,null,null,null,null,"SysCtrStandardCore SoftwareAssurance Government OLP 16Licenses NoLevel CoreLic Qualified",null,null,null,null,null,null,null,null,null,null,null,null,null,null,null,null,null,"Producto DynamicsCRMSvr SoftwareAssurance Government OLP 1License NoLevel 5Client Región 1 a 4 Una sola vez 1 Licencia por Servidor  1 Licencia por Servidor",null,null,null,null,null,null,null,null,null,null,null,null,null,null,null,"Dyn365ForCustmrSrvc SA OLP NL Gov UsrCAL"]
[null,null,"El Retén","Tierralta",null,null,null,null,null,null,null,null,null,null,null,null,null,null,null,null,null,null,null,null,null,null,null,null,null,null,null,null,null,null,null,null,null,null,null,null,null,null,null,null,null,null,null,null,null,null,"Producto DynamicsCRMSvr SoftwareAssurance Government OLP 1License NoLevel Qualified Región 1 a 4 Una sola vez 1 Licencia por Servidor  1 Licencia por Servidor",null,null,null,null,null,null,null,null,null,null,null,null,null,null,null,"Dyn365ForSales LicSAPk OLP NL Gov DvcCAL"]
[null,null,"Caldas","Valencia",null,null,null,null,null,null,null,null,null,null,null,null,null,null,null,null,null,null,null,null,null,null,null,null,null,null,null,null,null,null,null,null,null,null,null,null,null,null,null,null,null,null,null,null,null,null,"Producto DynamicsCRMWorkgroupSvr License/SoftwareAssurancePack Government OLP 1License NoLevel Qualified Región 1 a 4 Una sola vez 1 Licencia por Servidor  1 Licencia por Servidor",null,null,null,null,null,null,null,null,null,null,null,null,null,null,null,"Dyn365ForSales LicSAPk OLP NL Gov UsrCAL"]
[null,null,"La Estrella","Canalete",null,null,null,null,null,null,null,null,null,null,null,null,null,null,null,null,null,null,null,null,null,null,null,null,null,null,null,null,null,null,null,null,null,null,null,null,null,null,null,null,null,null,null,null,null,null,"Producto DynamicsCRMWorkgroupSvr SoftwareAssurance Government OLP 1License NoLevel Qualified Región 1 a 4 Una sola vez 1 Licencia por Servidor  1 Licencia por Servidor",null,null,null,null,null,null,null,null,null,null,null,null,null,null,null,"Dyn365ForSales SA OLP NL Gov DvcCAL"]
[null,null,"Itagüí","Los Córdobas",null,null,null,null,null,null,null,null,null,null,null,null,null,null,null,null,null,null,null,null,null,null,null,null,null,null,null,null,null,null,null,null,null,null,null,null,null,null,null,null,null,null,null,null,null,null,"DynamicsCRMOLProOpen ShrdSvr SubscriptionVL Government OLP 1License NoLevel Add-ontoO365 Qualified Annual Suscripción anual 1 Licencia por Usuario",null,null,null,null,null,null,null,null,null,null,null,null,null,null,null,"Dyn365ForSales SA OLP NL Gov UsrCAL"]
[null,null,"Sabaneta","Campoalegre",null,null,null,null,null,null,null,null,null,null,null,null,null,null,null,null,null,null,null,null,null,null,null,null,null,null,null,null,null,null,null,null,null,null,null,null,null,null,null,null,null,null,null,null,null,null,"DynamicsCRMOLProfDirSuprtOpen ShrdSvr SubscriptionVL Government OLP 1License NoLevel Qualified Annual 1 Licencia por Usuario",null,null,null,null,null,null,null,null,null,null,null,null,null,null,null,"Dyn365ForTeamMembers LicSAPk OLP NL Gov DvcCAL"]
[null,null,"Bello","Palermo",null,null,null,null,null,null,null,null,null,null,null,null,null,null,null,null,null,null,null,null,null,null,null,null,null,null,null,null,null,null,null,null,null,null,null,null,null,null,null,null,null,null,null,null,null,null,"Dyn365ForCustmrSrvc LicSAPk OLP NL Gov DvcCAL",null,null,null,null,null,null,null,null,null,null,null,null,null,null,null,"Dyn365ForTeamMembers LicSAPk OLP NL Gov UsrCAL"]
[null,null,"Copacabana","Aipe",null,null,null,null,null,null,null,null,null,null,null,null,null,null,null,null,null,null,null,null,null,null,null,null,null,null,null,null,null,null,null,null,null,null,null,null,null,null,null,null,null,null,null,null,null,null,"Dyn365ForCustmrSrvc LicSAPk OLP NL Gov UsrCAL",null,null,null,null,null,null,null,null,null,null,null,null,null,null,null,"Dyn365ForTeamMembers SA OLP NL Gov DvcCAL"]
[null,null,"Girardota","Rivera",null,null,null,null,null,null,null,null,null,null,null,null,null,null,null,null,null,null,null,null,null,null,null,null,null,null,null,null,null,null,null,null,null,null,null,null,null,null,null,null,null,null,null,null,null,null,"Dyn365ForCustmrSrvc SA OLP NL Gov DvcCAL",null,null,null,null,null,null,null,null,null,null,null,null,null,null,null,"Dyn365ForTeamMembers SA OLP NL Gov UsrCAL"]
[null,null,"Barbosa","Tello",null,null,null,null,null,null,null,null,null,null,null,null,null,null,null,null,null,null,null,null,null,null,null,null,null,null,null,null,null,null,null,null,null,null,null,null,null,null,null,null,null,null,null,null,null,null,"Dyn365ForCustmrSrvc SA OLP NL Gov UsrCAL",null,null,null,null,null,null,null,null,null,null,null,null,null,null,null,"DynCRMOLProDirSupOpn ShrdSvr SubsVL OLP NL Annual Gov Qlfd"]
[null,null,"Envigado","Baraya",null,null,null,null,null,null,null,null,null,null,null,null,null,null,null,null,null,null,null,null,null,null,null,null,null,null,null,null,null,null,null,null,null,null,null,null,null,null,null,null,null,null,null,null,null,null,"Dyn365ForSales LicSAPk OLP NL Gov DvcCAL",null,null,null,null,null,null,null,null,null,null,null,null,null,null,null,"DynCRMOLProOpen ShrdSvr SubsVL OLP NL Annual Gov AddOntoO365 Qlfd"]
[null,null,"Soledad","Villavieja",null,null,null,null,null,null,null,null,null,null,null,null,null,null,null,null,null,null,null,null,null,null,null,null,null,null,null,null,null,null,null,null,null,null,null,null,null,null,null,null,null,null,null,null,null,null,"Dyn365ForSales LicSAPk OLP NL Gov UsrCAL",null,null,null,null,null,null,null,null,null,null,null,null,null,null,null,"Dyn365ForCustomerService License/SoftwareAssurancePack Government OLP 1License NoLevel QualifiedOffer UsrCAL fromCRMBasic"]
[null,null,"Galapa","Dosquebradas",null,null,null,null,null,null,null,null,null,null,null,null,null,null,null,null,null,null,null,null,null,null,null,null,null,null,null,null,null,null,null,null,null,null,null,null,null,null,null,null,null,null,null,null,null,null,"Dyn365ForSales SA OLP NL Gov DvcCAL",null,null,null,null,null,null,null,null,null,null,null,null,null,null,null,"Dyn365ForCustomerService License/SoftwareAssurancePack Government OLP 1License NoLevel QualifiedOffer UsrCAL fromCRM"]
[null,null,"Puerto Colombia","La Virginia",null,null,null,null,null,null,null,null,null,null,null,null,null,null,null,null,null,null,null,null,null,null,null,null,null,null,null,null,null,null,null,null,null,null,null,null,null,null,null,null,null,null,null,null,null,null,"Dyn365ForSales SA OLP NL Gov UsrCAL",null,null,null,null,null,null,null,null,null,null,null,null,null,null,null,"Dyn365ForCustomerService SoftwareAssurance Government OLP 1License NoLevel QualifiedOffer UsrCAL fromCRMBasic"]
[null,null,"Malambo","Marsella",null,null,null,null,null,null,null,null,null,null,null,null,null,null,null,null,null,null,null,null,null,null,null,null,null,null,null,null,null,null,null,null,null,null,null,null,null,null,null,null,null,null,null,null,null,null,"Dyn365ForTeamMembers LicSAPk OLP NL Gov DvcCAL",null,null,null,null,null,null,null,null,null,null,null,null,null,null,null,"Dyn365ForCustomerService SoftwareAssurance Government OLP 1License NoLevel QualifiedOffer UsrCAL fromCRMPro"]
[null,null,null,"Santa Rosa de Cabal",null,null,null,null,null,null,null,null,null,null,null,null,null,null,null,null,null,null,null,null,null,null,null,null,null,null,null,null,null,null,null,null,null,null,null,null,null,null,null,null,null,null,null,null,null,null,"Dyn365ForTeamMembers LicSAPk OLP NL Gov UsrCAL",null,null,null,null,null,null,null,null,null,null,null,null,null,null,null,"Dyn365ForSales License/SoftwareAssurancePack Government OLP 1License NoLevel QualifiedOffer UsrCAL fromCRMBasic"]
[null,null,null,"El Tambo",null,null,null,null,null,null,null,null,null,null,null,null,null,null,null,null,null,null,null,null,null,null,null,null,null,null,null,null,null,null,null,null,null,null,null,null,null,null,null,null,null,null,null,null,null,null,"Dyn365ForTeamMembers SA OLP NL Gov DvcCAL",null,null,null,null,null,null,null,null,null,null,null,null,null,null,null,"Dyn365ForSales License/SoftwareAssurancePack Government OLP 1License NoLevel QualifiedOffer UsrCAL fromCRMPro"]
[null,null,null,"Piendamó",null,null,null,null,null,null,null,null,null,null,null,null,null,null,null,null,null,null,null,null,null,null,null,null,null,null,null,null,null,null,null,null,null,null,null,null,null,null,null,null,null,null,null,null,null,null,"Dyn365ForTeamMembers SA OLP NL Gov UsrCAL",null,null,null,null,null,null,null,null,null,null,null,null,null,null,null,"Dyn365ForSales SoftwareAssurance Government OLP 1License NoLevel QualifiedOffer UsrCAL fromCRMBasic"]
[null,null,null,"Tunía",null,null,null,null,null,null,null,null,null,null,null,null,null,null,null,null,null,null,null,null,null,null,null,null,null,null,null,null,null,null,null,null,null,null,null,null,null,null,null,null,null,null,null,null,null,null,"DynCRMOLProDirSupOpn ShrdSvr SubsVL OLP NL Annual Gov Qlfd",null,null,null,null,null,null,null,null,null,null,null,null,null,null,null,"Dyn365ForSales SoftwareAssurance Government OLP 1License NoLevel QualifiedOffer UsrCAL fromCRMPro"]
[null,null,null,"Timbío",null,null,null,null,null,null,null,null,null,null,null,null,null,null,null,null,null,null,null,null,null,null,null,null,null,null,null,null,null,null,null,null,null,null,null,null,null,null,null,null,null,null,null,null,null,null,"DynCRMOLProOpen ShrdSvr SubsVL OLP NL Annual Gov AddOntoO365 Qlfd",null,null,null,null,null,null,null,null,null,null,null,null,null,null,null,"Dyn365ForTeamMembers License/SoftwareAssurancePack Government OLP 1License NoLevel QualifiedOffer UsrCAL fromCRMEssentials"]
[null,null,null,"Cajibío",null,null,null,null,null,null,null,null,null,null,null,null,null,null,null,null,null,null,null,null,null,null,null,null,null,null,null,null,null,null,null,null,null,null,null,null,null,null,null,null,null,null,null,null,null,null,"Dyn365ForCustomerService License/SoftwareAssurancePack Government OLP 1License NoLevel QualifiedOffer UsrCAL fromCRMBasic",null,null,null,null,null,null,null,null,null,null,null,null,null,null,null,"Dyn365ForTeamMembers SoftwareAssurance Government OLP 1License NoLevel QualifiedOffer UsrCAL fromCRMEssentials"]
[null,null,null,"Sampués",null,null,null,null,null,null,null,null,null,null,null,null,null,null,null,null,null,null,null,null,null,null,null,null,null,null,null,null,null,null,null,null,null,null,null,null,null,null,null,null,null,null,null,null,null,null,"Dyn365ForCustomerService License/SoftwareAssurancePack Government OLP 1License NoLevel QualifiedOffer UsrCAL fromCRM"]
[null,null,null,"Palmito",null,null,null,null,null,null,null,null,null,null,null,null,null,null,null,null,null,null,null,null,null,null,null,null,null,null,null,null,null,null,null,null,null,null,null,null,null,null,null,null,null,null,null,null,null,null,"Dyn365ForCustomerService SoftwareAssurance Government OLP 1License NoLevel QualifiedOffer UsrCAL fromCRMBasic"]
[null,null,null,"Tolú",null,null,null,null,null,null,null,null,null,null,null,null,null,null,null,null,null,null,null,null,null,null,null,null,null,null,null,null,null,null,null,null,null,null,null,null,null,null,null,null,null,null,null,null,null,null,"Dyn365ForCustomerService SoftwareAssurance Government OLP 1License NoLevel QualifiedOffer UsrCAL fromCRMPro"]
[null,null,null,"Tolú Viejo",null,null,null,null,null,null,null,null,null,null,null,null,null,null,null,null,null,null,null,null,null,null,null,null,null,null,null,null,null,null,null,null,null,null,null,null,null,null,null,null,null,null,null,null,null,null,"Dyn365ForSales License/SoftwareAssurancePack Government OLP 1License NoLevel QualifiedOffer UsrCAL fromCRMBasic"]
[null,null,null,"Nunchía",null,null,null,null,null,null,null,null,null,null,null,null,null,null,null,null,null,null,null,null,null,null,null,null,null,null,null,null,null,null,null,null,null,null,null,null,null,null,null,null,null,null,null,null,null,null,"Dyn365ForSales License/SoftwareAssurancePack Government OLP 1License NoLevel QualifiedOffer UsrCAL fromCRMPro"]
[null,null,null,"Paya",null,null,null,null,null,null,null,null,null,null,null,null,null,null,null,null,null,null,null,null,null,null,null,null,null,null,null,null,null,null,null,null,null,null,null,null,null,null,null,null,null,null,null,null,null,null,"Dyn365ForSales SoftwareAssurance Government OLP 1License NoLevel QualifiedOffer UsrCAL fromCRMBasic"]
[null,null,null,"San Luis de Palenque",null,null,null,null,null,null,null,null,null,null,null,null,null,null,null,null,null,null,null,null,null,null,null,null,null,null,null,null,null,null,null,null,null,null,null,null,null,null,null,null,null,null,null,null,null,null,"Dyn365ForSales SoftwareAssurance Government OLP 1License NoLevel QualifiedOffer UsrCAL fromCRMPro"]
[null,null,null,"Orocué",null,null,null,null,null,null,null,null,null,null,null,null,null,null,null,null,null,null,null,null,null,null,null,null,null,null,null,null,null,null,null,null,null,null,null,null,null,null,null,null,null,null,null,null,null,null,"Dyn365ForTeamMembers License/SoftwareAssurancePack Government OLP 1License NoLevel QualifiedOffer UsrCAL fromCRMEssentials"]
[null,null,null,"Maní",null,null,null,null,null,null,null,null,null,null,null,null,null,null,null,null,null,null,null,null,null,null,null,null,null,null,null,null,null,null,null,null,null,null,null,null,null,null,null,null,null,null,null,null,null,null,"Dyn365ForTeamMembers SoftwareAssurance Government OLP 1License NoLevel QualifiedOffer UsrCAL fromCRMEssentials"]
[null,null,null,"Aguazul"]
[null,null,null,"Labranzagrande"]
[]
[]
[]
["Lote1Proveedor","Lote3Proveedor"]
["Eforcers S.A.","Eforcers S.A."]
["Ito Software S.A.S.","Información Localizada S.A.S."]

{"sheet":"Listas (2)","index":9,"n_rows":222,"n_cols":83,"rows_kept":222,"cut":false,"hidden":true,"merged":[]}
["Zonas","Zona1Municipio","Zona2Municipio","Zona3Municipio","ZonaMunicipio","Lotes","Tipo","Lote1ProductoZona","Lote1ServicioZona","Lote1ProductoZonaTodas","Lote1ServicioZona1","Lote1ServicioZona2","Lote1ServicioZona3","Lote1ServicioZonaTodas","Lote3ProductoZonaTodas","Lote3ServicioZona1","Lote3ServicioZona2","Lote3ServicioZona3","Lote3ServicioZonaTodas"]
["Zona 1","Bogotá","Cali","Armenia","Otro","Lote 1","Producto","Zona Todas","Zona 1","GAPPS-PREM-1USER-1MO_Licencia G Suite Basic mensual por usuario","Capacitación sobre G-Suite para usuario final_Presencial_Zona 1","Capacitación sobre G-Suite para usuario final_Presencial_Zona 2","Capacitación sobre G-Suite para usuario final_Presencial_Zona 3","Implementación de G-Suite","CP-COMPUTEENGINE-VMIMAGE-N1-STANDARD-1_Por hora","Servicio_Experto en GCP_Experto tipo 1_Presencial_Zona 1_Por hora","Servicio_Experto en GCP_Experto tipo 1_Presencial_Zona 2_Por hora","Servicio_Experto en GCP_Experto tipo 1_Presencial_Zona 3_Por hora","Servicio_Experto en GCP_Experto tipo 1_Remoto_Todas las zonas_Por hora"]
["Zona 2","Facatativá","Bucaramanga","Cúcuta",null,"Lote 3","Servicio",null,"Zona 2","GAPPS-PREM-1USER-12MO_Licencia G Suite Basic año por usuario","Capacitación sobre G-Suite para usuario técnico_Presencial_Zona 1","Capacitación sobre G-Suite para usuario técnico_Presencial_Zona 2","Capacitación sobre G-Suite para usuario técnico_Presencial_Zona 3","Capacitación sobre G-Suite para usuario final_Remoto_Todas las Zonas","CP-COMPUTEENGINE-VMIMAGE-N1-STANDARD-2_Por hora","Servicio_Experto en GCP_Experto tipo 2_Presencial_Zona 1_Por hora","Servicio_Experto en GCP_Experto tipo 2_Presencial_Zona 2_Por hora","Servicio_Experto en GCP_Experto tipo 2_Presencial_Zona 3_Por hora","Servicio_Experto en GCP_Experto tipo 2_Remoto_Todas las zonas_Por hora"]
["Zona 3","Zipaquirá","Cartagena","Ibague",null,null,null,"Lote3ProductoZona","Zona 3","GAPPS-UNLIM-1USER-1MO_Licencia G Suite Business mensual por usuario",null,null,null,"Capacitación sobre G-Suite para usuario técnico_Remoto_Todas las Zonas","CP-COMPUTEENGINE-VMIMAGE-N1-STANDARD-4_Por hora","Servicio_Experto en GCP_Experto tipo 3_Presencial_Zona 1_Por hora","Servicio_Experto en GCP_Experto tipo 3_Presencial_Zona 2_Por hora","Servicio_Experto en GCP_Experto tipo 3_Presencial_Zona 3_Por hora","Servicio_Experto en GCP_Experto tipo 3_Remoto_Todas las zonas_Por hora"]
[null,"Chía","Villavicencio","Manizales",null,null,null,"Zona Todas","Zona Todas","GAPPS-UNLIM-1USER-12MO_Licencia G Suite Business año por usuario",null,null,null,"Migración de correo","CP-COMPUTEENGINE-VMIMAGE-N1-STANDARD-8_Por hora","Servicio_Capacitación sobre GCP para usuario técnico__Presencial_Zona 1_Por sesión","Servicio_Capacitación sobre GCP para usuario técnico__Presencial_Zona 2_Por sesión","Servicio_Capacitación sobre GCP para usuario técnico__Presencial_Zona 3_Por sesión","Servicio_Capacitación sobre GCP para usuario técnico__Remoto_Todas las zonas_Por sesión"]
[null,"Mosquera","Santa Marta","Montería",null,null,null,null,null,"GAPPS-ENT-1USER-1MO_Licencia G Suite Enterprise mensual por usuario",null,null,null,"Soporte técnico de G-Suite - horario 6x12","CP-COMPUTEENGINE-VMIMAGE-N1-STANDARD-16_Por hora",null,null,null,"Servicio_Soporte técnico de GCP__Remoto_Todas las zonas_Por hora_Horario 6x12"]
[null,"Madrid","Medellín","Neiva",null,null,null,null,null,"GAPPS-ENT-1USER-12MO_Licencia G Suite Enterprise año por usuario",null,null,null,"Soporte técnico de G-Suite - Horario 7x24","CP-COMPUTEENGINE-VMIMAGE-N1-STANDARD-32_Por hora",null,null,null,"Servicio_Soporte técnico de GCP__Remoto_Todas las zonas_Por hora_Horario 7x24"]
[null,"Funza","Barranquilla","Pereira",null,null,null,null,"Lote3ServicioZona","Licencia Google Vault mensual por usuario",null,null,null,null,"CP-COMPUTEENGINE-VMIMAGE-N1-STANDARD-64_Por hora"]
[null,"Cajicá","Palmira","Popayán",null,null,null,null,"Zona 1","GAPPS-VAULT-1USER-12MO_Licencia Google Vault año por usuario",null,null,null,null,"CP-COMPUTEENGINE-VMIMAGE-N1-HIGHMEM-2_Por hora"]
[null,"Soacha","Yumbo","Sincelejo",null,null,null,null,"Zona 2","GAPPS-STOR-20GB-1USER-1MO-STD_Google Drive Storage mensual por usuario por giga",null,null,null,null,"CP-COMPUTEENGINE-VMIMAGE-N1-HIGHMEM-4_Por hora"]
[null,"Sibaté","Jamundí","Yopal",null,null,null,null,"Zona 3","GAPPS-STOR-20GB-1USER-12MO-STD_Google Drive Storage anual por usuario por giga",null,null,null,null,"CP-COMPUTEENGINE-VMIMAGE-N1-HIGHMEM-8_Por hora"]
[null,"Tocancipá","Florida","Circasia y Salento",null,null,null,null,"Zona Todas","Single Sign-on",null,null,null,null,"CP-COMPUTEENGINE-VMIMAGE-N1-HIGHMEM-16_Por hora"]
[null,"La Calera","Pradera","Montenegro",null,null,null,null,null,null,null,null,null,null,"CP-COMPUTEENGINE-VMIMAGE-N1-HIGHMEM-32_Por hora"]
[null,"Sopó","Candelaria","Calarcá",null,null,null,null,null,null,null,null,null,null,"CP-COMPUTEENGINE-VMIMAGE-N1-HIGHMEM-64_Por hora"]
[null,"Tabio","Dagua","La Tebaida",null,null,null,null,null,null,null,null,null,null,"CP-COMPUTEENGINE-VMIMAGE-N1-HIGHCPU-2_Por hora"]
[null,"Tenjo","Puerto Tejada","Los Patios",null,null,null,null,null,null,null,null,null,null,"CP-COMPUTEENGINE-VMIMAGE-N1-HIGHCPU-4_Por hora"]
[null,"Cota","Santander de Quilichao","Villa del Rosario",null,null,null,null,null,null,null,null,null,null,"CP-COMPUTEENGINE-VMIMAGE-N1-HIGHCPU-8_Por hora"]
[null,"Cogua","Villa Rica","San Cayetano",null,null,null,null,null,null,null,null,null,null,"CP-COMPUTEENGINE-VMIMAGE-N1-HIGHCPU-16_Por hora"]
[null,"Nemocón","Floridablanca","El Zulia",null,null,null,null,null,null,null,null,null,null,"CP-COMPUTEENGINE-VMIMAGE-N1-HIGHCPU-32_Por hora"]
[null,"Gachancipá","Girón","Puerto Santander",null,null,null,null,null,null,null,null,null,null,"CP-COMPUTEENGINE-VMIMAGE-N1-HIGHCPU-64_Por hora",null,null,null,null,null,null,null,null,null,null,null,null,null,null,null,null,"SfBServerPlusCAL 2015 Government OLP 1License NoLevel UsrCAL 1 Licencia por Usuario","SysCtrOpsMgrCltMgmtLic SoftwareAssurance Government OLP 1License NoLevel PerUsr",null,null,null,null,null,null,null,null,null,null,null,null,null,null,null,null,null,"Producto DynamicsCRMOnlineEssentialOpen ShrdSvr SubscriptionVL Government OLP 1License NoLevel Qualified Annual Región 1 a 4 Pago Anual Anticipado 1 Licencia por Usuario  1 Licencia por Usuario",null,null,"WindowsServerDCCore 2016 Government OLP 16Licenses NoLevel CoreLic Qualified",null,null,null,null,null,null,null,null,null,null,"SfBServerPlusCAL 2015 Government OLP 1License NoLevel UsrCAL 1 Licencia por Usuario",null,"DynamicsCRMOLProdInstOpen ShrdSvr SubscriptionVL Government OLP 1License NoLevel Srvcs Qualified Annual Región 1 a 4 Pago Anual Anticipado 1 Licencia por Usuario  1 Licencia por Usuario",null,null,"CoreInfraSvrSteStdCore License/SoftwareAssurancePack Government OLP 16Licenses NoLevel W/OWinServerLicense CoreLic Qualified","SysCtrOrchestratorSvr SoftwareAssurance Government OLP 1License NoLevel PerOSE",null,null,null,null,null,null,null,null,null,null,null,"WindowsServerDCCore 2016 Government OLP 16Licenses NoLevel CoreLic Qualified"]
[null,"Bojacá","Piedecuesta","Valle de San Juan",null,null,null,null,null,null,null,null,null,null,"CP-COMPUTEENGINE-VMIMAGE-F1-MICRO-SHARED_Por hora",null,null,null,null,null,null,null,null,null,null,null,null,null,null,null,null,"SfBServerPlusCAL License/SoftwareAssurancePack Government OLP 1License NoLevel DvcCAL 1 Licencia por Dispositivo","SysCtrOrchestratorSvr License/SoftwareAssurancePack Government OLP 1License NoLevel PerOSE",null,null,null,null,null,null,null,null,null,null,null,null,null,null,null,null,null,"DynamicsCRMOnlineEssentialOpen ShrdSvr SubscriptionVL Government OLP 1License NoLevel Qualified Annual Región 1 a 4 Pago Anual Anticipado 1 Licencia por Usuario  1 Licencia por Usuario",null,null,"WindowsServerDCCore License/SoftwareAssurancePack Government OLP 16Licenses NoLevel CoreLic Qualified",null,null,null,null,null,null,null,null,null,null,"SfBServerPlusCAL License/SoftwareAssurancePack Government OLP 1License NoLevel DvcCAL 1 Licencia por Dispositivo",null,"DynamicsCRMOLProOpen ShrdSvr SubscriptionVL Government OLP 1License NoLevel Qualified Annual Región 1 a 4 Pago Anual Anticipado 1 Licencia por Usuario  1 Licencia por Usuario",null,null,"CoreInfraSvrSteStdCore SoftwareAssurance Government OLP 16Licenses NoLevel CoreLic Qualified","SysCtrOrchestratorSvr SoftwareAssurance Government OLP 1License NoLevel PerUsr",null,null,null,null,null,null,null,null,null,null,null,"WindowsServerDCCore License/SoftwareAssurancePack Government OLP 16Licenses NoLevel CoreLic Qualified"]
[null,null,"Turbaco","San Luis",null,null,null,null,null,null,null,null,null,null,"CP-COMPUTEENGINE-VMIMAGE-G1-SMALL-SHARED_Por hora",null,null,null,null,null,null,null,null,null,null,null,null,null,null,null,null,"SfBServerPlusCAL License/SoftwareAssurancePack Government OLP 1License NoLevel UsrCAL 1 Licencia por Usuario","SysCtrOrchestratorSvr License/SoftwareAssurancePack Government OLP 1License NoLevel PerUsr",null,null,null,null,null,null,null,null,null,null,null,null,null,null,null,null,null,"Producto DynamicsCRMOLNon-ProdOpen ShrdSvr SubscriptionVL Government OLP 1License NoLevel Srvcs Qualified Annual Región 1 a 4 Pago Anual Anticipado 1 Licencia por Usuario  1 Licencia por Usuario",null,null,"WindowsServerDCCore SoftwareAssurance Government OLP 16Licenses NoLevel CoreLic Qualified",null,null,null,null,null,null,null,null,null,null,"SfBServerPlusCAL License/SoftwareAssurancePack Government OLP 1License NoLevel UsrCAL 1 Licencia por Usuario",null,"DynamicsCRMOLStorageOpen ShrdSvr SubscriptionVL Government OLP 1License NoLevel AddOn Qualified Annual Región 1 a 4 Pago Anual Anticipado 1 Licencia por Usuario  1 Licencia por Usuario",null,null,"SysCtrDataCenterCore License/SoftwareAssurancePack Government OLP 16Licenses NoLevel CoreLic Qualified","SysCtrServiceMgrCltMgmtLic License/SoftwareAssurancePack Government OLP 1License NoLevel PerOSE",null,null,null,null,null,null,null,null,null,null,null,"WindowsServerDCCore SoftwareAssurance Government OLP 16Licenses NoLevel CoreLic Qualified"]
[null,null,"Arjona","Piedras",null,null,null,null,null,null,null,null,null,null,"CP-COMPUTEENGINE-COMMITMENTCORE-1y_Por año",null,null,null,null,null,null,null,null,null,null,null,null,null,null,null,null,"SfBServerPlusCAL SoftwareAssurance Government OLP 1License NoLevel DvcCAL 1 Licencia por Dispositivo","SysCtrOrchestratorSvr SoftwareAssurance Government OLP 1License NoLevel PerOSE",null,null,null,null,null,null,null,null,null,null,null,null,null,null,null,null,null,"DynamicsCRMOLNon-ProdOpen ShrdSvr SubscriptionVL Government OLP 1License NoLevel Srvcs Qualified Annual Región 1 a 4 Pago Anual Anticipado 1 Licencia por Usuario  1 Licencia por Usuario",null,null,"WindowsServerSTDCORE 2016 Government OLP 16Licenses NoLevel CoreLic",null,null,null,null,null,null,null,null,null,null,"SfBServerPlusCAL SoftwareAssurance Government OLP 1License NoLevel DvcCAL 1 Licencia por Dispositivo",null,"DynamicsCRMProfessionalAddCAL License/SoftwareAssurancePack Government OLP 1License NoLevel DvcCAL Qualified Región 1 a 4 Una sola vez 1 Licencia por Dispositivo  1 Licencia por Dispositivo",null,null,"SysCtrDataCenterCore SoftwareAssurance Government OLP 16Licenses NoLevel CoreLic Qualified","SysCtrServiceMgrCltMgmtLic License/SoftwareAssurancePack Government OLP 1License NoLevel PerUsr",null,null,null,null,null,null,null,null,null,null,null,"WindowsServerSTDCORE 2016 Government OLP 16Licenses NoLevel CoreLic"]
[null,null,"Turbaná","Flandes",null,null,null,null,null,null,null,null,null,null,"CP-COMPUTEENGINE-COMMITMENTRAM-1yr_Por año",null,null,null,null,null,null,null,null,null,null,null,null,null,null,null,null,"SfBServerPlusCAL SoftwareAssurance Government OLP 1License NoLevel UsrCAL 1 Licencia por Usuario","SysCtrOrchestratorSvr SoftwareAssurance Government OLP 1License NoLevel PerUsr",null,null,null,null,null,null,null,null,null,null,null,null,null,null,null,null,null,"Producto DynamicsCRMOLProdInstOpen ShrdSvr SubscriptionVL Government OLP 1License NoLevel Srvcs Qualified Annual Región 1 a 4 Pago Anual Anticipado 1 Licencia por Usuario  1 Licencia por Usuario",null,null,"WindowsServerSTDCORE License/SoftwareAssurancePack Government OLP 16Licenses NoLevel CoreLic",null,null,null,null,null,null,null,null,null,null,"SfBServerPlusCAL SoftwareAssurance Government OLP 1License NoLevel UsrCAL 1 Licencia por Usuario",null,"DynamicsCRMProfessionalAddCAL License/SoftwareAssurancePack Government OLP 1License NoLevel UsrCAL Qualified Región 1 a 4 Una sola vez 1 Licencia por Usuario  1 Licencia por Usuario",null,null,"SysCtrStandardCore License/SoftwareAssurancePack Government OLP 16Licenses NoLevel CoreLic Qualified","SysCtrServiceMgrCltMgmtLic SoftwareAssurance Government OLP 1License NoLevel PerOSE",null,null,null,null,null,null,null,null,null,null,null,"WindowsServerSTDCORE License/SoftwareAssurancePack Government OLP 16Licenses NoLevel CoreLic"]
[null,null,"Santa Rosa","Espinal",null,null,null,null,null,null,null,null,null,null,"CP-COMPUTEENGINE-OS-WINDOWS-SQL-STANDARD_Por core/hora",null,null,null,null,null,null,null,null,null,null,null,null,null,null,null,null,"SfBServerStdCAL 2015 Government OLP 1License NoLevel DvcCAL 1 Licencia por Dispositivo","SysCtrServiceMgrCltMgmtLic License/SoftwareAssurancePack Government OLP 1License NoLevel PerOSE",null,null,null,null,null,null,null,null,null,null,null,null,null,null,null,null,null,"DynamicsCRMOLProdInstOpen ShrdSvr SubscriptionVL Government OLP 1License NoLevel Srvcs Qualified Annual Región 1 a 4 Pago Anual Anticipado 1 Licencia por Usuario  1 Licencia por Usuario",null,null,"WindowsServerSTDCORE SoftwareAssurance Government OLP 16Licenses NoLevel CoreLic",null,null,null,null,null,null,null,null,null,null,"SfBServerStdCAL 2015 Government OLP 1License NoLevel DvcCAL 1 Licencia por Dispositivo",null,"DynamicsCRMProfessionalAddCAL SoftwareAssurance Government OLP 1License NoLevel DvcCAL Qualified Región 1 a 4 Una sola vez 1 Licencia por Dispositivo  1 Licencia por Dispositivo",null,null,"SysCtrStandardCore SoftwareAssurance Government OLP 16Licenses NoLevel CoreLic Qualified","SysCtrServiceMgrCltMgmtLic SoftwareAssurance Government OLP 1License NoLevel PerUsr",null,null,null,null,null,null,null,null,null,null,null,"WindowsServerSTDCORE SoftwareAssurance Government OLP 16Licenses NoLevel CoreLic"]
[null,null,"Santa Catalina","Coello",null,null,null,null,null,null,null,null,null,null,"CP-COMPUTEENGINE-OS-WINDOWS-SQL-WEB_Por core/hora",null,null,null,null,null,null,null,null,null,null,null,null,null,null,null,null,"SfBServerStdCAL 2015 Government OLP 1License NoLevel UsrCAL 1 Licencia por Usuario","SysCtrServiceMgrCltMgmtLic License/SoftwareAssurancePack Government OLP 1License NoLevel PerUsr",null,null,null,null,null,null,null,null,null,null,null,null,null,null,null,null,null,"Producto DynamicsCRMOLProOpen ShrdSvr SubscriptionVL Government OLP 1License NoLevel Qualified Annual Región 1 a 4 Pago Anual Anticipado 1 Licencia por Usuario  1 Licencia por Usuario",null,null,null,null,null,null,null,null,null,null,null,null,null,"SfBServerStdCAL 2015 Government OLP 1License NoLevel UsrCAL 1 Licencia por Usuario",null,"DynamicsCRMProfessionalAddCAL SoftwareAssurance Government OLP 1License NoLevel UsrCAL Qualified Región 1 a 4 Una sola vez 1 Licencia por Usuario  1 Licencia por Usuario"]
[null,null,"Clemencia","Cajamarca",null,null,null,null,null,null,null,null,null,null,"CP-COMPUTEENGINE-OS-RHEL-SMALL_Por hora",null,null,null,null,null,null,null,null,null,null,null,null,null,null,null,null,"SfBServerStdCAL License/SoftwareAssurancePack Government OLP 1License NoLevel DvcCAL 1 Licencia por Dispositivo","SysCtrServiceMgrCltMgmtLic SoftwareAssurance Government OLP 1License NoLevel PerOSE",null,null,null,null,null,null,null,null,null,null,null,null,null,null,null,null,null,"DynamicsCRMOLProOpen ShrdSvr SubscriptionVL Government OLP 1License NoLevel Qualified Annual Región 1 a 4 Pago Anual Anticipado 1 Licencia por Usuario  1 Licencia por Usuario",null,null,null,null,null,null,null,null,null,null,null,null,null,"SfBServerStdCAL License/SoftwareAssurancePack Government OLP 1License NoLevel DvcCAL 1 Licencia por Dispositivo",null,"DynamicsCRMProfessionalCAL License/SoftwareAssurancePack Government OLP 1License NoLevel DvcCAL Qualified Región 1 a 4 Una sola vez 1 Licencia por Dispositivo  1 Licencia por Dispositivo"]
[null,null,"María La Baja","Anzoátegui",null,null,null,null,null,null,null,null,null,null,"CP-COMPUTEENGINE-OS-RHEL-LARGE_Por hora",null,null,null,null,null,null,null,null,null,null,null,null,null,null,null,null,"SfBServerStdCAL License/SoftwareAssurancePack Government OLP 1License NoLevel UsrCAL 1 Licencia por Usuario","SysCtrServiceMgrCltMgmtLic SoftwareAssurance Government OLP 1License NoLevel PerUsr",null,null,null,null,null,null,null,null,null,null,null,null,null,null,null,null,null,"Producto DynamicsCRMOLStorageOpen ShrdSvr SubscriptionVL Government OLP 1License NoLevel AddOn Qualified Annual Región 1 a 4 Pago Anual Anticipado 1 Licencia por Usuario  1 Licencia por Usuario",null,null,null,null,null,null,null,null,null,null,null,null,null,"SfBServerStdCAL License/SoftwareAssurancePack Government OLP 1License NoLevel UsrCAL 1 Licencia por Usuario",null,"DynamicsCRMProfessionalCAL License/SoftwareAssurancePack Government OLP 1License NoLevel UsrCAL Qualified Región 1 a 4 Una sola vez 1 Licencia por Usuario  1 Licencia por Usuario"]
[null,null,"Mahates","Alvarado",null,null,null,null,null,null,null,null,null,null,"CP-COMPUTEENGINE-OS-SUSE_Por hora",null,null,null,null,null,null,null,null,null,null,null,null,null,null,null,null,"SfBServerStdCAL SoftwareAssurance Government OLP 1License NoLevel DvcCAL 1 Licencia por Dispositivo","CoreInfrastructureSvrSteDCCore License/SoftwareAssurancePack Government OLP 16Licenses NoLevel CoreLic Qualified",null,null,null,null,null,null,null,null,null,null,null,null,null,null,null,null,null,"DynamicsCRMOLStorageOpen ShrdSvr SubscriptionVL Government OLP 1License NoLevel AddOn Qualified Annual Región 1 a 4 Pago Anual Anticipado 1 Licencia por Usuario  1 Licencia por Usuario",null,null,null,null,null,null,null,null,null,null,null,null,null,"SfBServerStdCAL SoftwareAssurance Government OLP 1License NoLevel DvcCAL 1 Licencia por Dispositivo",null,"DynamicsCRMProfessionalCAL SoftwareAssurance Government OLP 1License NoLevel DvcCAL Qualified Región 1 a 4 Una sola vez 1 Licencia por Dispositivo  1 Licencia por Dispositivo"]
[null,null,"San Estanislao","Villamaría",null,null,null,null,null,null,null,null,null,null,"CP-COMPUTEENGINE-OS-SUSE-SHARED_Por hora",null,null,null,null,null,null,null,null,null,null,null,null,null,null,null,null,"SfBServerStdCAL SoftwareAssurance Government OLP 1License NoLevel UsrCAL 1 Licencia por Usuario","CoreInfrastructureSvrSteDCCore License/SoftwareAssurancePack Government OLP 16Licenses NoLevel W/OSYSCTRSERVERLICENSE CoreLic Qualified",null,null,null,null,null,null,null,null,null,null,null,null,null,null,null,null,null,"Producto DynamicsCRMProfessionalAddCAL License/SoftwareAssurancePack Government OLP 1License NoLevel DvcCAL Qualified Región 1 a 4 Una sola vez 1 Licencia por Dispositivo  1 Licencia por Dispositivo",null,null,null,null,null,null,null,null,null,null,null,null,null,"SfBServerStdCAL SoftwareAssurance Government OLP 1License NoLevel UsrCAL 1 Licencia por Usuario",null,"DynamicsCRMProfessionalCAL SoftwareAssurance Government OLP 1License NoLevel UsrCAL Qualified Región 1 a 4 Una sola vez 1 Licencia por Usuario  1 Licencia por Usuario"]
[null,null,"Villanueva","Anserma",null,null,null,null,null,null,null,null,null,null,"CP-COMPUTEENGINE-OS-WINDOWS_Por hora",null,null,null,null,null,null,null,null,null,null,null,null,null,null,null,null,"SfBCloudPBXOpen ShrdSvr SubscriptionVL Government OLP 1License NoLevel  Qualified Annual 1 Licencia por Usuario","CoreInfrastructureSvrSteDCCore License/SoftwareAssurancePack Government OLP 16Licenses NoLevel W/OWinServerLicense CoreLic Qualified",null,null,null,null,null,null,null,null,null,null,null,null,null,null,null,null,null,"Producto DynamicsCRMProfessionalAddCAL License/SoftwareAssurancePack Government OLP 1License NoLevel UsrCAL Qualified Región 1 a 4 Una sola vez 1 Licencia por Usuario  1 Licencia por Usuario",null,null,null,null,null,null,null,null,null,null,null,null,null,"SfBCloudPBXOpen ShrdSvr SubscriptionVL Government OLP 1License NoLevel  Qualified Annual 1 Licencia por Usuario",null,"DynamicsCRMSvr License/SoftwareAssurancePack Government OLP 1License NoLevel 5Client Región 1 a 4 Una sola vez 1 Licencia por Servidor  1 Licencia por Servidor"]
[null,null,"Acacías","Palestina",null,null,null,null,null,null,null,null,null,null,"CP-COMPUTEENGINE-OS-WINDOWS-SHARED_Por hora",null,null,null,null,null,null,null,null,null,null,null,null,null,null,null,null,"SfBPlusCALOpen ShrdSvr SubscriptionVL Government OLP 1License NoLevel  Qualified Annual Suscripción anual 1 Licencia por Usuario","CoreInfrastructureSvrSteDCCore SoftwareAssurance Government OLP 16Licenses NoLevel CoreLic Qualified",null,null,null,null,null,null,null,null,null,null,null,null,null,null,null,null,null,"Producto DynamicsCRMProfessionalAddCAL SoftwareAssurance Government OLP 1License NoLevel DvcCAL Qualified Región 1 a 4 Una sola vez 1 Licencia por Dispositivo  1 Licencia por Dispositivo",null,null,null,null,null,null,null,null,null,null,null,null,null,"SfBPlusCALOpen ShrdSvr SubscriptionVL Government OLP 1License NoLevel  Qualified Annual Suscripción anual 1 Licencia por Usuario",null,"DynamicsCRMSvr License/SoftwareAssurancePack Government OLP 1License NoLevel Qualified Región 1 a 4 Una sola vez 1 Licencia por Servidor  1 Licencia por Servidor"]
[null,null,"Cumaral","Chinchiná",null,null,null,null,null,null,null,null,null,null,"CP-COMPUTEENGINE-OS-WINDOWS-SQL-STANDARD_Por hora",null,null,null,null,null,null,null,null,null,null,null,null,null,null,null,null,"SfBCloudPBXOpen ShrdSvr SubscriptionVL Government OLP 1License NoLevel  Qualified Annual 1 licencia por Usuario","CoreInfraSvrSteStdCore License/SoftwareAssurancePack Government OLP 16Licenses NoLevel CoreLic Qualified",null,null,null,null,null,null,null,null,null,null,null,null,null,null,null,null,null,"Producto DynamicsCRMProfessionalAddCAL SoftwareAssurance Government OLP 1License NoLevel UsrCAL Qualified Región 1 a 4 Una sola vez 1 Licencia por Usuario  1 Licencia por Usuario",null,null,null,null,null,null,null,null,null,null,null,null,null,"SfBCloudPBXOpen ShrdSvr SubscriptionVL Government OLP 1License NoLevel  Qualified Annual 1 licencia por Usuario",null,"DynamicsCRMSvr SoftwareAssurance Government OLP 1License NoLevel 5Client Región 1 a 4 Una sola vez 1 Licencia por Servidor  1 Licencia por Servidor"]
[null,null,"Restrepo","Neira",null,null,null,null,null,null,null,null,null,null,"CP-COMPUTEENGINE-OS-WINDOWS-SQL-WEB_Por hora",null,null,null,null,null,null,null,null,null,null,null,null,null,null,null,null,"SfBPSTNConferencingOpen ShrdSvr SubscriptionVL Government OLP 1License NoLevel Qualified Annual 1 licencia por Usuario","CoreInfraSvrSteStdCore License/SoftwareAssurancePack Government OLP 16Licenses NoLevel W/OSYSCTRSERVERLICENSE CoreLic Qualified",null,null,null,null,null,null,null,null,null,null,null,null,null,null,null,null,null,"Producto DynamicsCRMProfessionalCAL License/SoftwareAssurancePack Government OLP 1License NoLevel DvcCAL Qualified Región 1 a 4 Una sola vez 1 Licencia por Dispositivo  1 Licencia por Dispositivo",null,null,null,null,null,null,null,null,null,null,null,null,null,"SfBPSTNConferencingOpen ShrdSvr SubscriptionVL Government OLP 1License NoLevel Qualified Annual 1 licencia por Usuario",null,"DynamicsCRMSvr SoftwareAssurance Government OLP 1License NoLevel Qualified Región 1 a 4 Una sola vez 1 Licencia por Servidor  1 Licencia por Servidor"]
[null,null,"El Calvario","Marulanda",null,null,null,null,null,null,null,null,null,null,"CP-COMPUTEENGINE-STORAGE-LOCAL-SSD_GB/mes",null,null,null,null,null,null,null,null,null,null,null,null,null,null,null,null,null,"CoreInfraSvrSteStdCore License/SoftwareAssurancePack Government OLP 16Licenses NoLevel W/OWinServerLicense CoreLic Qualified",null,null,null,null,null,null,null,null,null,null,null,null,null,null,null,null,null,"Producto DynamicsCRMProfessionalCAL License/SoftwareAssurancePack Government OLP 1License NoLevel UsrCAL Qualified Región 1 a 4 Una sola vez 1 Licencia por Usuario  1 Licencia por Usuario",null,null,null,null,null,null,null,null,null,null,null,null,null,null,null,"DynamicsCRMWorkgroupSvr License/SoftwareAssurancePack Government OLP 1License NoLevel Qualified Región 1 a 4 Una sola vez 1 Licencia por Servidor  1 Licencia por Servidor"]
[null,null,"Puerto López","Cereté",null,null,null,null,null,null,null,null,null,null,"CP-COMPUTEENGINE-STORAGE-PD-CAPACITY_GB/mes",null,null,null,null,null,null,null,null,null,null,null,null,null,null,null,null,null,"CoreInfraSvrSteStdCore SoftwareAssurance Government OLP 16Licenses NoLevel CoreLic Qualified",null,null,null,null,null,null,null,null,null,null,null,null,null,null,null,null,null,"Producto DynamicsCRMProfessionalCAL SoftwareAssurance Government OLP 1License NoLevel DvcCAL Qualified Región 1 a 4 Una sola vez 1 Licencia por Dispositivo  1 Licencia por Dispositivo",null,null,null,null,null,null,null,null,null,null,null,null,null,null,null,"DynamicsCRMWorkgroupSvr SoftwareAssurance Government OLP 1License NoLevel Qualified Región 1 a 4 Una sola vez 1 Licencia por Servidor  1 Licencia por Servidor"]
[null,null,"Puerto Gaitán","Puerto Escondido",null,null,null,null,null,null,null,null,null,null,"CP-COMPUTEENGINE-STORAGE-PD-SNAPSHOT_GB/mes",null,null,null,null,null,null,null,null,null,null,null,null,null,null,null,null,null,"SysCtrDataCenterCore License/SoftwareAssurancePack Government OLP 16Licenses NoLevel CoreLic Qualified",null,null,null,null,null,null,null,null,null,null,null,null,null,null,null,null,null,"Producto DynamicsCRMProfessionalCAL SoftwareAssurance Government OLP 1License NoLevel UsrCAL Qualified Región 1 a 4 Una sola vez 1 Licencia por Usuario  1 Licencia por Usuario",null,null,null,null,null,null,null,null,null,null,null,null,null,null,null,"Dyn365ForCustmrSrvc LicSAPk OLP NL Gov DvcCAL"]
[null,null,"San Carlos de Guaroa","San Pelayo",null,null,null,null,null,null,null,null,null,null,"CP-COMPUTEENGINE-STORAGE-PD-SSD-CAPACITY_GB/mes",null,null,null,null,null,null,null,null,null,null,null,null,null,null,null,null,null,"SysCtrDataCenterCore SoftwareAssurance Government OLP 16Licenses NoLevel CoreLic Qualified",null,null,null,null,null,null,null,null,null,null,null,null,null,null,null,null,null,"Producto DynamicsCRMSvr License/SoftwareAssurancePack Government OLP 1License NoLevel 5Client Región 1 a 4 Una sola vez 1 Licencia por Servidor  1 Licencia por Servidor",null,null,null,null,null,null,null,null,null,null,null,null,null,null,null,"Dyn365ForCustmrSrvc LicSAPk OLP NL Gov UsrCAL"]
[null,null,"Ciénaga","San Carlos",null,null,null,null,null,null,null,null,null,null,"CP-COMPUTEENGINE-STORAGE-IMAGE_GB/mes",null,null,null,null,null,null,null,null,null,null,null,null,null,null,null,null,null,"SysCtrStandardCore License/SoftwareAssurancePack Government OLP 16Licenses NoLevel CoreLic Qualified",null,null,null,null,null,null,null,null,null,null,null,null,null,null,null,null,null,"Producto DynamicsCRMSvr License/SoftwareAssurancePack Government OLP 1License NoLevel Qualified Región 1 a 4 Una sola vez 1 Licencia por Servidor  1 Licencia por Servidor",null,null,null,null,null,null,null,null,null,null,null,null,null,null,null,"Dyn365ForCustmrSrvc SA OLP NL Gov DvcCAL"]
[null,null,"Puebloviejo","Planeta Rica",null,null,null,null,null,null,null,null,null,null,"CP-COMPUTEENGINE-INTERNET-EGRESS_GB/mes",null,null,null,null,null,null,null,null,null,null,null,null,null,null,null,null,null,"SysCtrStandardCore SoftwareAssurance Government OLP 16Licenses NoLevel CoreLic Qualified",null,null,null,null,null,null,null,null,null,null,null,null,null,null,null,null,null,"Producto DynamicsCRMSvr SoftwareAssurance Government OLP 1License NoLevel 5Client Región 1 a 4 Una sola vez 1 Licencia por Servidor  1 Licencia por Servidor",null,null,null,null,null,null,null,null,null,null,null,null,null,null,null,"Dyn365ForCustmrSrvc SA OLP NL Gov UsrCAL"]
[null,null,"El Retén","Tierralta",null,null,null,null,null,null,null,null,null,null,"CP-BIGSTORE-INTER-REGION-EGRESS_GB/mes",null,null,null,null,null,null,null,null,null,null,null,null,null,null,null,null,null,null,null,null,null,null,null,null,null,null,null,null,null,null,null,null,null,null,null,"Producto DynamicsCRMSvr SoftwareAssurance Government OLP 1License NoLevel Qualified Región 1 a 4 Una sola vez 1 Licencia por Servidor  1 Licencia por Servidor",null,null,null,null,null,null,null,null,null,null,null,null,null,null,null,"Dyn365ForSales LicSAPk OLP NL Gov DvcCAL"]
[null,null,"Caldas","Valencia",null,null,null,null,null,null,null,null,null,null,"CP-COMPUTEENGINE-INTERCONNECT-EGRESS_GB/mes",null,null,null,null,null,null,null,null,null,null,null,null,null,null,null,null,null,null,null,null,null,null,null,null,null,null,null,null,null,null,null,null,null,null,null,"Producto DynamicsCRMWorkgroupSvr License/SoftwareAssurancePack Government OLP 1License NoLevel Qualified Región 1 a 4 Una sola vez 1 Licencia por Servidor  1 Licencia por Servidor",null,null,null,null,null,null,null,null,null,null,null,null,null,null,null,"Dyn365ForSales LicSAPk OLP NL Gov UsrCAL"]
[null,null,"La Estrella","Canalete",null,null,null,null,null,null,null,null,null,null,"FORWARDING_RULE_CHARGE_BASE_por número de reglas",null,null,null,null,null,null,null,null,null,null,null,null,null,null,null,null,null,null,null,null,null,null,null,null,null,null,null,null,null,null,null,null,null,null,null,"Producto DynamicsCRMWorkgroupSvr SoftwareAssurance Government OLP 1License NoLevel Qualified Región 1 a 4 Una sola vez 1 Licencia por Servidor  1 Licencia por Servidor",null,null,null,null,null,null,null,null,null,null,null,null,null,null,null,"Dyn365ForSales SA OLP NL Gov DvcCAL"]
[null,null,"Itagüí","Los Córdobas",null,null,null,null,null,null,null,null,null,null,"FORWARDING_RULE_CHARGE_EXTRA_por número de reglas",null,null,null,null,null,null,null,null,null,null,null,null,null,null,null,null,null,null,null,null,null,null,null,null,null,null,null,null,null,null,null,null,null,null,null,"DynamicsCRMOLProOpen ShrdSvr SubscriptionVL Government OLP 1License NoLevel Add-ontoO365 Qualified Annual Suscripción anual 1 Licencia por Usuario",null,null,null,null,null,null,null,null,null,null,null,null,null,null,null,"Dyn365ForSales SA OLP NL Gov UsrCAL"]
[null,null,"Sabaneta","Campoalegre",null,null,null,null,null,null,null,null,null,null,"NETWORK_LOAD_BALANCED_INGRESS_NA_GB/mes",null,null,null,null,null,null,null,null,null,null,null,null,null,null,null,null,null,null,null,null,null,null,null,null,null,null,null,null,null,null,null,null,null,null,null,"DynamicsCRMOLProfDirSuprtOpen ShrdSvr SubscriptionVL Government OLP 1License NoLevel Qualified Annual 1 Licencia por Usuario",null,null,null,null,null,null,null,null,null,null,null,null,null,null,null,"Dyn365ForTeamMembers LicSAPk OLP NL Gov DvcCAL"]
[null,null,"Bello","Palermo",null,null,null,null,null,null,null,null,null,null,"VPN_TUNNEL_DEFAULT_hora",null,null,null,null,null,null,null,null,null,null,null,null,null,null,null,null,null,null,null,null,null,null,null,null,null,null,null,null,null,null,null,null,null,null,null,"Dyn365ForCustmrSrvc LicSAPk OLP NL Gov DvcCAL",null,null,null,null,null,null,null,null,null,null,null,null,null,null,null,"Dyn365ForTeamMembers LicSAPk OLP NL Gov UsrCAL"]
[null,null,"Copacabana","Aipe",null,null,null,null,null,null,null,null,null,null,"CP-COMPUTEENGINE-INTER-ZONE-EGRESS_GB/mes",null,null,null,null,null,null,null,null,null,null,null,null,null,null,null,null,null,null,null,null,null,null,null,null,null,null,null,null,null,null,null,null,null,null,null,"Dyn365ForCustmrSrvc LicSAPk OLP NL Gov UsrCAL",null,null,null,null,null,null,null,null,null,null,null,null,null,null,null,"Dyn365ForTeamMembers SA OLP NL Gov DvcCAL"]
[null,null,"Girardota","Rivera",null,null,null,null,null,null,null,null,null,null,"CP-COMPUTEENGINE-INTER-REGION-EGRESS_GB/mes",null,null,null,null,null,null,null,null,null,null,null,null,null,null,null,null,null,null,null,null,null,null,null,null,null,null,null,null,null,null,null,null,null,null,null,"Dyn365ForCustmrSrvc SA OLP NL Gov DvcCAL",null,null,null,null,null,null,null,null,null,null,null,null,null,null,null,"Dyn365ForTeamMembers SA OLP NL Gov UsrCAL"]
[null,null,"Barbosa","Tello",null,null,null,null,null,null,null,null,null,null,"CP-COMPUTEENGINE-GOOGLE-EGRESS_GB/mes",null,null,null,null,null,null,null,null,null,null,null,null,null,null,null,null,null,null,null,null,null,null,null,null,null,null,null,null,null,null,null,null,null,null,null,"Dyn365ForCustmrSrvc SA OLP NL Gov UsrCAL",null,null,null,null,null,null,null,null,null,null,null,null,null,null,null,"DynCRMOLProDirSupOpn ShrdSvr SubsVL OLP NL Annual Gov Qlfd"]
[null,null,"Envigado","Baraya",null,null,null,null,null,null,null,null,null,null,"CP-CLOUDDNS-QUERY_Por 1.000.000 búsquedas",null,null,null,null,null,null,null,null,null,null,null,null,null,null,null,null,null,null,null,null,null,null,null,null,null,null,null,null,null,null,null,null,null,null,null,"Dyn365ForSales LicSAPk OLP NL Gov DvcCAL",null,null,null,null,null,null,null,null,null,null,null,null,null,null,null,"DynCRMOLProOpen ShrdSvr SubsVL OLP NL Annual Gov AddOntoO365 Qlfd"]
[null,null,"Soledad","Villavieja",null,null,null,null,null,null,null,null,null,null,"CP-CLOUDDNS-ZONE_Número de zonas sancionadas/mes",null,null,null,null,null,null,null,null,null,null,null,null,null,null,null,null,null,null,null,null,null,null,null,null,null,null,null,null,null,null,null,null,null,null,null,"Dyn365ForSales LicSAPk OLP NL Gov UsrCAL",null,null,null,null,null,null,null,null,null,null,null,null,null,null,null,"Dyn365ForCustomerService License/SoftwareAssurancePack Government OLP 1License NoLevel QualifiedOffer UsrCAL fromCRMBasic"]
[null,null,"Galapa","Dosquebradas",null,null,null,null,null,null,null,null,null,null,"CP-COMPUTEENGINE-STATIC-IP-CHARGE_Unidades",null,null,null,null,null,null,null,null,null,null,null,null,null,null,null,null,null,null,null,null,null,null,null,null,null,null,null,null,null,null,null,null,null,null,null,"Dyn365ForSales SA OLP NL Gov DvcCAL",null,null,null,null,null,null,null,null,null,null,null,null,null,null,null,"Dyn365ForCustomerService License/SoftwareAssurancePack Government OLP 1License NoLevel QualifiedOffer UsrCAL fromCRM"]
[null,null,"Puerto Colombia","La Virginia",null,null,null,null,null,null,null,null,null,null,"CP-CLOUD-CDN-Cache-egress_GB/mes",null,null,null,null,null,null,null,null,null,null,null,null,null,null,null,null,null,null,null,null,null,null,null,null,null,null,null,null,null,null,null,null,null,null,null,"Dyn365ForSales SA OLP NL Gov UsrCAL",null,null,null,null,null,null,null,null,null,null,null,null,null,null,null,"Dyn365ForCustomerService SoftwareAssurance Government OLP 1License NoLevel QualifiedOffer UsrCAL fromCRMBasic"]
[null,null,"Malambo","Marsella",null,null,null,null,null,null,null,null,null,null,"CP-CLOUD-CDN-Cache-fill_GB/mes",null,null,null,null,null,null,null,null,null,null,null,null,null,null,null,null,null,null,null,null,null,null,null,null,null,null,null,null,null,null,null,null,null,null,null,"Dyn365ForTeamMembers LicSAPk OLP NL Gov DvcCAL",null,null,null,null,null,null,null,null,null,null,null,null,null,null,null,"Dyn365ForCustomerService SoftwareAssurance Government OLP 1License NoLevel QualifiedOffer UsrCAL fromCRMPro"]
[null,null,null,"Santa Rosa de Cabal",null,null,null,null,null,null,null,null,null,null,"CP-CLOUD-CDN-HTTP(S)-requests_Por 10.000 solicitudes",null,null,null,null,null,null,null,null,null,null,null,null,null,null,null,null,null,null,null,null,null,null,null,null,null,null,null,null,null,null,null,null,null,null,null,"Dyn365ForTeamMembers LicSAPk OLP NL Gov UsrCAL",null,null,null,null,null,null,null,null,null,null,null,null,null,null,null,"Dyn365ForSales License/SoftwareAssurancePack Government OLP 1License NoLevel QualifiedOffer UsrCAL fromCRMBasic"]
[null,null,null,"El Tambo",null,null,null,null,null,null,null,null,null,null,"CP-CLOUD-CDN-Cache-invalidation_Por solicitud",null,null,null,null,null,null,null,null,null,null,null,null,null,null,null,null,null,null,null,null,null,null,null,null,null,null,null,null,null,null,null,null,null,null,null,"Dyn365ForTeamMembers SA OLP NL Gov DvcCAL",null,null,null,null,null,null,null,null,null,null,null,null,null,null,null,"Dyn365ForSales License/SoftwareAssurancePack Government OLP 1License NoLevel QualifiedOffer UsrCAL fromCRMPro"]
[null,null,null,"Piendamó",null,null,null,null,null,null,null,null,null,null,"CP-FUNCTIONS-GB-SECONDS_GB/segundo",null,null,null,null,null,null,null,null,null,null,null,null,null,null,null,null,null,null,null,null,null,null,null,null,null,null,null,null,null,null,null,null,null,null,null,"Dyn365ForTeamMembers SA OLP NL Gov UsrCAL",null,null,null,null,null,null,null,null,null,null,null,null,null,null,null,"Dyn365ForSales SoftwareAssurance Government OLP 1License NoLevel QualifiedOffer UsrCAL fromCRMBasic"]
[null,null,null,"Tunía",null,null,null,null,null,null,null,null,null,null,"CP-FUNCTIONS-GHZ-SECONDS_GHz/segundo",null,null,null,null,null,null,null,null,null,null,null,null,null,null,null,null,null,null,null,null,null,null,null,null,null,null,null,null,null,null,null,null,null,null,null,"DynCRMOLProDirSupOpn ShrdSvr SubsVL OLP NL Annual Gov Qlfd",null,null,null,null,null,null,null,null,null,null,null,null,null,null,null,"Dyn365ForSales SoftwareAssurance Government OLP 1License NoLevel QualifiedOffer UsrCAL fromCRMPro"]
[null,null,null,"Timbío",null,null,null,null,null,null,null,null,null,null,"CP-FUNCTIONS-EXECUTIONS_Por 10.000 solicitudes",null,null,null,null,null,null,null,null,null,null,null,null,null,null,null,null,null,null,null,null,null,null,null,null,null,null,null,null,null,null,null,null,null,null,null,"DynCRMOLProOpen ShrdSvr SubsVL OLP NL Annual Gov AddOntoO365 Qlfd",null,null,null,null,null,null,null,null,null,null,null,null,null,null,null,"Dyn365ForTeamMembers License/SoftwareAssurancePack Government OLP 1License NoLevel QualifiedOffer UsrCAL fromCRMEssentials"]
[null,null,null,"Cajibío",null,null,null,null,null,null,null,null,null,null,"CP-FUNCTIONS-BW-I_GB/mes",null,null,null,null,null,null,null,null,null,null,null,null,null,null,null,null,null,null,null,null,null,null,null,null,null,null,null,null,null,null,null,null,null,null,null,"Dyn365ForCustomerService License/SoftwareAssurancePack Government OLP 1License NoLevel QualifiedOffer UsrCAL fromCRMBasic",null,null,null,null,null,null,null,null,null,null,null,null,null,null,null,"Dyn365ForTeamMembers SoftwareAssurance Government OLP 1License NoLevel QualifiedOffer UsrCAL fromCRMEssentials"]
[null,null,null,"Sampués",null,null,null,null,null,null,null,null,null,null,"CP-FUNCTIONS-BW-O_GB/mes",null,null,null,null,null,null,null,null,null,null,null,null,null,null,null,null,null,null,null,null,null,null,null,null,null,null,null,null,null,null,null,null,null,null,null,"Dyn365ForCustomerService License/SoftwareAssurancePack Government OLP 1License NoLevel QualifiedOffer UsrCAL fromCRM"]
[null,null,null,"Palmito",null,null,null,null,null,null,null,null,null,null,"CP-GAE-FRONTEND-INSTANCE_Por hora",null,null,null,null,null,null,null,null,null,null,null,null,null,null,null,null,null,null,null,null,null,null,null,null,null,null,null,null,null,null,null,null,null,null,null,"Dyn365ForCustomerService SoftwareAssurance Government OLP 1License NoLevel QualifiedOffer UsrCAL fromCRMBasic"]
[null,null,null,"Tolú",null,null,null,null,null,null,null,null,null,null,"CP-GAE-BACKEND-INSTANCE_Por hora",null,null,null,null,null,null,null,null,null,null,null,null,null,null,null,null,null,null,null,null,null,null,null,null,null,null,null,null,null,null,null,null,null,null,null,"Dyn365ForCustomerService SoftwareAssurance Government OLP 1License NoLevel QualifiedOffer UsrCAL fromCRMPro"]
[null,null,null,"Tolú Viejo",null,null,null,null,null,null,null,null,null,null,"CP-GAE-BW-O_GB/mes",null,null,null,null,null,null,null,null,null,null,null,null,null,null,null,null,null,null,null,null,null,null,null,null,null,null,null,null,null,null,null,null,null,null,null,"Dyn365ForSales License/SoftwareAssurancePack Government OLP 1License NoLevel QualifiedOffer UsrCAL fromCRMBasic"]
[null,null,null,"Nunchía",null,null,null,null,null,null,null,null,null,null,"CP-GAE-STOR-TASK-QUEUE_GB / mes",null,null,null,null,null,null,null,null,null,null,null,null,null,null,null,null,null,null,null,null,null,null,null,null,null,null,null,null,null,null,null,null,null,null,null,"Dyn365ForSales License/SoftwareAssurancePack Government OLP 1License NoLevel QualifiedOffer UsrCAL fromCRMPro"]
[null,null,null,"Paya",null,null,null,null,null,null,null,null,null,null,"CP-GAE-TOTAL-APP-SIZE-BYTES_GB / mes",null,null,null,null,null,null,null,null,null,null,null,null,null,null,null,null,null,null,null,null,null,null,null,null,null,null,null,null,null,null,null,null,null,null,null,"Dyn365ForSales SoftwareAssurance Government OLP 1License NoLevel QualifiedOffer UsrCAL fromCRMBasic"]
[null,null,null,"San Luis de Palenque",null,null,null,null,null,null,null,null,null,null,"CP-GAE-DATASTORE-STORAGE_GB / mes",null,null,null,null,null,null,null,null,null,null,null,null,null,null,null,null,null,null,null,null,null,null,null,null,null,null,null,null,null,null,null,null,null,null,null,"Dyn365ForSales SoftwareAssurance Government OLP 1License NoLevel QualifiedOffer UsrCAL fromCRMPro"]
[null,null,null,"Orocué",null,null,null,null,null,null,null,null,null,null,"CP-GAE-DATASTORE-WRITE-OPS_100k entity writes",null,null,null,null,null,null,null,null,null,null,null,null,null,null,null,null,null,null,null,null,null,null,null,null,null,null,null,null,null,null,null,null,null,null,null,"Dyn365ForTeamMembers License/SoftwareAssurancePack Government OLP 1License NoLevel QualifiedOffer UsrCAL fromCRMEssentials"]
[null,null,null,"Maní",null,null,null,null,null,null,null,null,null,null,"CP-GAE-DATASTORE-READ-OPS_100k entity reads",null,null,null,null,null,null,null,null,null,null,null,null,null,null,null,null,null,null,null,null,null,null,null,null,null,null,null,null,null,null,null,null,null,null,null,"Dyn365ForTeamMembers SoftwareAssurance Government OLP 1License NoLevel QualifiedOffer UsrCAL fromCRMEssentials"]
[null,null,null,"Aguazul",null,null,null,null,null,null,null,null,null,null,"CP-GAE-DATASTORE-DELETE-OPS_100k entity delete"]
[null,null,null,"Labranzagrande",null,null,null,null,null,null,null,null,null,null,"CP-GAE-OP-LOGS_GB/mes"]
[null,null,null,null,null,null,null,null,null,null,null,null,null,null,"CP-GAE-SSL-VIP_Por VIP Por mes"]
[null,null,null,null,null,null,null,null,null,null,null,null,null,null,"CP-GAE-SEARCH-BYTES-INDEXED_GB/mes"]
[null,null,null,null,null,null,null,null,null,null,null,null,null,null,"CP-GAE-SEARCH-BYTES-STORED_GB/mes"]
["Lote1Proveedor","Lote3Proveedor",null,null,null,null,null,null,null,null,null,null,null,null,"CP-GAE-SEARCH-COMPLEX-SEARCHES_10K oPorations"]
["Eforcers S.A.","Eforcers S.A.",null,null,null,null,null,null,null,null,null,null,null,null,"CP-GAE-SEARCH-SIMPLE-SEARCHES_10K oPorations"]
["Ito Software S.A.S.","Información Localizada S.A.S.",null,null,null,null,null,null,null,null,null,null,null,null,"RESERVED-MEMCACHE-M1024-Q10000_GB/hora"]
[null,null,null,null,null,null,null,null,null,null,null,null,null,null,"CP-GAE-FLEX-INSTANCE-CORE-HOURS_Por hora"]
[null,null,null,null,null,null,null,null,null,null,null,null,null,null,"CP-GAE-FLEX-INSTANCE-RAM_GB/mes"]
[null,null,null,null,null,null,null,null,null,null,null,null,null,null,"CP-GAE-FLEX-STORAGE-PD-CAPACITY_GB/mes"]
[null,null,null,null,null,null,null,null,null,null,null,null,null,null,"CP-BIGQUERY-STORAGE_GB/mes"]
[null,null,null,null,null,null,null,null,null,null,null,null,null,null,"CP-BIGQUERY-QUERY_TB/mes"]
[null,null,null,null,null,null,null,null,null,null,null,null,null,null,"CP-BIGQUERY-BATCHQUERY_TB/mes"]
[null,null,null,null,null,null,null,null,null,null,null,null,null,null,"CP-BIGQUERY-STREAMING-INSERT_GB/mes"]
[null,null,null,null,null,null,null,null,null,null,null,null,null,null,"CP_BIGQUERY_LONG_TERM_STORAGE_GB/mes"]
[null,null,null,null,null,null,null,null,null,null,null,null,null,null,"CP-DATAFLOW-BATCH_Por 1,000 trabajos"]
[null,null,null,null,null,null,null,null,null,null,null,null,null,null,"CP-DATAFLOW-STREAMING_Por 1,000 trabajos"]
[null,null,null,null,null,null,null,null,null,null,null,null,null,null,"CP-DATAPROC_Por hora"]
[null,null,null,null,null,null,null,null,null,null,null,null,null,null,"CP-PUBSUB-MESSAGE-DELIVERY-BASIC_Por 1,000 mensajes"]
[null,null,null,null,null,null,null,null,null,null,null,null,null,null,"CP-DLP_GB/mes"]
[null,null,null,null,null,null,null,null,null,null,null,null,null,null,"CP-SERVICECONTROL_Por 1,000 operaciones"]
[null,null,null,null,null,null,null,null,null,null,null,null,null,null,"CP-KMS-KEY-VERSION_Por 100 versiones"]
[null,null,null,null,null,null,null,null,null,null,null,null,null,null,"CP-KMS-CRYPTO-OPERATION_Por 1,000 operaciones"]
[null,null,null,null,null,null,null,null,null,null,null,null,null,null,"TRANSLATE-BASE-TRANSLATE-1M_Por 1M caracteres"]
[null,null,null,null,null,null,null,null,null,null,null,null,null,null,"CP-VISION-LABEL-DETECTION-5M_Por 1,000 operaciones"]
[null,null,null,null,null,null,null,null,null,null,null,null,null,null,"CP-VISION-LABEL-DETECTION-20M_Por 1,000 operaciones"]
[null,null,null,null,null,null,null,null,null,null,null,null,null,null,"CP-VISION-OCR-5M_Por 1,000 operaciones"]
[null,null,null,null,null,null,null,null,null,null,null,null,null,null,"CP-VISION-OCR-20M_Por 1,000 operaciones"]
[null,null,null,null,null,null,null,null,null,null,null,null,null,null,"CP-VISION-FACIAL-DETECTION-5M_Por 1,000 operaciones"]
[null,null,null,null,null,null,null,null,null,null,null,null,null,null,"CP-VISION-FACIAL-DETECTION-20M_Por 1,000 operaciones"]
[null,null,null,null,null,null,null,null,null,null,null,null,null,null,"CP-VISION-LANDMARK-DETECTION-5M_Por 1,000 operaciones"]
[null,null,null,null,null,null,null,null,null,null,null,null,null,null,"CP-VISION-LANDMARK-DETECTION-20M_Por 1,000 operaciones"]
[null,null,null,null,null,null,null,null,null,null,null,null,null,null,"CP-VISION-LOGO-DETECTION-5M_Por 1,000 operaciones"]
[null,null,null,null,null,null,null,null,null,null,null,null,null,null,"CP-VISION-LOGO-DETECTION-20M_Por 1,000 operaciones"]
[null,null,null,null,null,null,null,null,null,null,null,null,null,null,"CP-VISION-IMAGE-PROPERTIES-5M_Por 1,000 operaciones"]
[null,null,null,null,null,null,null,null,null,null,null,null,null,null,"CP-VISION-IMAGE-PROPERTIES-20M_Por 1,000 operaciones"]
[null,null,null,null,null,null,null,null,null,null,null,null,null,null,"CP-NL-API-ENTITY-RECOGNITION_por registro de texto"]
[null,null,null,null,null,null,null,null,null,null,null,null,null,null,"CP-NL-API-SENTIMENT-ANALYSIS_por registro de texto"]
[null,null,null,null,null,null,null,null,null,null,null,null,null,null,"CP-NL-API-SYNTAX-ANALYSIS_por registro de texto"]
[null,null,null,null,null,null,null,null,null,null,null,null,null,null,"CP-SPEECH-API-RECOGNITION_segundos"]
[null,null,null,null,null,null,null,null,null,null,null,null,null,null,"CP-ML-TRAINING_Por hora, Por ML training unit"]
[null,null,null,null,null,null,null,null,null,null,null,null,null,null,"CP-ML-TRAINING-STANDARD_Por hora, Por ML training unit"]
[null,null,null,null,null,null,null,null,null,null,null,null,null,null,"CP-ML-TRAINING-PREMIUM_Por hora, Por ML training unit"]
[null,null,null,null,null,null,null,null,null,null,null,null,null,null,"CP-BIGTABLE-NODE_Por hora/node"]
[null,null,null,null,null,null,null,null,null,null,null,null,null,null,"CP-BIGTABLE-STORAGE-SSD_GB/mes"]
[null,null,null,null,null,null,null,null,null,null,null,null,null,null,"CP-BIGTABLE-STORAGE-HDD_GB/mes"]
[null,null,null,null,null,null,null,null,null,null,null,null,null,null,"CP-BIGTABLE-NETWORK-CROSSREG_GB/mes"]
[null,null,null,null,null,null,null,null,null,null,null,null,null,null,"CP-BIGTABLE-NETWORK-INTERNET-EGRESS_GB/mes"]
[null,null,null,null,null,null,null,null,null,null,null,null,null,null,"CP-SPANNER-SERVER-NODE_Por hora"]
[null,null,null,null,null,null,null,null,null,null,null,null,null,null,"CP-SPANNER-SSD-STORAGE_GB/mes"]
[null,null,null,null,null,null,null,null,null,null,null,null,null,null,"CP-SPANNER-NETWORK-INTERREGION-EGRESS_GB/mes"]
[null,null,null,null,null,null,null,null,null,null,null,null,null,null,"CP-SPANNER-NETWORK-INTERNET-EGRESS_GB/mes"]
[null,null,null,null,null,null,null,null,null,null,null,null,null,null,"CP-CLOUDSQL-INSTANCE-F1-MICRO_Por hora"]
[null,null,null,null,null,null,null,null,null,null,null,null,null,null,"CP-CLOUDSQL-INSTANCE-G1-SMALL_Por hora"]
[null,null,null,null,null,null,null,null,null,null,null,null,null,null,"CP-CLOUDSQL-INSTANCE-N1-STANDARD-1_Por hora"]
[null,null,null,null,null,null,null,null,null,null,null,null,null,null,"CP-CLOUDSQL-INSTANCE-N1-STANDARD-2_Por hora"]
[null,null,null,null,null,null,null,null,null,null,null,null,null,null,"CP-CLOUDSQL-INSTANCE-N1-STANDARD-4_Por hora"]
[null,null,null,null,null,null,null,null,null,null,null,null,null,null,"CP-CLOUDSQL-INSTANCE-N1-STANDARD-8_Por hora"]
[null,null,null,null,null,null,null,null,null,null,null,null,null,null,"CP-CLOUDSQL-INSTANCE-N1-STANDARD-16_Por hora"]
[null,null,null,null,null,null,null,null,null,null,null,null,null,null,"CP-CLOUDSQL-INSTANCE-N1-STANDARD-32_Por hora"]
[null,null,null,null,null,null,null,null,null,null,null,null,null,null,"CP-CLOUDSQL-INSTANCE-N1-HIGHMEM-2_Por hora"]
[null,null,null,null,null,null,null,null,null,null,null,null,null,null,"CP-CLOUDSQL-INSTANCE-N1-HIGHMEM-4_Por hora"]
[null,null,null,null,null,null,null,null,null,null,null,null,null,null,"CP-CLOUDSQL-INSTANCE-N1-HIGHMEM-8_Por hora"]
[null,null,null,null,null,null,null,null,null,null,null,null,null,null,"CP-CLOUDSQL-INSTANCE-N1-HIGHMEM-16_Por hora"]
[null,null,null,null,null,null,null,null,null,null,null,null,null,null,"CP-CLOUDSQL-INSTANCE-N1-HIGHMEM-32_Por hora"]
[null,null,null,null,null,null,null,null,null,null,null,null,null,null,"CP-CLOUDSQL-INTERNET-EGRESS_GB/mes"]
[null,null,null,null,null,null,null,null,null,null,null,null,null,null,"CP-CLOUDSQL-INTERCONNECT-EGRESS_GB/mes"]
[null,null,null,null,null,null,null,null,null,null,null,null,null,null,"CP-CLOUDSQL-INTER-REGION-EGRESS_GB/mes"]
[null,null,null,null,null,null,null,null,null,null,null,null,null,null,"CP-CLOUDSQL-GOOGLE-EGRESS_GB/mes"]
[null,null,null,null,null,null,null,null,null,null,null,null,null,null,"CP-CLOUDSQL-STORAGE-PD-SSD-CAPACITY_GB/mes"]
[null,null,null,null,null,null,null,null,null,null,null,null,null,null,"CP-CLOUDSQL-STORAGE-PD-STANDARD-CAPACITY_GB/mes"]
[null,null,null,null,null,null,null,null,null,null,null,null,null,null,"CP-CLOUDSQL-STORAGE-PD-SNAPSHOT_GB/mes"]
[null,null,null,null,null,null,null,null,null,null,null,null,null,null,"CP-CLOUDSQL-STATIC-IP-CHARGE_Por hora"]
[null,null,null,null,null,null,null,null,null,null,null,null,null,null,"CP-CLOUDSQL-PG-INSTANCE-F1-MICRO_Por hora"]
[null,null,null,null,null,null,null,null,null,null,null,null,null,null,"CP-CLOUDSQL-PG-INSTANCE-G1-SMALL_Por hora"]
[null,null,null,null,null,null,null,null,null,null,null,null,null,null,"CP-CLOUDSQL-PG-INSTANCE-CPU_Por hora"]
[null,null,null,null,null,null,null,null,null,null,null,null,null,null,"CP-CLOUDSQL-PG-INSTANCE-RAM_Por hora"]
[null,null,null,null,null,null,null,null,null,null,null,null,null,null,"CP-CLOUDSQL-PG-INTERNET-EGRESS_GB/mes"]
[null,null,null,null,null,null,null,null,null,null,null,null,null,null,"CP-CLOUDSQL-PG-INTERCONNECT-EGRESS_GB/mes"]
[null,null,null,null,null,null,null,null,null,null,null,null,null,null,"CP-CLOUDSQL-PG-INTER-REGION-EGRESS_GB/mes"]
[null,null,null,null,null,null,null,null,null,null,null,null,null,null,"CP-CLOUDSQL-PG-GOOGLE-EGRESS_GB/mes"]
[null,null,null,null,null,null,null,null,null,null,null,null,null,null,"CP-CLOUDSQL-PG-STORAGE-PD-SSD-CAPACITY_GB/mes"]
[null,null,null,null,null,null,null,null,null,null,null,null,null,null,"CP-CLOUDSQL-PG-STORAGE-PD-STANDARD-CAPACITY_GB/mes"]
[null,null,null,null,null,null,null,null,null,null,null,null,null,null,"CP-CLOUDSQL-PG-STORAGE-PD-SNAPSHOT_GB/mes"]
[null,null,null,null,null,null,null,null,null,null,null,null,null,null,"CP-CLOUDSQL-PG-STATIC-IP-CHARGE_Por hora"]
[null,null,null,null,null,null,null,null,null,null,null,null,null,null,"CP-BIGSTORE-STORAGE-MULTI_REGIONAL_GB/mes"]
[null,null,null,null,null,null,null,null,null,null,null,null,null,null,"CP-BIGSTORE-STORAGE-REGIONAL_GB/mes"]
[null,null,null,null,null,null,null,null,null,null,null,null,null,null,"CP-BIGSTORE-STORAGE-DRA_GB/mes"]
[null,null,null,null,null,null,null,null,null,null,null,null,null,null,"CP-BIGSTORE-STORAGE-NEARLINE_GB/mes"]
[null,null,null,null,null,null,null,null,null,null,null,null,null,null,"CP-BIGSTORE-STORAGE-COLDLINE_GB/mes"]
[null,null,null,null,null,null,null,null,null,null,null,null,null,null,"CP-BIGSTORE-DATA-RETRIEVAL-NEARLINE_GB/mes"]
[null,null,null,null,null,null,null,null,null,null,null,null,null,null,"CP-BIGSTORE-DATA-RETRIEVAL-COLDLINE_GB/mes"]
[null,null,null,null,null,null,null,null,null,null,null,null,null,null,"CP-BIGSTORE-EARLYDELETE-NEARLINE_GB/mes"]
[null,null,null,null,null,null,null,null,null,null,null,null,null,null,"CP-BIGSTORE-EARLYDELETE-COLDLINE_GB/mes"]
[null,null,null,null,null,null,null,null,null,null,null,null,null,null,"CP-BIGSTORE-DOWNLOAD_GB/mes"]
[null,null,null,null,null,null,null,null,null,null,null,null,null,null,"CP-BIGSTORE-INTER-REGION-EGRESS_GB/mes"]
[null,null,null,null,null,null,null,null,null,null,null,null,null,null,"CP-BIGSTORE-INTERCONNECT-EGRESS_GB/mes"]
[null,null,null,null,null,null,null,null,null,null,null,null,null,null,"CP-BIGSTORE-DISK-IMPORTED_GB/mes"]
[null,null,null,null,null,null,null,null,null,null,null,null,null,null,"CP-BIGSTORE-CLASS-A-REQUEST-MULTI_REGIONAL_Por 10K operaciones"]
[null,null,null,null,null,null,null,null,null,null,null,null,null,null,"CP-BIGSTORE-CLASS-A-REQUEST-REGIONAL_Por 10K operaciones"]
[null,null,null,null,null,null,null,null,null,null,null,null,null,null,"CP-BIGSTORE-CLASS-A-REQUEST-DRA_Por 10K operaciones"]
[null,null,null,null,null,null,null,null,null,null,null,null,null,null,"CP-BIGSTORE-CLASS-A-REQUEST-NEARLINE_Por 10K operaciones"]
[null,null,null,null,null,null,null,null,null,null,null,null,null,null,"CP-BIGSTORE-CLASS-A-REQUEST-COLDLINE_Por 10K operaciones"]
[null,null,null,null,null,null,null,null,null,null,null,null,null,null,"CP-BIGSTORE-CLASS-B-REQUEST-MULTI_REGIONAL_Por 10K operaciones"]
[null,null,null,null,null,null,null,null,null,null,null,null,null,null,"CP-BIGSTORE-CLASS-B-REQUEST-REGIONAL_Por 10K operaciones"]
[null,null,null,null,null,null,null,null,null,null,null,null,null,null,"CP-BIGSTORE-CLASS-B-REQUEST-DRA_Por 10K operaciones"]
[null,null,null,null,null,null,null,null,null,null,null,null,null,null,"CP-BIGSTORE-CLASS-B-REQUEST-NEARLINE_Por 10K operaciones"]
[null,null,null,null,null,null,null,null,null,null,null,null,null,null,"CP-BIGSTORE-CLASS-B-REQUEST-COLDLINE_Por 10K operaciones"]
[null,null,null,null,null,null,null,null,null,null,null,null,null,null,"CP-COMPUTEENGINE-VMIMAGE-N1-STANDARD-1_Por mes"]
[null,null,null,null,null,null,null,null,null,null,null,null,null,null,"CP-COMPUTEENGINE-VMIMAGE-N1-STANDARD-2_Por mes"]
[null,null,null,null,null,null,null,null,null,null,null,null,null,null,"CP-COMPUTEENGINE-VMIMAGE-N1-STANDARD-4_Por mes"]
[null,null,null,null,null,null,null,null,null,null,null,null,null,null,"CP-COMPUTEENGINE-VMIMAGE-N1-STANDARD-8_Por mes"]
[null,null,null,null,null,null,null,null,null,null,null,null,null,null,"CP-COMPUTEENGINE-VMIMAGE-N1-STANDARD-16_Por mes"]
[null,null,null,null,null,null,null,null,null,null,null,null,null,null,"CP-COMPUTEENGINE-VMIMAGE-N1-STANDARD-32_Por mes"]
[null,null,null,null,null,null,null,null,null,null,null,null,null,null,"CP-COMPUTEENGINE-VMIMAGE-N1-STANDARD-64_Por mes"]
[null,null,null,null,null,null,null,null,null,null,null,null,null,null,"CP-COMPUTEENGINE-VMIMAGE-N1-HIGHMEM-2_Por mes"]
[null,null,null,null,null,null,null,null,null,null,null,null,null,null,"CP-COMPUTEENGINE-VMIMAGE-N1-HIGHMEM-4_Por mes"]
[null,null,null,null,null,null,null,null,null,null,null,null,null,null,"CP-COMPUTEENGINE-VMIMAGE-N1-HIGHMEM-8_Por mes"]
[null,null,null,null,null,null,null,null,null,null,null,null,null,null,"CP-COMPUTEENGINE-VMIMAGE-N1-HIGHMEM-16_Por mes"]
[null,null,null,null,null,null,null,null,null,null,null,null,null,null,"CP-COMPUTEENGINE-VMIMAGE-N1-HIGHMEM-32_Por mes"]
[null,null,null,null,null,null,null,null,null,null,null,null,null,null,"CP-COMPUTEENGINE-VMIMAGE-N1-HIGHMEM-64_Por mes"]
[null,null,null,null,null,null,null,null,null,null,null,null,null,null,"CP-COMPUTEENGINE-VMIMAGE-N1-HIGHCPU-2_Por mes"]
[null,null,null,null,null,null,null,null,null,null,null,null,null,null,"CP-COMPUTEENGINE-VMIMAGE-N1-HIGHCPU-4_Por mes"]
[null,null,null,null,null,null,null,null,null,null,null,null,null,null,"CP-COMPUTEENGINE-VMIMAGE-N1-HIGHCPU-8_Por mes"]
[null,null,null,null,null,null,null,null,null,null,null,null,null,null,"CP-COMPUTEENGINE-VMIMAGE-N1-HIGHCPU-16_Por mes"]
[null,null,null,null,null,null,null,null,null,null,null,null,null,null,"CP-COMPUTEENGINE-VMIMAGE-N1-HIGHCPU-32_Por mes"]
[null,null,null,null,null,null,null,null,null,null,null,null,null,null,"CP-COMPUTEENGINE-VMIMAGE-N1-HIGHCPU-64_Por mes"]
[null,null,null,null,null,null,null,null,null,null,null,null,null,null,"CP-COMPUTEENGINE-VMIMAGE-F1-MICRO-SHARED_Por mes"]
[null,null,null,null,null,null,null,null,null,null,null,null,null,null,"CP-COMPUTEENGINE-VMIMAGE-G1-SMALL-SHARED_Por mes"]
[null,null,null,null,null,null,null,null,null,null,null,null,null,null,"CP-COMPUTEENGINE-OS-RHEL-SMALL_Por mes"]
[null,null,null,null,null,null,null,null,null,null,null,null,null,null,"CP-COMPUTEENGINE-OS-RHEL-LARGE_Por mes"]
[null,null,null,null,null,null,null,null,null,null,null,null,null,null,"CP-COMPUTEENGINE-OS-SUSE_Por mes"]
[null,null,null,null,null,null,null,null,null,null,null,null,null,null,"CP-COMPUTEENGINE-OS-SUSE-SHARED_Por mes"]
[null,null,null,null,null,null,null,null,null,null,null,null,null,null,"CP-COMPUTEENGINE-OS-WINDOWS_Por mes"]
[null,null,null,null,null,null,null,null,null,null,null,null,null,null,"CP-COMPUTEENGINE-OS-WINDOWS-SHARED_Por mes"]
[null,null,null,null,null,null,null,null,null,null,null,null,null,null,"CP-COMPUTEENGINE-OS-WINDOWS-SQL-STANDARD_Por mes"]
[null,null,null,null,null,null,null,null,null,null,null,null,null,null,"CP-COMPUTEENGINE-OS-WINDOWS-SQL-WEB_Por mes"]
[null,null,null,null,null,null,null,null,null,null,null,null,null,null,"CP-CLOUDSQL-INSTANCE-F1-MICRO_Por mes"]
[null,null,null,null,null,null,null,null,null,null,null,null,null,null,"CP-CLOUDSQL-INSTANCE-G1-SMALL_Por mes"]
[null,null,null,null,null,null,null,null,null,null,null,null,null,null,"CP-CLOUDSQL-INSTANCE-N1-STANDARD-1_Por mes"]
[null,null,null,null,null,null,null,null,null,null,null,null,null,null,"CP-CLOUDSQL-INSTANCE-N1-STANDARD-2_Por mes"]
[null,null,null,null,null,null,null,null,null,null,null,null,null,null,"CP-CLOUDSQL-INSTANCE-N1-STANDARD-4_Por mes"]
[null,null,null,null,null,null,null,null,null,null,null,null,null,null,"CP-CLOUDSQL-INSTANCE-N1-STANDARD-8_Por mes"]
[null,null,null,null,null,null,null,null,null,null,null,null,null,null,"CP-CLOUDSQL-INSTANCE-N1-STANDARD-16_Por mes"]
[null,null,null,null,null,null,null,null,null,null,null,null,null,null,"CP-CLOUDSQL-INSTANCE-N1-STANDARD-32_Por mes"]
[null,null,null,null,null,null,null,null,null,null,null,null,null,null,"CP-CLOUDSQL-INSTANCE-N1-HIGHMEM-2_Por mes"]
[null,null,null,null,null,null,null,null,null,null,null,null,null,null,"CP-CLOUDSQL-INSTANCE-N1-HIGHMEM-4_Por mes"]
[null,null,null,null,null,null,null,null,null,null,null,null,null,null,"CP-CLOUDSQL-INSTANCE-N1-HIGHMEM-8_Por mes"]
[null,null,null,null,null,null,null,null,null,null,null,null,null,null,"CP-CLOUDSQL-INSTANCE-N1-HIGHMEM-16_Por mes"]
[null,null,null,null,null,null,null,null,null,null,null,null,null,null,"CP-CLOUDSQL-INSTANCE-N1-HIGHMEM-32_Por mes"]
[null,null,null,null,null,null,null,null,null,null,null,null,null,null,"VPN_TUNNEL_DEFAULT_mes"]
[null,null,null,null,null,null,null,null,null,null,null,null,null,null,"CP-COMPUTEENGINE-OS-SUSE-SAP_Por mes"]